{"text_format":"1","workbook":"xlsx","n_sheets":2,"sheets":["الاصناف","ورقة1"],"not_rendered":{"charts":0,"images":0,"macros":1,"external_links":1,"defined_names":10,"comments":0,"pivot_tables":0},"unopened":[],"bounds":{"document_bytes":16777216,"sheet_cells":100000,"rows_first":2000,"rows_last":500,"rows_between":2000,"halvings":0,"cell_chars":16384,"cell_head_chars":4096},"cells_cut":0,"cells_raw":0,"read":"whole","date_system":"1900"}

{"sheet":"الاصناف","index":0,"n_rows":2003,"n_cols":8,"rows_kept":2003,"cut":false,"hidden":false,"merged":[[1,1,1,6]]}
[]
[null,"الاصناف"]
[null,"كود الصنف","الصنف","ثمن الشراء","ثمن البيع","الموجود بالمخزن","تم بيعه","المتبقي"]
[null,null,"شاشة 32",50,100,50,13,{"$f":"الجدول1[[#This Row],[الموجود بالمخزن]]-الجدول1[[#This Row],[تم بيعه]]","v":37}]
[null,null,"شاشة 64",600,700,60,2,{"$f":"الجدول1[[#This Row],[الموجود بالمخزن]]-الجدول1[[#This Row],[تم بيعه]]","v":58}]
[null,null,null,null,null,null,null,{"$f":"الجدول1[[#This Row],[الموجود بالمخزن]]-الجدول1[[#This Row],[تم بيعه]]","v":0}]
[null,null,null,null,null,null,null,{"$f":"الجدول1[[#This Row],[الموجود بالمخزن]]-الجدول1[[#This Row],[تم بيعه]]","v":0}]
[null,null,null,null,null,null,null,{"$f":"الجدول1[[#This Row],[الموجود بالمخزن]]-الجدول1[[#This Row],[تم بيعه]]","v":0}]
[null,null,null,null,null,null,null,{"$f":"الجدول1[[#This Row],[الموجود بالمخزن]]-الجدول1[[#This Row],[تم بيعه]]","v":0}]
[null,null,null,null,null,null,null,{"$f":"الجدول1[[#This Row],[الموجود بالمخزن]]-الجدول1[[#This Row],[تم بيعه]]","v":0}]
[null,null,null,null,null,null,null,{"$f":"الجدول1[[#This Row],[الموجود بالمخزن]]-الجدول1[[#This Row],[تم بيعه]]","v":0}]
[null,null,null,null,null,null,null,{"$f":"الجدول1[[#This Row],[الموجود بالمخزن]]-الجدول1[[#This Row],[تم بيعه]]","v":0}]
[null,null,null,null,null,null,null,{"$f":"الجدول1[[#This Row],[الموجود بالمخزن]]-الجدول1[[#This Row],[تم بيعه]]","v":0}]
[null,null,null,null,null,null,null,{"$f":"الجدول1[[#This Row],[الموجود بالمخزن]]-الجدول1[[#This Row],[تم بيعه]]","v":0}]
[null,null,null,null,null,null,null,{"$f":"الجدول1[[#This Row],[الموجود بالمخزن]]-الجدول1[[#This Row],[تم بيعه]]","v":0}]
[null,null,null,null,null,null,null,{"$f":"الجدول1[[#This Row],[الموجود بالمخزن]]-الجدول1[[#This Row],[تم بيعه]]","v":0}]
[null,null,null,null,null,null,null,{"$f":"الجدول1[[#This Row],[الموجود بالمخزن]]-الجدول1[[#This Row],[تم بيعه]]","v":0}]
[null,null,null,null,null,null,null,{"$f":"الجدول1[[#This Row],[الموجود بالمخزن]]-الجدول1[[#This Row],[تم بيعه]]","v":0}]
[null,null,null,null,null,null,null,{"$f":"الجدول1[[#This Row],[الموجود بالمخزن]]-الجدول1[[#This Row],[تم بيعه]]","v":0}]
[null,null,null,null,null,null,null,{"$f":"الجدول1[[#This Row],[الموجود بالمخزن]]-الجدول1[[#This Row],[تم بيعه]]","v":0}]
[null,null,null,null,null,null,null,{"$f":"الجدول1[[#This Row],[الموجود بالمخزن]]-الجدول1[[#This Row],[تم بيعه]]","v":0}]
[null,null,null,null,null,null,null,{"$f":"الجدول1[[#This Row],[الموجود بالمخزن]]-الجدول1[[#This Row],[تم بيعه]]","v":0}]
[null,null,null,null,null,null,null,{"$f":"الجدول1[[#This Row],[الموجود بالمخزن]]-الجدول1[[#This Row],[تم بيعه]]","v":0}]
[null,null,null,null,null,null,null,{"$f":"الجدول1[[#This Row],[الموجود بالمخزن]]-الجدول1[[#This Row],[تم بيعه]]","v":0}]
[null,null,null,null,null,null,null,{"$f":"الجدول1[[#This Row],[الموجود بالمخزن]]-الجدول1[[#This Row],[تم بيعه]]","v":0}]
[null,null,null,null,null,null,null,{"$f":"الجدول1[[#This Row],[الموجود بالمخزن]]-الجدول1[[#This Row],[تم بيعه]]","v":0}]
[null,null,null,null,null,null,null,{"$f":"الجدول1[[#This Row],[الموجود بالمخزن]]-الجدول1[[#This Row],[تم بيعه]]","v":0}]
[null,null,null,null,null,null,null,{"$f":"الجدول1[[#This Row],[الموجود بالمخزن]]-الجدول1[[#This Row],[تم بيعه]]","v":0}]
[null,null,null,null,null,null,null,{"$f":"الجدول1[[#This Row],[الموجود بالمخزن]]-الجدول1[[#This Row],[تم بيعه]]","v":0}]
[null,null,null,null,null,null,null,{"$f":"الجدول1[[#This Row],[الموجود بالمخزن]]-الجدول1[[#This Row],[تم بيعه]]","v":0}]
[null,null,null,null,null,null,null,{"$f":"الجدول1[[#This Row],[الموجود بالمخزن]]-الجدول1[[#This Row],[تم بيعه]]","v":0}]
[null,null,null,null,null,null,null,{"$f":"الجدول1[[#This Row],[الموجود بالمخزن]]-الجدول1[[#This Row],[تم بيعه]]","v":0}]
[null,null,null,null,null,null,null,{"$f":"الجدول1[[#This Row],[الموجود بالمخزن]]-الجدول1[[#This Row],[تم بيعه]]","v":0}]
[null,null,null,null,null,null,null,{"$f":"الجدول1[[#This Row],[الموجود بالمخزن]]-الجدول1[[#This Row],[تم بيعه]]","v":0}]
[null,null,null,null,null,null,null,{"$f":"الجدول1[[#This Row],[الموجود بالمخزن]]-الجدول1[[#This Row],[تم بيعه]]","v":0}]
[null,null,null,null,null,null,null,{"$f":"الجدول1[[#This Row],[الموجود بالمخزن]]-الجدول1[[#This Row],[تم بيعه]]","v":0}]
[null,null,null,null,null,null,null,{"$f":"الجدول1[[#This Row],[الموجود بالمخزن]]-الجدول1[[#This Row],[تم بيعه]]","v":0}]
[null,null,null,null,null,null,null,{"$f":"الجدول1[[#This Row],[الموجود بالمخزن]]-الجدول1[[#This Row],[تم بيعه]]","v":0}]
[null,null,null,null,null,null,null,{"$f":"الجدول1[[#This Row],[الموجود بالمخزن]]-الجدول1[[#This Row],[تم بيعه]]","v":0}]
[null,null,null,null,null,null,null,{"$f":"الجدول1[[#This Row],[الموجود بالمخزن]]-الجدول1[[#This Row],[تم بيعه]]","v":0}]
[null,null,null,null,null,null,null,{"$f":"الجدول1[[#This Row],[الموجود بالمخزن]]-الجدول1[[#This Row],[تم بيعه]]","v":0}]
[null,null,null,null,null,null,null,{"$f":"الجدول1[[#This Row],[الموجود بالمخزن]]-الجدول1[[#This Row],[تم بيعه]]","v":0}]
[null,null,null,null,null,null,null,{"$f":"الجدول1[[#This Row],[الموجود بالمخزن]]-الجدول1[[#This Row],[تم بيعه]]","v":0}]
[null,null,null,null,null,null,null,{"$f":"الجدول1[[#This Row],[الموجود بالمخزن]]-الجدول1[[#This Row],[تم بيعه]]","v":0}]
[null,null,null,null,null,null,null,{"$f":"الجدول1[[#This Row],[الموجود بالمخزن]]-الجدول1[[#This Row],[تم بيعه]]","v":0}]
[null,null,null,null,null,null,null,{"$f":"الجدول1[[#This Row],[الموجود بالمخزن]]-الجدول1[[#This Row],[تم بيعه]]","v":0}]
[null,null,null,null,null,null,null,{"$f":"الجدول1[[#This Row],[الموجود بالمخزن]]-الجدول1[[#This Row],[تم بيعه]]","v":0}]
[null,null,null,null,null,null,null,{"$f":"الجدول1[[#This Row],[الموجود بالمخزن]]-الجدول1[[#This Row],[تم بيعه]]","v":0}]
[null,null,null,null,null,null,null,{"$f":"الجدول1[[#This Row],[الموجود بالمخزن]]-الجدول1[[#This Row],[تم بيعه]]","v":0}]
[null,null,null,null,null,null,null,{"$f":"الجدول1[[#This Row],[الموجود بالمخزن]]-الجدول1[[#This Row],[تم بيعه]]","v":0}]
[null,null,null,null,null,null,null,{"$f":"الجدول1[[#This Row],[الموجود بالمخزن]]-الجدول1[[#This Row],[تم بيعه]]","v":0}]
[null,null,null,null,null,null,null,{"$f":"الجدول1[[#This Row],[الموجود بالمخزن]]-الجدول1[[#This Row],[تم بيعه]]","v":0}]
[null,null,null,null,null,null,null,{"$f":"الجدول1[[#This Row],[الموجود بالمخزن]]-الجدول1[[#This Row],[تم بيعه]]","v":0}]
[null,null,null,null,null,null,null,{"$f":"الجدول1[[#This Row],[الموجود بالمخزن]]-الجدول1[[#This Row],[تم بيعه]]","v":0}]
[null,null,null,null,null,null,null,{"$f":"الجدول1[[#This Row],[الموجود بالمخزن]]-الجدول1[[#This Row],[تم بيعه]]","v":0}]
[null,null,null,null,null,null,null,{"$f":"الجدول1[[#This Row],[الموجود بالمخزن]]-الجدول1[[#This Row],[تم بيعه]]","v":0}]
[null,null,null,null,null,null,null,{"$f":"الجدول1[[#This Row],[الموجود بالمخزن]]-الجدول1[[#This Row],[تم بيعه]]","v":0}]
[null,null,null,null,null,null,null,{"$f":"الجدول1[[#This Row],[الموجود بالمخزن]]-الجدول1[[#This Row],[تم بيعه]]","v":0}]
[null,null,null,null,null,null,null,{"$f":"الجدول1[[#This Row],[الموجود بالمخزن]]-الجدول1[[#This Row],[تم بيعه]]","v":0}]
[null,null,null,null,null,null,null,{"$f":"الجدول1[[#This Row],[الموجود بالمخزن]]-الجدول1[[#This Row],[تم بيعه]]","v":0}]
[null,null,null,null,null,null,null,{"$f":"الجدول1[[#This Row],[الموجود بالمخزن]]-الجدول1[[#This Row],[تم بيعه]]","v":0}]
[null,null,null,null,null,null,null,{"$f":"الجدول1[[#This Row],[الموجود بالمخزن]]-الجدول1[[#This Row],[تم بيعه]]","v":0}]
[null,null,null,null,null,null,null,{"$f":"الجدول1[[#This Row],[الموجود بالمخزن]]-الجدول1[[#This Row],[تم بيعه]]","v":0}]
[null,null,null,null,null,null,null,{"$f":"الجدول1[[#This Row],[الموجود بالمخزن]]-الجدول1[[#This Row],[تم بيعه]]","v":0}]
[null,null,null,null,null,null,null,{"$f":"الجدول1[[#This Row],[الموجود بالمخزن]]-الجدول1[[#This Row],[تم بيعه]]","v":0}]
[null,null,null,null,null,null,null,{"$f":"الجدول1[[#This Row],[الموجود بالمخزن]]-الجدول1[[#This Row],[تم بيعه]]","v":0}]
[null,null,null,null,null,null,null,{"$f":"الجدول1[[#This Row],[الموجود بالمخزن]]-الجدول1[[#This Row],[تم بيعه]]","v":0}]
[null,null,null,null,null,null,null,{"$f":"الجدول1[[#This Row],[الموجود بالمخزن]]-الجدول1[[#This Row],[تم بيعه]]","v":0}]
[null,null,null,null,null,null,null,{"$f":"الجدول1[[#This Row],[الموجود بالمخزن]]-الجدول1[[#This Row],[تم بيعه]]","v":0}]
[null,null,null,null,null,null,null,{"$f":"الجدول1[[#This Row],[الموجود بالمخزن]]-الجدول1[[#This Row],[تم بيعه]]","v":0}]
[null,null,null,null,null,null,null,{"$f":"الجدول1[[#This Row],[الموجود بالمخزن]]-الجدول1[[#This Row],[تم بيعه]]","v":0}]
[null,null,null,null,null,null,null,{"$f":"الجدول1[[#This Row],[الموجود بالمخزن]]-الجدول1[[#This Row],[تم بيعه]]","v":0}]
[null,null,null,null,null,null,null,{"$f":"الجدول1[[#This Row],[الموجود بالمخزن]]-الجدول1[[#This Row],[تم بيعه]]","v":0}]
[null,null,null,null,null,null,null,{"$f":"الجدول1[[#This Row],[الموجود بالمخزن]]-الجدول1[[#This Row],[تم بيعه]]","v":0}]
[null,null,null,null,null,null,null,{"$f":"الجدول1[[#This Row],[الموجود بالمخزن]]-الجدول1[[#This Row],[تم بيعه]]","v":0}]
[null,null,null,null,null,null,null,{"$f":"الجدول1[[#This Row],[الموجود بالمخزن]]-الجدول1[[#This Row],[تم بيعه]]","v":0}]
[null,null,null,null,null,null,null,{"$f":"الجدول1[[#This Row],[الموجود بالمخزن]]-الجدول1[[#This Row],[تم بيعه]]","v":0}]
[null,null,null,null,null,null,null,{"$f":"الجدول1[[#This Row],[الموجود بالمخزن]]-الجدول1[[#This Row],[تم بيعه]]","v":0}]
[null,null,null,null,null,null,null,{"$f":"الجدول1[[#This Row],[الموجود بالمخزن]]-الجدول1[[#This Row],[تم بيعه]]","v":0}]
[null,null,null,null,null,null,null,{"$f":"الجدول1[[#This Row],[الموجود بالمخزن]]-الجدول1[[#This Row],[تم بيعه]]","v":0}]
[null,null,null,null,null,null,null,{"$f":"الجدول1[[#This Row],[الموجود بالمخزن]]-الجدول1[[#This Row],[تم بيعه]]","v":0}]
[null,null,null,null,null,null,null,{"$f":"الجدول1[[#This Row],[الموجود بالمخزن]]-الجدول1[[#This Row],[تم بيعه]]","v":0}]
[null,null,null,null,null,null,null,{"$f":"الجدول1[[#This Row],[الموجود بالمخزن]]-الجدول1[[#This Row],[تم بيعه]]","v":0}]
[null,null,null,null,null,null,null,{"$f":"الجدول1[[#This Row],[الموجود بالمخزن]]-الجدول1[[#This Row],[تم بيعه]]","v":0}]
[null,null,null,null,null,null,null,{"$f":"الجدول1[[#This Row],[الموجود بالمخزن]]-الجدول1[[#This Row],[تم بيعه]]","v":0}]
[null,null,null,null,null,null,null,{"$f":"الجدول1[[#This Row],[الموجود بالمخزن]]-الجدول1[[#This Row],[تم بيعه]]","v":0}]
[null,null,null,null,null,null,null,{"$f":"الجدول1[[#This Row],[الموجود بالمخزن]]-الجدول1[[#This Row],[تم بيعه]]","v":0}]
[null,null,null,null,null,null,null,{"$f":"الجدول1[[#This Row],[الموجود بالمخزن]]-الجدول1[[#This Row],[تم بيعه]]","v":0}]
[null,null,null,null,null,null,null,{"$f":"الجدول1[[#This Row],[الموجود بالمخزن]]-الجدول1[[#This Row],[تم بيعه]]","v":0}]
[null,null,null,null,null,null,null,{"$f":"الجدول1[[#This Row],[الموجود بالمخزن]]-الجدول1[[#This Row],[تم بيعه]]","v":0}]
[null,null,null,null,null,null,null,{"$f":"الجدول1[[#This Row],[الموجود بالمخزن]]-الجدول1[[#This Row],[تم بيعه]]","v":0}]
[null,null,null,null,null,null,null,{"$f":"الجدول1[[#This Row],[الموجود بالمخزن]]-الجدول1[[#This Row],[تم بيعه]]","v":0}]
[null,null,null,null,null,null,null,{"$f":"الجدول1[[#This Row],[الموجود بالمخزن]]-الجدول1[[#This Row],[تم بيعه]]","v":0}]
[null,null,null,null,null,null,null,{"$f":"الجدول1[[#This Row],[الموجود بالمخزن]]-الجدول1[[#This Row],[تم بيعه]]","v":0}]
[null,null,null,null,null,null,null,{"$f":"الجدول1[[#This Row],[الموجود بالمخزن]]-الجدول1[[#This Row],[تم بيعه]]","v":0}]
[null,null,null,null,null,null,null,{"$f":"الجدول1[[#This Row],[الموجود بالمخزن]]-الجدول1[[#This Row],[تم بيعه]]","v":0}]
[null,null,null,null,null,null,null,{"$f":"الجدول1[[#This Row],[الموجود بالمخزن]]-الجدول1[[#This Row],[تم بيعه]]","v":0}]
[null,null,null,null,null,null,null,{"$f":"الجدول1[[#This Row],[الموجود بالمخزن]]-الجدول1[[#This Row],[تم بيعه]]","v":0}]
[null,null,null,null,null,null,null,{"$f":"الجدول1[[#This Row],[الموجود بالمخزن]]-الجدول1[[#This Row],[تم بيعه]]","v":0}]
[null,null,null,null,null,null,null,{"$f":"الجدول1[[#This Row],[الموجود بالمخزن]]-الجدول1[[#This Row],[تم بيعه]]","v":0}]
[null,null,null,null,null,null,null,{"$f":"الجدول1[[#This Row],[الموجود بالمخزن]]-الجدول1[[#This Row],[تم بيعه]]","v":0}]
[null,null,null,null,null,null,null,{"$f":"الجدول1[[#This Row],[الموجود بالمخزن]]-الجدول1[[#This Row],[تم بيعه]]","v":0}]
[null,null,null,null,null,null,null,{"$f":"الجدول1[[#This Row],[الموجود بالمخزن]]-الجدول1[[#This Row],[تم بيعه]]","v":0}]
[null,null,null,null,null,null,null,{"$f":"الجدول1[[#This Row],[الموجود بالمخزن]]-الجدول1[[#This Row],[تم بيعه]]","v":0}]
[null,null,null,null,null,null,null,{"$f":"الجدول1[[#This Row],[الموجود بالمخزن]]-الجدول1[[#This Row],[تم بيعه]]","v":0}]
[null,null,null,null,null,null,null,{"$f":"الجدول1[[#This Row],[الموجود بالمخزن]]-الجدول1[[#This Row],[تم بيعه]]","v":0}]
[null,null,null,null,null,null,null,{"$f":"الجدول1[[#This Row],[الموجود بالمخزن]]-الجدول1[[#This Row],[تم بيعه]]","v":0}]
[null,null,null,null,null,null,null,{"$f":"الجدول1[[#This Row],[الموجود بالمخزن]]-الجدول1[[#This Row],[تم بيعه]]","v":0}]
[null,null,null,null,null,null,null,{"$f":"الجدول1[[#This Row],[الموجود بالمخزن]]-الجدول1[[#This Row],[تم بيعه]]","v":0}]
[null,null,null,null,null,null,null,{"$f":"الجدول1[[#This Row],[الموجود بالمخزن]]-الجدول1[[#This Row],[تم بيعه]]","v":0}]
[null,null,null,null,null,null,null,{"$f":"الجدول1[[#This Row],[الموجود بالمخزن]]-الجدول1[[#This Row],[تم بيعه]]","v":0}]
[null,null,null,null,null,null,null,{"$f":"الجدول1[[#This Row],[الموجود بالمخزن]]-الجدول1[[#This Row],[تم بيعه]]","v":0}]
[null,null,null,null,null,null,null,{"$f":"الجدول1[[#This Row],[الموجود بالمخزن]]-الجدول1[[#This Row],[تم بيعه]]","v":0}]
[null,null,null,null,null,null,null,{"$f":"الجدول1[[#This Row],[الموجود بالمخزن]]-الجدول1[[#This Row],[تم بيعه]]","v":0}]
[null,null,null,null,null,null,null,{"$f":"الجدول1[[#This Row],[الموجود بالمخزن]]-الجدول1[[#This Row],[تم بيعه]]","v":0}]
[null,null,null,null,null,null,null,{"$f":"الجدول1[[#This Row],[الموجود بالمخزن]]-الجدول1[[#This Row],[تم بيعه]]","v":0}]
[null,null,null,null,null,null,null,{"$f":"الجدول1[[#This Row],[الموجود بالمخزن]]-الجدول1[[#This Row],[تم بيعه]]","v":0}]
[null,null,null,null,null,null,null,{"$f":"الجدول1[[#This Row],[الموجود بالمخزن]]-الجدول1[[#This Row],[تم بيعه]]","v":0}]
[null,null,null,null,null,null,null,{"$f":"الجدول1[[#This Row],[الموجود بالمخزن]]-الجدول1[[#This Row],[تم بيعه]]","v":0}]
[null,null,null,null,null,null,null,{"$f":"الجدول1[[#This Row],[الموجود بالمخزن]]-الجدول1[[#This Row],[تم بيعه]]","v":0}]
[null,null,null,null,null,null,null,{"$f":"الجدول1[[#This Row],[الموجود بالمخزن]]-الجدول1[[#This Row],[تم بيعه]]","v":0}]
[null,null,null,null,null,null,null,{"$f":"الجدول1[[#This Row],[الموجود بالمخزن]]-الجدول1[[#This Row],[تم بيعه]]","v":0}]
[null,null,null,null,null,null,null,{"$f":"الجدول1[[#This Row],[الموجود بالمخزن]]-الجدول1[[#This Row],[تم بيعه]]","v":0}]
[null,null,null,null,null,null,null,{"$f":"الجدول1[[#This Row],[الموجود بالمخزن]]-الجدول1[[#This Row],[تم بيعه]]","v":0}]
[null,null,null,null,null,null,null,{"$f":"الجدول1[[#This Row],[الموجود بالمخزن]]-الجدول1[[#This Row],[تم بيعه]]","v":0}]
[null,null,null,null,null,null,null,{"$f":"الجدول1[[#This Row],[الموجود بالمخزن]]-الجدول1[[#This Row],[تم بيعه]]","v":0}]
[null,null,null,null,null,null,null,{"$f":"الجدول1[[#This Row],[الموجود بالمخزن]]-الجدول1[[#This Row],[تم بيعه]]","v":0}]
[null,null,null,null,null,null,null,{"$f":"الجدول1[[#This Row],[الموجود بالمخزن]]-الجدول1[[#This Row],[تم بيعه]]","v":0}]
[null,null,null,null,null,null,null,{"$f":"الجدول1[[#This Row],[الموجود بالمخزن]]-الجدول1[[#This Row],[تم بيعه]]","v":0}]
[null,null,null,null,null,null,null,{"$f":"الجدول1[[#This Row],[الموجود بالمخزن]]-الجدول1[[#This Row],[تم بيعه]]","v":0}]
[null,null,null,null,null,null,null,{"$f":"الجدول1[[#This Row],[الموجود بالمخزن]]-الجدول1[[#This Row],[تم بيعه]]","v":0}]
[null,null,null,null,null,null,null,{"$f":"الجدول1[[#This Row],[الموجود بالمخزن]]-الجدول1[[#This Row],[تم بيعه]]","v":0}]
[null,null,null,null,null,null,null,{"$f":"الجدول1[[#This Row],[الموجود بالمخزن]]-الجدول1[[#This Row],[تم بيعه]]","v":0}]
[null,null,null,null,null,null,null,{"$f":"الجدول1[[#This Row],[الموجود بالمخزن]]-الجدول1[[#This Row],[تم بيعه]]","v":0}]
[null,null,null,null,null,null,null,{"$f":"الجدول1[[#This Row],[الموجود بالمخزن]]-الجدول1[[#This Row],[تم بيعه]]","v":0}]
[null,null,null,null,null,null,null,{"$f":"الجدول1[[#This Row],[الموجود بالمخزن]]-الجدول1[[#This Row],[تم بيعه]]","v":0}]
[null,null,null,null,null,null,null,{"$f":"الجدول1[[#This Row],[الموجود بالمخزن]]-الجدول1[[#This Row],[تم بيعه]]","v":0}]
[null,null,null,null,null,null,null,{"$f":"الجدول1[[#This Row],[الموجود بالمخزن]]-الجدول1[[#This Row],[تم بيعه]]","v":0}]
[null,null,null,null,null,null,null,{"$f":"الجدول1[[#This Row],[الموجود بالمخزن]]-الجدول1[[#This Row],[تم بيعه]]","v":0}]
[null,null,null,null,null,null,null,{"$f":"الجدول1[[#This Row],[الموجود بالمخزن]]-الجدول1[[#This Row],[تم بيعه]]","v":0}]
[null,null,null,null,null,null,null,{"$f":"الجدول1[[#This Row],[الموجود بالمخزن]]-الجدول1[[#This Row],[تم بيعه]]","v":0}]
[null,null,null,null,null,null,null,{"$f":"الجدول1[[#This Row],[الموجود بالمخزن]]-الجدول1[[#This Row],[تم بيعه]]","v":0}]
[null,null,null,null,null,null,null,{"$f":"الجدول1[[#This Row],[الموجود بالمخزن]]-الجدول1[[#This Row],[تم بيعه]]","v":0}]
[null,null,null,null,null,null,null,{"$f":"الجدول1[[#This Row],[الموجود بالمخزن]]-الجدول1[[#This Row],[تم بيعه]]","v":0}]
[null,null,null,null,null,null,null,{"$f":"الجدول1[[#This Row],[الموجود بالمخزن]]-الجدول1[[#This Row],[تم بيعه]]","v":0}]
[null,null,null,null,null,null,null,{"$f":"الجدول1[[#This Row],[الموجود بالمخزن]]-الجدول1[[#This Row],[تم بيعه]]","v":0}]
[null,null,null,null,null,null,null,{"$f":"الجدول1[[#This Row],[الموجود بالمخزن]]-الجدول1[[#This Row],[تم بيعه]]","v":0}]
[null,null,null,null,null,null,null,{"$f":"الجدول1[[#This Row],[الموجود بالمخزن]]-الجدول1[[#This Row],[تم بيعه]]","v":0}]
[null,null,null,null,null,null,null,{"$f":"الجدول1[[#This Row],[الموجود بالمخزن]]-الجدول1[[#This Row],[تم بيعه]]","v":0}]
[null,null,null,null,null,null,null,{"$f":"الجدول1[[#This Row],[الموجود بالمخزن]]-الجدول1[[#This Row],[تم بيعه]]","v":0}]
[null,null,null,null,null,null,null,{"$f":"الجدول1[[#This Row],[الموجود بالمخزن]]-الجدول1[[#This Row],[تم بيعه]]","v":0}]
[null,null,null,null,null,null,null,{"$f":"الجدول1[[#This Row],[الموجود بالمخزن]]-الجدول1[[#This Row],[تم بيعه]]","v":0}]
[null,null,null,null,null,null,null,{"$f":"الجدول1[[#This Row],[الموجود بالمخزن]]-الجدول1[[#This Row],[تم بيعه]]","v":0}]
[null,null,null,null,null,null,null,{"$f":"الجدول1[[#This Row],[الموجود بالمخزن]]-الجدول1[[#This Row],[تم بيعه]]","v":0}]
[null,null,null,null,null,null,null,{"$f":"الجدول1[[#This Row],[الموجود بالمخزن]]-الجدول1[[#This Row],[تم بيعه]]","v":0}]
[null,null,null,null,null,null,null,{"$f":"الجدول1[[#This Row],[الموجود بالمخزن]]-الجدول1[[#This Row],[تم بيعه]]","v":0}]
[null,null,null,null,null,null,null,{"$f":"الجدول1[[#This Row],[الموجود بالمخزن]]-الجدول1[[#This Row],[تم بيعه]]","v":0}]
[null,null,null,null,null,null,null,{"$f":"الجدول1[[#This Row],[الموجود بالمخزن]]-الجدول1[[#This Row],[تم بيعه]]","v":0}]
[null,null,null,null,null,null,null,{"$f":"الجدول1[[#This Row],[الموجود بالمخزن]]-الجدول1[[#This Row],[تم بيعه]]","v":0}]
[null,null,null,null,null,null,null,{"$f":"الجدول1[[#This Row],[الموجود بالمخزن]]-الجدول1[[#This Row],[تم بيعه]]","v":0}]
[null,null,null,null,null,null,null,{"$f":"الجدول1[[#This Row],[الموجود بالمخزن]]-الجدول1[[#This Row],[تم بيعه]]","v":0}]
[null,null,null,null,null,null,null,{"$f":"الجدول1[[#This Row],[الموجود بالمخزن]]-الجدول1[[#This Row],[تم بيعه]]","v":0}]
[null,null,null,null,null,null,null,{"$f":"الجدول1[[#This Row],[الموجود بالمخزن]]-الجدول1[[#This Row],[تم بيعه]]","v":0}]
[null,null,null,null,null,null,null,{"$f":"الجدول1[[#This Row],[الموجود بالمخزن]]-الجدول1[[#This Row],[تم بيعه]]","v":0}]
[null,null,null,null,null,null,null,{"$f":"الجدول1[[#This Row],[الموجود بالمخزن]]-الجدول1[[#This Row],[تم بيعه]]","v":0}]
[null,null,null,null,null,null,null,{"$f":"الجدول1[[#This Row],[الموجود بالمخزن]]-الجدول1[[#This Row],[تم بيعه]]","v":0}]
[null,null,null,null,null,null,null,{"$f":"الجدول1[[#This Row],[الموجود بالمخزن]]-الجدول1[[#This Row],[تم بيعه]]","v":0}]
[null,null,null,null,null,null,null,{"$f":"الجدول1[[#This Row],[الموجود بالمخزن]]-الجدول1[[#This Row],[تم بيعه]]","v":0}]
[null,null,null,null,null,null,null,{"$f":"الجدول1[[#This Row],[الموجود بالمخزن]]-الجدول1[[#This Row],[تم بيعه]]","v":0}]
[null,null,null,null,null,null,null,{"$f":"الجدول1[[#This Row],[الموجود بالمخزن]]-الجدول1[[#This Row],[تم بيعه]]","v":0}]
[null,null,null,null,null,null,null,{"$f":"الجدول1[[#This Row],[الموجود بالمخزن]]-الجدول1[[#This Row],[تم بيعه]]","v":0}]
[null,null,null,null,null,null,null,{"$f":"الجدول1[[#This Row],[الموجود بالمخزن]]-الجدول1[[#This Row],[تم بيعه]]","v":0}]
[null,null,null,null,null,null,null,{"$f":"الجدول1[[#This Row],[الموجود بالمخزن]]-الجدول1[[#This Row],[تم بيعه]]","v":0}]
[null,null,null,null,null,null,null,{"$f":"الجدول1[[#This Row],[الموجود بالمخزن]]-الجدول1[[#This Row],[تم بيعه]]","v":0}]
[null,null,null,null,null,null,null,{"$f":"الجدول1[[#This Row],[الموجود بالمخزن]]-الجدول1[[#This Row],[تم بيعه]]","v":0}]
[null,null,null,null,null,null,null,{"$f":"الجدول1[[#This Row],[الموجود بالمخزن]]-الجدول1[[#This Row],[تم بيعه]]","v":0}]
[null,null,null,null,null,null,null,{"$f":"الجدول1[[#This Row],[الموجود بالمخزن]]-الجدول1[[#This Row],[تم بيعه]]","v":0}]
[null,null,null,null,null,null,null,{"$f":"الجدول1[[#This Row],[الموجود بالمخزن]]-الجدول1[[#This Row],[تم بيعه]]","v":0}]
[null,null,null,null,null,null,null,{"$f":"الجدول1[[#This Row],[الموجود بالمخزن]]-الجدول1[[#This Row],[تم بيعه]]","v":0}]
[null,null,null,null,null,null,null,{"$f":"الجدول1[[#This Row],[الموجود بالمخزن]]-الجدول1[[#This Row],[تم بيعه]]","v":0}]
[null,null,null,null,null,null,null,{"$f":"الجدول1[[#This Row],[الموجود بالمخزن]]-الجدول1[[#This Row],[تم بيعه]]","v":0}]
[null,null,null,null,null,null,null,{"$f":"الجدول1[[#This Row],[الموجود بالمخزن]]-الجدول1[[#This Row],[تم بيعه]]","v":0}]
[null,null,null,null,null,null,null,{"$f":"الجدول1[[#This Row],[الموجود بالمخزن]]-الجدول1[[#This Row],[تم بيعه]]","v":0}]
[null,null,null,null,null,null,null,{"$f":"الجدول1[[#This Row],[الموجود بالمخزن]]-الجدول1[[#This Row],[تم بيعه]]","v":0}]
[null,null,null,null,null,null,null,{"$f":"الجدول1[[#This Row],[الموجود بالمخزن]]-الجدول1[[#This Row],[تم بيعه]]","v":0}]
[null,null,null,null,null,null,null,{"$f":"الجدول1[[#This Row],[الموجود بالمخزن]]-الجدول1[[#This Row],[تم بيعه]]","v":0}]
[null,null,null,null,null,null,null,{"$f":"الجدول1[[#This Row],[الموجود بالمخزن]]-الجدول1[[#This Row],[تم بيعه]]","v":0}]
[null,null,null,null,null,null,null,{"$f":"الجدول1[[#This Row],[الموجود بالمخزن]]-الجدول1[[#This Row],[تم بيعه]]","v":0}]
[null,null,null,null,null,null,null,{"$f":"الجدول1[[#This Row],[الموجود بالمخزن]]-الجدول1[[#This Row],[تم بيعه]]","v":0}]
[null,null,null,null,null,null,null,{"$f":"الجدول1[[#This Row],[الموجود بالمخزن]]-الجدول1[[#This Row],[تم بيعه]]","v":0}]
[null,null,null,null,null,null,null,{"$f":"الجدول1[[#This Row],[الموجود بالمخزن]]-الجدول1[[#This Row],[تم بيعه]]","v":0}]
[null,null,null,null,null,null,null,{"$f":"الجدول1[[#This Row],[الموجود بالمخزن]]-الجدول1[[#This Row],[تم بيعه]]","v":0}]
[null,null,null,null,null,null,null,{"$f":"الجدول1[[#This Row],[الموجود بالمخزن]]-الجدول1[[#This Row],[تم بيعه]]","v":0}]
[null,null,null,null,null,null,null,{"$f":"الجدول1[[#This Row],[الموجود بالمخزن]]-الجدول1[[#This Row],[تم بيعه]]","v":0}]
[null,null,null,null,null,null,null,{"$f":"الجدول1[[#This Row],[الموجود بالمخزن]]-الجدول1[[#This Row],[تم بيعه]]","v":0}]
[null,null,null,null,null,null,null,{"$f":"الجدول1[[#This Row],[الموجود بالمخزن]]-الجدول1[[#This Row],[تم بيعه]]","v":0}]
[null,null,null,null,null,null,null,{"$f":"الجدول1[[#This Row],[الموجود بالمخزن]]-الجدول1[[#This Row],[تم بيعه]]","v":0}]
[null,null,null,null,null,null,null,{"$f":"الجدول1[[#This Row],[الموجود بالمخزن]]-الجدول1[[#This Row],[تم بيعه]]","v":0}]
[null,null,null,null,null,null,null,{"$f":"الجدول1[[#This Row],[الموجود بالمخزن]]-الجدول1[[#This Row],[تم بيعه]]","v":0}]
[null,null,null,null,null,null,null,{"$f":"الجدول1[[#This Row],[الموجود بالمخزن]]-الجدول1[[#This Row],[تم بيعه]]","v":0}]
[null,null,null,null,null,null,null,{"$f":"الجدول1[[#This Row],[الموجود بالمخزن]]-الجدول1[[#This Row],[تم بيعه]]","v":0}]
[null,null,null,null,null,null,null,{"$f":"الجدول1[[#This Row],[الموجود بالمخزن]]-الجدول1[[#This Row],[تم بيعه]]","v":0}]
[null,null,null,null,null,null,null,{"$f":"الجدول1[[#This Row],[الموجود بالمخزن]]-الجدول1[[#This Row],[تم بيعه]]","v":0}]
[null,null,null,null,null,null,null,{"$f":"الجدول1[[#This Row],[الموجود بالمخزن]]-الجدول1[[#This Row],[تم بيعه]]","v":0}]
[null,null,null,null,null,null,null,{"$f":"الجدول1[[#This Row],[الموجود بالمخزن]]-الجدول1[[#This Row],[تم بيعه]]","v":0}]
[null,null,null,null,null,null,null,{"$f":"الجدول1[[#This Row],[الموجود بالمخزن]]-الجدول1[[#This Row],[تم بيعه]]","v":0}]
[null,null,null,null,null,null,null,{"$f":"الجدول1[[#This Row],[الموجود بالمخزن]]-الجدول1[[#This Row],[تم بيعه]]","v":0}]
[null,null,null,null,null,null,null,{"$f":"الجدول1[[#This Row],[الموجود بالمخزن]]-الجدول1[[#This Row],[تم بيعه]]","v":0}]
[null,null,null,null,null,null,null,{"$f":"الجدول1[[#This Row],[الموجود بالمخزن]]-الجدول1[[#This Row],[تم بيعه]]","v":0}]
[null,null,null,null,null,null,null,{"$f":"الجدول1[[#This Row],[الموجود بالمخزن]]-الجدول1[[#This Row],[تم بيعه]]","v":0}]
[null,null,null,null,null,null,null,{"$f":"الجدول1[[#This Row],[الموجود بالمخزن]]-الجدول1[[#This Row],[تم بيعه]]","v":0}]
[null,null,null,null,null,null,null,{"$f":"الجدول1[[#This Row],[الموجود بالمخزن]]-الجدول1[[#This Row],[تم بيعه]]","v":0}]
[null,null,null,null,null,null,null,{"$f":"الجدول1[[#This Row],[الموجود بالمخزن]]-الجدول1[[#This Row],[تم بيعه]]","v":0}]
[null,null,null,null,null,null,null,{"$f":"الجدول1[[#This Row],[الموجود بالمخزن]]-الجدول1[[#This Row],[تم بيعه]]","v":0}]
[null,null,null,null,null,null,null,{"$f":"الجدول1[[#This Row],[الموجود بالمخزن]]-الجدول1[[#This Row],[تم بيعه]]","v":0}]
[null,null,null,null,null,null,null,{"$f":"الجدول1[[#This Row],[الموجود بالمخزن]]-الجدول1[[#This Row],[تم بيعه]]","v":0}]
[null,null,null,null,null,null,null,{"$f":"الجدول1[[#This Row],[الموجود بالمخزن]]-الجدول1[[#This Row],[تم بيعه]]","v":0}]
[null,null,null,null,null,null,null,{"$f":"الجدول1[[#This Row],[الموجود بالمخزن]]-الجدول1[[#This Row],[تم بيعه]]","v":0}]
[null,null,null,null,null,null,null,{"$f":"الجدول1[[#This Row],[الموجود بالمخزن]]-الجدول1[[#This Row],[تم بيعه]]","v":0}]
[null,null,null,null,null,null,null,{"$f":"الجدول1[[#This Row],[الموجود بالمخزن]]-الجدول1[[#This Row],[تم بيعه]]","v":0}]
[null,null,null,null,null,null,null,{"$f":"الجدول1[[#This Row],[الموجود بالمخزن]]-الجدول1[[#This Row],[تم بيعه]]","v":0}]
[null,null,null,null,null,null,null,{"$f":"الجدول1[[#This Row],[الموجود بالمخزن]]-الجدول1[[#This Row],[تم بيعه]]","v":0}]
[null,null,null,null,null,null,null,{"$f":"الجدول1[[#This Row],[الموجود بالمخزن]]-الجدول1[[#This Row],[تم بيعه]]","v":0}]
[null,null,null,null,null,null,null,{"$f":"الجدول1[[#This Row],[الموجود بالمخزن]]-الجدول1[[#This Row],[تم بيعه]]","v":0}]
[null,null,null,null,null,null,null,{"$f":"الجدول1[[#This Row],[الموجود بالمخزن]]-الجدول1[[#This Row],[تم بيعه]]","v":0}]
[null,null,null,null,null,null,null,{"$f":"الجدول1[[#This Row],[الموجود بالمخزن]]-الجدول1[[#This Row],[تم بيعه]]","v":0}]
[null,null,null,null,null,null,null,{"$f":"الجدول1[[#This Row],[الموجود بالمخزن]]-الجدول1[[#This Row],[تم بيعه]]","v":0}]
[null,null,null,null,null,null,null,{"$f":"الجدول1[[#This Row],[الموجود بالمخزن]]-الجدول1[[#This Row],[تم بيعه]]","v":0}]
[null,null,null,null,null,null,null,{"$f":"الجدول1[[#This Row],[الموجود بالمخزن]]-الجدول1[[#This Row],[تم بيعه]]","v":0}]
[null,null,null,null,null,null,null,{"$f":"الجدول1[[#This Row],[الموجود بالمخزن]]-الجدول1[[#This Row],[تم بيعه]]","v":0}]
[null,null,null,null,null,null,null,{"$f":"الجدول1[[#This Row],[الموجود بالمخزن]]-الجدول1[[#This Row],[تم بيعه]]","v":0}]
[null,null,null,null,null,null,null,{"$f":"الجدول1[[#This Row],[الموجود بالمخزن]]-الجدول1[[#This Row],[تم بيعه]]","v":0}]
[null,null,null,null,null,null,null,{"$f":"الجدول1[[#This Row],[الموجود بالمخزن]]-الجدول1[[#This Row],[تم بيعه]]","v":0}]
[null,null,null,null,null,null,null,{"$f":"الجدول1[[#This Row],[الموجود بالمخزن]]-الجدول1[[#This Row],[تم بيعه]]","v":0}]
[null,null,null,null,null,null,null,{"$f":"الجدول1[[#This Row],[الموجود بالمخزن]]-الجدول1[[#This Row],[تم بيعه]]","v":0}]
[null,null,null,null,null,null,null,{"$f":"الجدول1[[#This Row],[الموجود بالمخزن]]-الجدول1[[#This Row],[تم بيعه]]","v":0}]
[null,null,null,null,null,null,null,{"$f":"الجدول1[[#This Row],[الموجود بالمخزن]]-الجدول1[[#This Row],[تم بيعه]]","v":0}]
[null,null,null,null,null,null,null,{"$f":"الجدول1[[#This Row],[الموجود بالمخزن]]-الجدول1[[#This Row],[تم بيعه]]","v":0}]
[null,null,null,null,null,null,null,{"$f":"الجدول1[[#This Row],[الموجود بالمخزن]]-الجدول1[[#This Row],[تم بيعه]]","v":0}]
[null,null,null,null,null,null,null,{"$f":"الجدول1[[#This Row],[الموجود بالمخزن]]-الجدول1[[#This Row],[تم بيعه]]","v":0}]
[null,null,null,null,null,null,null,{"$f":"الجدول1[[#This Row],[الموجود بالمخزن]]-الجدول1[[#This Row],[تم بيعه]]","v":0}]
[null,null,null,null,null,null,null,{"$f":"الجدول1[[#This Row],[الموجود بالمخزن]]-الجدول1[[#This Row],[تم بيعه]]","v":0}]
[null,null,null,null,null,null,null,{"$f":"الجدول1[[#This Row],[الموجود بالمخزن]]-الجدول1[[#This Row],[تم بيعه]]","v":0}]
[null,null,null,null,null,null,null,{"$f":"الجدول1[[#This Row],[الموجود بالمخزن]]-الجدول1[[#This Row],[تم بيعه]]","v":0}]
[null,null,null,null,null,null,null,{"$f":"الجدول1[[#This Row],[الموجود بالمخزن]]-الجدول1[[#This Row],[تم بيعه]]","v":0}]
[null,null,null,null,null,null,null,{"$f":"الجدول1[[#This Row],[الموجود بالمخزن]]-الجدول1[[#This Row],[تم بيعه]]","v":0}]
[null,null,null,null,null,null,null,{"$f":"الجدول1[[#This Row],[الموجود بالمخزن]]-الجدول1[[#This Row],[تم بيعه]]","v":0}]
[null,null,null,null,null,null,null,{"$f":"الجدول1[[#This Row],[الموجود بالمخزن]]-الجدول1[[#This Row],[تم بيعه]]","v":0}]
[null,null,null,null,null,null,null,{"$f":"الجدول1[[#This Row],[الموجود بالمخزن]]-الجدول1[[#This Row],[تم بيعه]]","v":0}]
[null,null,null,null,null,null,null,{"$f":"الجدول1[[#This Row],[الموجود بالمخزن]]-الجدول1[[#This Row],[تم بيعه]]","v":0}]
[null,null,null,null,null,null,null,{"$f":"الجدول1[[#This Row],[الموجود بالمخزن]]-الجدول1[[#This Row],[تم بيعه]]","v":0}]
[null,null,null,null,null,null,null,{"$f":"الجدول1[[#This Row],[الموجود بالمخزن]]-الجدول1[[#This Row],[تم بيعه]]","v":0}]
[null,null,null,null,null,null,null,{"$f":"الجدول1[[#This Row],[الموجود بالمخزن]]-الجدول1[[#This Row],[تم بيعه]]","v":0}]
[null,null,null,null,null,null,null,{"$f":"الجدول1[[#This Row],[الموجود بالمخزن]]-الجدول1[[#This Row],[تم بيعه]]","v":0}]
[null,null,null,null,null,null,null,{"$f":"الجدول1[[#This Row],[الموجود بالمخزن]]-الجدول1[[#This Row],[تم بيعه]]","v":0}]
[null,null,null,null,null,null,null,{"$f":"الجدول1[[#This Row],[الموجود بالمخزن]]-الجدول1[[#This Row],[تم بيعه]]","v":0}]
[null,null,null,null,null,null,null,{"$f":"الجدول1[[#This Row],[الموجود بالمخزن]]-الجدول1[[#This Row],[تم بيعه]]","v":0}]
[null,null,null,null,null,null,null,{"$f":"الجدول1[[#This Row],[الموجود بالمخزن]]-الجدول1[[#This Row],[تم بيعه]]","v":0}]
[null,null,null,null,null,null,null,{"$f":"الجدول1[[#This Row],[الموجود بالمخزن]]-الجدول1[[#This Row],[تم بيعه]]","v":0}]
[null,null,null,null,null,null,null,{"$f":"الجدول1[[#This Row],[الموجود بالمخزن]]-الجدول1[[#This Row],[تم بيعه]]","v":0}]
[null,null,null,null,null,null,null,{"$f":"الجدول1[[#This Row],[الموجود بالمخزن]]-الجدول1[[#This Row],[تم بيعه]]","v":0}]
[null,null,null,null,null,null,null,{"$f":"الجدول1[[#This Row],[الموجود بالمخزن]]-الجدول1[[#This Row],[تم بيعه]]","v":0}]
[null,null,null,null,null,null,null,{"$f":"الجدول1[[#This Row],[الموجود بالمخزن]]-الجدول1[[#This Row],[تم بيعه]]","v":0}]
[null,null,null,null,null,null,null,{"$f":"الجدول1[[#This Row],[الموجود بالمخزن]]-الجدول1[[#This Row],[تم بيعه]]","v":0}]
[null,null,null,null,null,null,null,{"$f":"الجدول1[[#This Row],[الموجود بالمخزن]]-الجدول1[[#This Row],[تم بيعه]]","v":0}]
[null,null,null,null,null,null,null,{"$f":"الجدول1[[#This Row],[الموجود بالمخزن]]-الجدول1[[#This Row],[تم بيعه]]","v":0}]
[null,null,null,null,null,null,null,{"$f":"الجدول1[[#This Row],[الموجود بالمخزن]]-الجدول1[[#This Row],[تم بيعه]]","v":0}]
[null,null,null,null,null,null,null,{"$f":"الجدول1[[#This Row],[الموجود بالمخزن]]-الجدول1[[#This Row],[تم بيعه]]","v":0}]
[null,null,null,null,null,null,null,{"$f":"الجدول1[[#This Row],[الموجود بالمخزن]]-الجدول1[[#This Row],[تم بيعه]]","v":0}]
[null,null,null,null,null,null,null,{"$f":"الجدول1[[#This Row],[الموجود بالمخزن]]-الجدول1[[#This Row],[تم بيعه]]","v":0}]
[null,null,null,null,null,null,null,{"$f":"الجدول1[[#This Row],[الموجود بالمخزن]]-الجدول1[[#This Row],[تم بيعه]]","v":0}]
[null,null,null,null,null,null,null,{"$f":"الجدول1[[#This Row],[الموجود بالمخزن]]-الجدول1[[#This Row],[تم بيعه]]","v":0}]
[null,null,null,null,null,null,null,{"$f":"الجدول1[[#This Row],[الموجود بالمخزن]]-الجدول1[[#This Row],[تم بيعه]]","v":0}]
[null,null,null,null,null,null,null,{"$f":"الجدول1[[#This Row],[الموجود بالمخزن]]-الجدول1[[#This Row],[تم بيعه]]","v":0}]
[null,null,null,null,null,null,null,{"$f":"الجدول1[[#This Row],[الموجود بالمخزن]]-الجدول1[[#This Row],[تم بيعه]]","v":0}]
[null,null,null,null,null,null,null,{"$f":"الجدول1[[#This Row],[الموجود بالمخزن]]-الجدول1[[#This Row],[تم بيعه]]","v":0}]
[null,null,null,null,null,null,null,{"$f":"الجدول1[[#This Row],[الموجود بالمخزن]]-الجدول1[[#This Row],[تم بيعه]]","v":0}]
[null,null,null,null,null,null,null,{"$f":"الجدول1[[#This Row],[الموجود بالمخزن]]-الجدول1[[#This Row],[تم بيعه]]","v":0}]
[null,null,null,null,null,null,null,{"$f":"الجدول1[[#This Row],[الموجود بالمخزن]]-الجدول1[[#This Row],[تم بيعه]]","v":0}]
[null,null,null,null,null,null,null,{"$f":"الجدول1[[#This Row],[الموجود بالمخزن]]-الجدول1[[#This Row],[تم بيعه]]","v":0}]
[null,null,null,null,null,null,null,{"$f":"الجدول1[[#This Row],[الموجود بالمخزن]]-الجدول1[[#This Row],[تم بيعه]]","v":0}]
[null,null,null,null,null,null,null,{"$f":"الجدول1[[#This Row],[الموجود بالمخزن]]-الجدول1[[#This Row],[تم بيعه]]","v":0}]
[null,null,null,null,null,null,null,{"$f":"الجدول1[[#This Row],[الموجود بالمخزن]]-الجدول1[[#This Row],[تم بيعه]]","v":0}]
[null,null,null,null,null,null,null,{"$f":"الجدول1[[#This Row],[الموجود بالمخزن]]-الجدول1[[#This Row],[تم بيعه]]","v":0}]
[null,null,null,null,null,null,null,{"$f":"الجدول1[[#This Row],[الموجود بالمخزن]]-الجدول1[[#This Row],[تم بيعه]]","v":0}]
[null,null,null,null,null,null,null,{"$f":"الجدول1[[#This Row],[الموجود بالمخزن]]-الجدول1[[#This Row],[تم بيعه]]","v":0}]
[null,null,null,null,null,null,null,{"$f":"الجدول1[[#This Row],[الموجود بالمخزن]]-الجدول1[[#This Row],[تم بيعه]]","v":0}]
[null,null,null,null,null,null,null,{"$f":"الجدول1[[#This Row],[الموجود بالمخزن]]-الجدول1[[#This Row],[تم بيعه]]","v":0}]
[null,null,null,null,null,null,null,{"$f":"الجدول1[[#This Row],[الموجود بالمخزن]]-الجدول1[[#This Row],[تم بيعه]]","v":0}]
[null,null,null,null,null,null,null,{"$f":"الجدول1[[#This Row],[الموجود بالمخزن]]-الجدول1[[#This Row],[تم بيعه]]","v":0}]
[null,null,null,null,null,null,null,{"$f":"الجدول1[[#This Row],[الموجود بالمخزن]]-الجدول1[[#This Row],[تم بيعه]]","v":0}]
[null,null,null,null,null,null,null,{"$f":"الجدول1[[#This Row],[الموجود بالمخزن]]-الجدول1[[#This Row],[تم بيعه]]","v":0}]
[null,null,null,null,null,null,null,{"$f":"الجدول1[[#This Row],[الموجود بالمخزن]]-الجدول1[[#This Row],[تم بيعه]]","v":0}]
[null,null,null,null,null,null,null,{"$f":"الجدول1[[#This Row],[الموجود بالمخزن]]-الجدول1[[#This Row],[تم بيعه]]","v":0}]
[null,null,null,null,null,null,null,{"$f":"الجدول1[[#This Row],[الموجود بالمخزن]]-الجدول1[[#This Row],[تم بيعه]]","v":0}]
[null,null,null,null,null,null,null,{"$f":"الجدول1[[#This Row],[الموجود بالمخزن]]-الجدول1[[#This Row],[تم بيعه]]","v":0}]
[null,null,null,null,null,null,null,{"$f":"الجدول1[[#This Row],[الموجود بالمخزن]]-الجدول1[[#This Row],[تم بيعه]]","v":0}]
[null,null,null,null,null,null,null,{"$f":"الجدول1[[#This Row],[الموجود بالمخزن]]-الجدول1[[#This Row],[تم بيعه]]","v":0}]
[null,null,null,null,null,null,null,{"$f":"الجدول1[[#This Row],[الموجود بالمخزن]]-الجدول1[[#This Row],[تم بيعه]]","v":0}]
[null,null,null,null,null,null,null,{"$f":"الجدول1[[#This Row],[الموجود بالمخزن]]-الجدول1[[#This Row],[تم بيعه]]","v":0}]
[null,null,null,null,null,null,null,{"$f":"الجدول1[[#This Row],[الموجود بالمخزن]]-الجدول1[[#This Row],[تم بيعه]]","v":0}]
[null,null,null,null,null,null,null,{"$f":"الجدول1[[#This Row],[الموجود بالمخزن]]-الجدول1[[#This Row],[تم بيعه]]","v":0}]
[null,null,null,null,null,null,null,{"$f":"الجدول1[[#This Row],[الموجود بالمخزن]]-الجدول1[[#This Row],[تم بيعه]]","v":0}]
[null,null,null,null,null,null,null,{"$f":"الجدول1[[#This Row],[الموجود بالمخزن]]-الجدول1[[#This Row],[تم بيعه]]","v":0}]
[null,null,null,null,null,null,null,{"$f":"الجدول1[[#This Row],[الموجود بالمخزن]]-الجدول1[[#This Row],[تم بيعه]]","v":0}]
[null,null,null,null,null,null,null,{"$f":"الجدول1[[#This Row],[الموجود بالمخزن]]-الجدول1[[#This Row],[تم بيعه]]","v":0}]
[null,null,null,null,null,null,null,{"$f":"الجدول1[[#This Row],[الموجود بالمخزن]]-الجدول1[[#This Row],[تم بيعه]]","v":0}]
[null,null,null,null,null,null,null,{"$f":"الجدول1[[#This Row],[الموجود بالمخزن]]-الجدول1[[#This Row],[تم بيعه]]","v":0}]
[null,null,null,null,null,null,null,{"$f":"الجدول1[[#This Row],[الموجود بالمخزن]]-الجدول1[[#This Row],[تم بيعه]]","v":0}]
[null,null,null,null,null,null,null,{"$f":"الجدول1[[#This Row],[الموجود بالمخزن]]-الجدول1[[#This Row],[تم بيعه]]","v":0}]
[null,null,null,null,null,null,null,{"$f":"الجدول1[[#This Row],[الموجود بالمخزن]]-الجدول1[[#This Row],[تم بيعه]]","v":0}]
[null,null,null,null,null,null,null,{"$f":"الجدول1[[#This Row],[الموجود بالمخزن]]-الجدول1[[#This Row],[تم بيعه]]","v":0}]
[null,null,null,null,null,null,null,{"$f":"الجدول1[[#This Row],[الموجود بالمخزن]]-الجدول1[[#This Row],[تم بيعه]]","v":0}]
[null,null,null,null,null,null,null,{"$f":"الجدول1[[#This Row],[الموجود بالمخزن]]-الجدول1[[#This Row],[تم بيعه]]","v":0}]
[null,null,null,null,null,null,null,{"$f":"الجدول1[[#This Row],[الموجود بالمخزن]]-الجدول1[[#This Row],[تم بيعه]]","v":0}]
[null,null,null,null,null,null,null,{"$f":"الجدول1[[#This Row],[الموجود بالمخزن]]-الجدول1[[#This Row],[تم بيعه]]","v":0}]
[null,null,null,null,null,null,null,{"$f":"الجدول1[[#This Row],[الموجود بالمخزن]]-الجدول1[[#This Row],[تم بيعه]]","v":0}]
[null,null,null,null,null,null,null,{"$f":"الجدول1[[#This Row],[الموجود بالمخزن]]-الجدول1[[#This Row],[تم بيعه]]","v":0}]
[null,null,null,null,null,null,null,{"$f":"الجدول1[[#This Row],[الموجود بالمخزن]]-الجدول1[[#This Row],[تم بيعه]]","v":0}]
[null,null,null,null,null,null,null,{"$f":"الجدول1[[#This Row],[الموجود بالمخزن]]-الجدول1[[#This Row],[تم بيعه]]","v":0}]
[null,null,null,null,null,null,null,{"$f":"الجدول1[[#This Row],[الموجود بالمخزن]]-الجدول1[[#This Row],[تم بيعه]]","v":0}]
[null,null,null,null,null,null,null,{"$f":"الجدول1[[#This Row],[الموجود بالمخزن]]-الجدول1[[#This Row],[تم بيعه]]","v":0}]
[null,null,null,null,null,null,null,{"$f":"الجدول1[[#This Row],[الموجود بالمخزن]]-الجدول1[[#This Row],[تم بيعه]]","v":0}]
[null,null,null,null,null,null,null,{"$f":"الجدول1[[#This Row],[الموجود بالمخزن]]-الجدول1[[#This Row],[تم بيعه]]","v":0}]
[null,null,null,null,null,null,null,{"$f":"الجدول1[[#This Row],[الموجود بالمخزن]]-الجدول1[[#This Row],[تم بيعه]]","v":0}]
[null,null,null,null,null,null,null,{"$f":"الجدول1[[#This Row],[الموجود بالمخزن]]-الجدول1[[#This Row],[تم بيعه]]","v":0}]
[null,null,null,null,null,null,null,{"$f":"الجدول1[[#This Row],[الموجود بالمخزن]]-الجدول1[[#This Row],[تم بيعه]]","v":0}]
[null,null,null,null,null,null,null,{"$f":"الجدول1[[#This Row],[الموجود بالمخزن]]-الجدول1[[#This Row],[تم بيعه]]","v":0}]
[null,null,null,null,null,null,null,{"$f":"الجدول1[[#This Row],[الموجود بالمخزن]]-الجدول1[[#This Row],[تم بيعه]]","v":0}]
[null,null,null,null,null,null,null,{"$f":"الجدول1[[#This Row],[الموجود بالمخزن]]-الجدول1[[#This Row],[تم بيعه]]","v":0}]
[null,null,null,null,null,null,null,{"$f":"الجدول1[[#This Row],[الموجود بالمخزن]]-الجدول1[[#This Row],[تم بيعه]]","v":0}]
[null,null,null,null,null,null,null,{"$f":"الجدول1[[#This Row],[الموجود بالمخزن]]-الجدول1[[#This Row],[تم بيعه]]","v":0}]
[null,null,null,null,null,null,null,{"$f":"الجدول1[[#This Row],[الموجود بالمخزن]]-الجدول1[[#This Row],[تم بيعه]]","v":0}]
[null,null,null,null,null,null,null,{"$f":"الجدول1[[#This Row],[الموجود بالمخزن]]-الجدول1[[#This Row],[تم بيعه]]","v":0}]
[null,null,null,null,null,null,null,{"$f":"الجدول1[[#This Row],[الموجود بالمخزن]]-الجدول1[[#This Row],[تم بيعه]]","v":0}]
[null,null,null,null,null,null,null,{"$f":"الجدول1[[#This Row],[الموجود بالمخزن]]-الجدول1[[#This Row],[تم بيعه]]","v":0}]
[null,null,null,null,null,null,null,{"$f":"الجدول1[[#This Row],[الموجود بالمخزن]]-الجدول1[[#This Row],[تم بيعه]]","v":0}]
[null,null,null,null,null,null,null,{"$f":"الجدول1[[#This Row],[الموجود بالمخزن]]-الجدول1[[#This Row],[تم بيعه]]","v":0}]
[null,null,null,null,null,null,null,{"$f":"الجدول1[[#This Row],[الموجود بالمخزن]]-الجدول1[[#This Row],[تم بيعه]]","v":0}]
[null,null,null,null,null,null,null,{"$f":"الجدول1[[#This Row],[الموجود بالمخزن]]-الجدول1[[#This Row],[تم بيعه]]","v":0}]
[null,null,null,null,null,null,null,{"$f":"الجدول1[[#This Row],[الموجود بالمخزن]]-الجدول1[[#This Row],[تم بيعه]]","v":0}]
[null,null,null,null,null,null,null,{"$f":"الجدول1[[#This Row],[الموجود بالمخزن]]-الجدول1[[#This Row],[تم بيعه]]","v":0}]
[null,null,null,null,null,null,null,{"$f":"الجدول1[[#This Row],[الموجود بالمخزن]]-الجدول1[[#This Row],[تم بيعه]]","v":0}]
[null,null,null,null,null,null,null,{"$f":"الجدول1[[#This Row],[الموجود بالمخزن]]-الجدول1[[#This Row],[تم بيعه]]","v":0}]
[null,null,null,null,null,null,null,{"$f":"الجدول1[[#This Row],[الموجود بالمخزن]]-الجدول1[[#This Row],[تم بيعه]]","v":0}]
[null,null,null,null,null,null,null,{"$f":"الجدول1[[#This Row],[الموجود بالمخزن]]-الجدول1[[#This Row],[تم بيعه]]","v":0}]
[null,null,null,null,null,null,null,{"$f":"الجدول1[[#This Row],[الموجود بالمخزن]]-الجدول1[[#This Row],[تم بيعه]]","v":0}]
[null,null,null,null,null,null,null,{"$f":"الجدول1[[#This Row],[الموجود بالمخزن]]-الجدول1[[#This Row],[تم بيعه]]","v":0}]
[null,null,null,null,null,null,null,{"$f":"الجدول1[[#This Row],[الموجود بالمخزن]]-الجدول1[[#This Row],[تم بيعه]]","v":0}]
[null,null,null,null,null,null,null,{"$f":"الجدول1[[#This Row],[الموجود بالمخزن]]-الجدول1[[#This Row],[تم بيعه]]","v":0}]
[null,null,null,null,null,null,null,{"$f":"الجدول1[[#This Row],[الموجود بالمخزن]]-الجدول1[[#This Row],[تم بيعه]]","v":0}]
[null,null,null,null,null,null,null,{"$f":"الجدول1[[#This Row],[الموجود بالمخزن]]-الجدول1[[#This Row],[تم بيعه]]","v":0}]
[null,null,null,null,null,null,null,{"$f":"الجدول1[[#This Row],[الموجود بالمخزن]]-الجدول1[[#This Row],[تم بيعه]]","v":0}]
[null,null,null,null,null,null,null,{"$f":"الجدول1[[#This Row],[الموجود بالمخزن]]-الجدول1[[#This Row],[تم بيعه]]","v":0}]
[null,null,null,null,null,null,null,{"$f":"الجدول1[[#This Row],[الموجود بالمخزن]]-الجدول1[[#This Row],[تم بيعه]]","v":0}]
[null,null,null,null,null,null,null,{"$f":"الجدول1[[#This Row],[الموجود بالمخزن]]-الجدول1[[#This Row],[تم بيعه]]","v":0}]
[null,null,null,null,null,null,null,{"$f":"الجدول1[[#This Row],[الموجود بالمخزن]]-الجدول1[[#This Row],[تم بيعه]]","v":0}]
[null,null,null,null,null,null,null,{"$f":"الجدول1[[#This Row],[الموجود بالمخزن]]-الجدول1[[#This Row],[تم بيعه]]","v":0}]
[null,null,null,null,null,null,null,{"$f":"الجدول1[[#This Row],[الموجود بالمخزن]]-الجدول1[[#This Row],[تم بيعه]]","v":0}]
[null,null,null,null,null,null,null,{"$f":"الجدول1[[#This Row],[الموجود بالمخزن]]-الجدول1[[#This Row],[تم بيعه]]","v":0}]
[null,null,null,null,null,null,null,{"$f":"الجدول1[[#This Row],[الموجود بالمخزن]]-الجدول1[[#This Row],[تم بيعه]]","v":0}]
[null,null,null,null,null,null,null,{"$f":"الجدول1[[#This Row],[الموجود بالمخزن]]-الجدول1[[#This Row],[تم بيعه]]","v":0}]
[null,null,null,null,null,null,null,{"$f":"الجدول1[[#This Row],[الموجود بالمخزن]]-الجدول1[[#This Row],[تم بيعه]]","v":0}]
[null,null,null,null,null,null,null,{"$f":"الجدول1[[#This Row],[الموجود بالمخزن]]-الجدول1[[#This Row],[تم بيعه]]","v":0}]
[null,null,null,null,null,null,null,{"$f":"الجدول1[[#This Row],[الموجود بالمخزن]]-الجدول1[[#This Row],[تم بيعه]]","v":0}]
[null,null,null,null,null,null,null,{"$f":"الجدول1[[#This Row],[الموجود بالمخزن]]-الجدول1[[#This Row],[تم بيعه]]","v":0}]
[null,null,null,null,null,null,null,{"$f":"الجدول1[[#This Row],[الموجود بالمخزن]]-الجدول1[[#This Row],[تم بيعه]]","v":0}]
[null,null,null,null,null,null,null,{"$f":"الجدول1[[#This Row],[الموجود بالمخزن]]-الجدول1[[#This Row],[تم بيعه]]","v":0}]
[null,null,null,null,null,null,null,{"$f":"الجدول1[[#This Row],[الموجود بالمخزن]]-الجدول1[[#This Row],[تم بيعه]]","v":0}]
[null,null,null,null,null,null,null,{"$f":"الجدول1[[#This Row],[الموجود بالمخزن]]-الجدول1[[#This Row],[تم بيعه]]","v":0}]
[null,null,null,null,null,null,null,{"$f":"الجدول1[[#This Row],[الموجود بالمخزن]]-الجدول1[[#This Row],[تم بيعه]]","v":0}]
[null,null,null,null,null,null,null,{"$f":"الجدول1[[#This Row],[الموجود بالمخزن]]-الجدول1[[#This Row],[تم بيعه]]","v":0}]
[null,null,null,null,null,null,null,{"$f":"الجدول1[[#This Row],[الموجود بالمخزن]]-الجدول1[[#This Row],[تم بيعه]]","v":0}]
[null,null,null,null,null,null,null,{"$f":"الجدول1[[#This Row],[الموجود بالمخزن]]-الجدول1[[#This Row],[تم بيعه]]","v":0}]
[null,null,null,null,null,null,null,{"$f":"الجدول1[[#This Row],[الموجود بالمخزن]]-الجدول1[[#This Row],[تم بيعه]]","v":0}]
[null,null,null,null,null,null,null,{"$f":"الجدول1[[#This Row],[الموجود بالمخزن]]-الجدول1[[#This Row],[تم بيعه]]","v":0}]
[null,null,null,null,null,null,null,{"$f":"الجدول1[[#This Row],[الموجود بالمخزن]]-الجدول1[[#This Row],[تم بيعه]]","v":0}]
[null,null,null,null,null,null,null,{"$f":"الجدول1[[#This Row],[الموجود بالمخزن]]-الجدول1[[#This Row],[تم بيعه]]","v":0}]
[null,null,null,null,null,null,null,{"$f":"الجدول1[[#This Row],[الموجود بالمخزن]]-الجدول1[[#This Row],[تم بيعه]]","v":0}]
[null,null,null,null,null,null,null,{"$f":"الجدول1[[#This Row],[الموجود بالمخزن]]-الجدول1[[#This Row],[تم بيعه]]","v":0}]
[null,null,null,null,null,null,null,{"$f":"الجدول1[[#This Row],[الموجود بالمخزن]]-الجدول1[[#This Row],[تم بيعه]]","v":0}]
[null,null,null,null,null,null,null,{"$f":"الجدول1[[#This Row],[الموجود بالمخزن]]-الجدول1[[#This Row],[تم بيعه]]","v":0}]
[null,null,null,null,null,null,null,{"$f":"الجدول1[[#This Row],[الموجود بالمخزن]]-الجدول1[[#This Row],[تم بيعه]]","v":0}]
[null,null,null,null,null,null,null,{"$f":"الجدول1[[#This Row],[الموجود بالمخزن]]-الجدول1[[#This Row],[تم بيعه]]","v":0}]
[null,null,null,null,null,null,null,{"$f":"الجدول1[[#This Row],[الموجود بالمخزن]]-الجدول1[[#This Row],[تم بيعه]]","v":0}]
[null,null,null,null,null,null,null,{"$f":"الجدول1[[#This Row],[الموجود بالمخزن]]-الجدول1[[#This Row],[تم بيعه]]","v":0}]
[null,null,null,null,null,null,null,{"$f":"الجدول1[[#This Row],[الموجود بالمخزن]]-الجدول1[[#This Row],[تم بيعه]]","v":0}]
[null,null,null,null,null,null,null,{"$f":"الجدول1[[#This Row],[الموجود بالمخزن]]-الجدول1[[#This Row],[تم بيعه]]","v":0}]
[null,null,null,null,null,null,null,{"$f":"الجدول1[[#This Row],[الموجود بالمخزن]]-الجدول1[[#This Row],[تم بيعه]]","v":0}]
[null,null,null,null,null,null,null,{"$f":"الجدول1[[#This Row],[الموجود بالمخزن]]-الجدول1[[#This Row],[تم بيعه]]","v":0}]
[null,null,null,null,null,null,null,{"$f":"الجدول1[[#This Row],[الموجود بالمخزن]]-الجدول1[[#This Row],[تم بيعه]]","v":0}]
[null,null,null,null,null,null,null,{"$f":"الجدول1[[#This Row],[الموجود بالمخزن]]-الجدول1[[#This Row],[تم بيعه]]","v":0}]
[null,null,null,null,null,null,null,{"$f":"الجدول1[[#This Row],[الموجود بالمخزن]]-الجدول1[[#This Row],[تم بيعه]]","v":0}]
[null,null,null,null,null,null,null,{"$f":"الجدول1[[#This Row],[الموجود بالمخزن]]-الجدول1[[#This Row],[تم بيعه]]","v":0}]
[null,null,null,null,null,null,null,{"$f":"الجدول1[[#This Row],[الموجود بالمخزن]]-الجدول1[[#This Row],[تم بيعه]]","v":0}]
[null,null,null,null,null,null,null,{"$f":"الجدول1[[#This Row],[الموجود بالمخزن]]-الجدول1[[#This Row],[تم بيعه]]","v":0}]
[null,null,null,null,null,null,null,{"$f":"الجدول1[[#This Row],[الموجود بالمخزن]]-الجدول1[[#This Row],[تم بيعه]]","v":0}]
[null,null,null,null,null,null,null,{"$f":"الجدول1[[#This Row],[الموجود بالمخزن]]-الجدول1[[#This Row],[تم بيعه]]","v":0}]
[null,null,null,null,null,null,null,{"$f":"الجدول1[[#This Row],[الموجود بالمخزن]]-الجدول1[[#This Row],[تم بيعه]]","v":0}]
[null,null,null,null,null,null,null,{"$f":"الجدول1[[#This Row],[الموجود بالمخزن]]-الجدول1[[#This Row],[تم بيعه]]","v":0}]
[null,null,null,null,null,null,null,{"$f":"الجدول1[[#This Row],[الموجود بالمخزن]]-الجدول1[[#This Row],[تم بيعه]]","v":0}]
[null,null,null,null,null,null,null,{"$f":"الجدول1[[#This Row],[الموجود بالمخزن]]-الجدول1[[#This Row],[تم بيعه]]","v":0}]
[null,null,null,null,null,null,null,{"$f":"الجدول1[[#This Row],[الموجود بالمخزن]]-الجدول1[[#This Row],[تم بيعه]]","v":0}]
[null,null,null,null,null,null,null,{"$f":"الجدول1[[#This Row],[الموجود بالمخزن]]-الجدول1[[#This Row],[تم بيعه]]","v":0}]
[null,null,null,null,null,null,null,{"$f":"الجدول1[[#This Row],[الموجود بالمخزن]]-الجدول1[[#This Row],[تم بيعه]]","v":0}]
[null,null,null,null,null,null,null,{"$f":"الجدول1[[#This Row],[الموجود بالمخزن]]-الجدول1[[#This Row],[تم بيعه]]","v":0}]
[null,null,null,null,null,null,null,{"$f":"الجدول1[[#This Row],[الموجود بالمخزن]]-الجدول1[[#This Row],[تم بيعه]]","v":0}]
[null,null,null,null,null,null,null,{"$f":"الجدول1[[#This Row],[الموجود بالمخزن]]-الجدول1[[#This Row],[تم بيعه]]","v":0}]
[null,null,null,null,null,null,null,{"$f":"الجدول1[[#This Row],[الموجود بالمخزن]]-الجدول1[[#This Row],[تم بيعه]]","v":0}]
[null,null,null,null,null,null,null,{"$f":"الجدول1[[#This Row],[الموجود بالمخزن]]-الجدول1[[#This Row],[تم بيعه]]","v":0}]
[null,null,null,null,null,null,null,{"$f":"الجدول1[[#This Row],[الموجود بالمخزن]]-الجدول1[[#This Row],[تم بيعه]]","v":0}]
[null,null,null,null,null,null,null,{"$f":"الجدول1[[#This Row],[الموجود بالمخزن]]-الجدول1[[#This Row],[تم بيعه]]","v":0}]
[null,null,null,null,null,null,null,{"$f":"الجدول1[[#This Row],[الموجود بالمخزن]]-الجدول1[[#This Row],[تم بيعه]]","v":0}]
[null,null,null,null,null,null,null,{"$f":"الجدول1[[#This Row],[الموجود بالمخزن]]-الجدول1[[#This Row],[تم بيعه]]","v":0}]
[null,null,null,null,null,null,null,{"$f":"الجدول1[[#This Row],[الموجود بالمخزن]]-الجدول1[[#This Row],[تم بيعه]]","v":0}]
[null,null,null,null,null,null,null,{"$f":"الجدول1[[#This Row],[الموجود بالمخزن]]-الجدول1[[#This Row],[تم بيعه]]","v":0}]
[null,null,null,null,null,null,null,{"$f":"الجدول1[[#This Row],[الموجود بالمخزن]]-الجدول1[[#This Row],[تم بيعه]]","v":0}]
[null,null,null,null,null,null,null,{"$f":"الجدول1[[#This Row],[الموجود بالمخزن]]-الجدول1[[#This Row],[تم بيعه]]","v":0}]
[null,null,null,null,null,null,null,{"$f":"الجدول1[[#This Row],[الموجود بالمخزن]]-الجدول1[[#This Row],[تم بيعه]]","v":0}]
[null,null,null,null,null,null,null,{"$f":"الجدول1[[#This Row],[الموجود بالمخزن]]-الجدول1[[#This Row],[تم بيعه]]","v":0}]
[null,null,null,null,null,null,null,{"$f":"الجدول1[[#This Row],[الموجود بالمخزن]]-الجدول1[[#This Row],[تم بيعه]]","v":0}]
[null,null,null,null,null,null,null,{"$f":"الجدول1[[#This Row],[الموجود بالمخزن]]-الجدول1[[#This Row],[تم بيعه]]","v":0}]
[null,null,null,null,null,null,null,{"$f":"الجدول1[[#This Row],[الموجود بالمخزن]]-الجدول1[[#This Row],[تم بيعه]]","v":0}]
[null,null,null,null,null,null,null,{"$f":"الجدول1[[#This Row],[الموجود بالمخزن]]-الجدول1[[#This Row],[تم بيعه]]","v":0}]
[null,null,null,null,null,null,null,{"$f":"الجدول1[[#This Row],[الموجود بالمخزن]]-الجدول1[[#This Row],[تم بيعه]]","v":0}]
[null,null,null,null,null,null,null,{"$f":"الجدول1[[#This Row],[الموجود بالمخزن]]-الجدول1[[#This Row],[تم بيعه]]","v":0}]
[null,null,null,null,null,null,null,{"$f":"الجدول1[[#This Row],[الموجود بالمخزن]]-الجدول1[[#This Row],[تم بيعه]]","v":0}]
[null,null,null,null,null,null,null,{"$f":"الجدول1[[#This Row],[الموجود بالمخزن]]-الجدول1[[#This Row],[تم بيعه]]","v":0}]
[null,null,null,null,null,null,null,{"$f":"الجدول1[[#This Row],[الموجود بالمخزن]]-الجدول1[[#This Row],[تم بيعه]]","v":0}]
[null,null,null,null,null,null,null,{"$f":"الجدول1[[#This Row],[الموجود بالمخزن]]-الجدول1[[#This Row],[تم بيعه]]","v":0}]
[null,null,null,null,null,null,null,{"$f":"الجدول1[[#This Row],[الموجود بالمخزن]]-الجدول1[[#This Row],[تم بيعه]]","v":0}]
[null,null,null,null,null,null,null,{"$f":"الجدول1[[#This Row],[الموجود بالمخزن]]-الجدول1[[#This Row],[تم بيعه]]","v":0}]
[null,null,null,null,null,null,null,{"$f":"الجدول1[[#This Row],[الموجود بالمخزن]]-الجدول1[[#This Row],[تم بيعه]]","v":0}]
[null,null,null,null,null,null,null,{"$f":"الجدول1[[#This Row],[الموجود بالمخزن]]-الجدول1[[#This Row],[تم بيعه]]","v":0}]
[null,null,null,null,null,null,null,{"$f":"الجدول1[[#This Row],[الموجود بالمخزن]]-الجدول1[[#This Row],[تم بيعه]]","v":0}]
[null,null,null,null,null,null,null,{"$f":"الجدول1[[#This Row],[الموجود بالمخزن]]-الجدول1[[#This Row],[تم بيعه]]","v":0}]
[null,null,null,null,null,null,null,{"$f":"الجدول1[[#This Row],[الموجود بالمخزن]]-الجدول1[[#This Row],[تم بيعه]]","v":0}]
[null,null,null,null,null,null,null,{"$f":"الجدول1[[#This Row],[الموجود بالمخزن]]-الجدول1[[#This Row],[تم بيعه]]","v":0}]
[null,null,null,null,null,null,null,{"$f":"الجدول1[[#This Row],[الموجود بالمخزن]]-الجدول1[[#This Row],[تم بيعه]]","v":0}]
[null,null,null,null,null,null,null,{"$f":"الجدول1[[#This Row],[الموجود بالمخزن]]-الجدول1[[#This Row],[تم بيعه]]","v":0}]
[null,null,null,null,null,null,null,{"$f":"الجدول1[[#This Row],[الموجود بالمخزن]]-الجدول1[[#This Row],[تم بيعه]]","v":0}]
[null,null,null,null,null,null,null,{"$f":"الجدول1[[#This Row],[الموجود بالمخزن]]-الجدول1[[#This Row],[تم بيعه]]","v":0}]
[null,null,null,null,null,null,null,{"$f":"الجدول1[[#This Row],[الموجود بالمخزن]]-الجدول1[[#This Row],[تم بيعه]]","v":0}]
[null,null,null,null,null,null,null,{"$f":"الجدول1[[#This Row],[الموجود بالمخزن]]-الجدول1[[#This Row],[تم بيعه]]","v":0}]
[null,null,null,null,null,null,null,{"$f":"الجدول1[[#This Row],[الموجود بالمخزن]]-الجدول1[[#This Row],[تم بيعه]]","v":0}]
[null,null,null,null,null,null,null,{"$f":"الجدول1[[#This Row],[الموجود بالمخزن]]-الجدول1[[#This Row],[تم بيعه]]","v":0}]
[null,null,null,null,null,null,null,{"$f":"الجدول1[[#This Row],[الموجود بالمخزن]]-الجدول1[[#This Row],[تم بيعه]]","v":0}]
[null,null,null,null,null,null,null,{"$f":"الجدول1[[#This Row],[الموجود بالمخزن]]-الجدول1[[#This Row],[تم بيعه]]","v":0}]
[null,null,null,null,null,null,null,{"$f":"الجدول1[[#This Row],[الموجود بالمخزن]]-الجدول1[[#This Row],[تم بيعه]]","v":0}]
[null,null,null,null,null,null,null,{"$f":"الجدول1[[#This Row],[الموجود بالمخزن]]-الجدول1[[#This Row],[تم بيعه]]","v":0}]
[null,null,null,null,null,null,null,{"$f":"الجدول1[[#This Row],[الموجود بالمخزن]]-الجدول1[[#This Row],[تم بيعه]]","v":0}]
[null,null,null,null,null,null,null,{"$f":"الجدول1[[#This Row],[الموجود بالمخزن]]-الجدول1[[#This Row],[تم بيعه]]","v":0}]
[null,null,null,null,null,null,null,{"$f":"الجدول1[[#This Row],[الموجود بالمخزن]]-الجدول1[[#This Row],[تم بيعه]]","v":0}]
[null,null,null,null,null,null,null,{"$f":"الجدول1[[#This Row],[الموجود بالمخزن]]-الجدول1[[#This Row],[تم بيعه]]","v":0}]
[null,null,null,null,null,null,null,{"$f":"الجدول1[[#This Row],[الموجود بالمخزن]]-الجدول1[[#This Row],[تم بيعه]]","v":0}]
[null,null,null,null,null,null,null,{"$f":"الجدول1[[#This Row],[الموجود بالمخزن]]-الجدول1[[#This Row],[تم بيعه]]","v":0}]
[null,null,null,null,null,null,null,{"$f":"الجدول1[[#This Row],[الموجود بالمخزن]]-الجدول1[[#This Row],[تم بيعه]]","v":0}]
[null,null,null,null,null,null,null,{"$f":"الجدول1[[#This Row],[الموجود بالمخزن]]-الجدول1[[#This Row],[تم بيعه]]","v":0}]
[null,null,null,null,null,null,null,{"$f":"الجدول1[[#This Row],[الموجود بالمخزن]]-الجدول1[[#This Row],[تم بيعه]]","v":0}]
[null,null,null,null,null,null,null,{"$f":"الجدول1[[#This Row],[الموجود بالمخزن]]-الجدول1[[#This Row],[تم بيعه]]","v":0}]
[null,null,null,null,null,null,null,{"$f":"الجدول1[[#This Row],[الموجود بالمخزن]]-الجدول1[[#This Row],[تم بيعه]]","v":0}]
[null,null,null,null,null,null,null,{"$f":"الجدول1[[#This Row],[الموجود بالمخزن]]-الجدول1[[#This Row],[تم بيعه]]","v":0}]
[null,null,null,null,null,null,null,{"$f":"الجدول1[[#This Row],[الموجود بالمخزن]]-الجدول1[[#This Row],[تم بيعه]]","v":0}]
[null,null,null,null,null,null,null,{"$f":"الجدول1[[#This Row],[الموجود بالمخزن]]-الجدول1[[#This Row],[تم بيعه]]","v":0}]
[null,null,null,null,null,null,null,{"$f":"الجدول1[[#This Row],[الموجود بالمخزن]]-الجدول1[[#This Row],[تم بيعه]]","v":0}]
[null,null,null,null,null,null,null,{"$f":"الجدول1[[#This Row],[الموجود بالمخزن]]-الجدول1[[#This Row],[تم بيعه]]","v":0}]
[null,null,null,null,null,null,null,{"$f":"الجدول1[[#This Row],[الموجود بالمخزن]]-الجدول1[[#This Row],[تم بيعه]]","v":0}]
[null,null,null,null,null,null,null,{"$f":"الجدول1[[#This Row],[الموجود بالمخزن]]-الجدول1[[#This Row],[تم بيعه]]","v":0}]
[null,null,null,null,null,null,null,{"$f":"الجدول1[[#This Row],[الموجود بالمخزن]]-الجدول1[[#This Row],[تم بيعه]]","v":0}]
[null,null,null,null,null,null,null,{"$f":"الجدول1[[#This Row],[الموجود بالمخزن]]-الجدول1[[#This Row],[تم بيعه]]","v":0}]
[null,null,null,null,null,null,null,{"$f":"الجدول1[[#This Row],[الموجود بالمخزن]]-الجدول1[[#This Row],[تم بيعه]]","v":0}]
[null,null,null,null,null,null,null,{"$f":"الجدول1[[#This Row],[الموجود بالمخزن]]-الجدول1[[#This Row],[تم بيعه]]","v":0}]
[null,null,null,null,null,null,null,{"$f":"الجدول1[[#This Row],[الموجود بالمخزن]]-الجدول1[[#This Row],[تم بيعه]]","v":0}]
[null,null,null,null,null,null,null,{"$f":"الجدول1[[#This Row],[الموجود بالمخزن]]-الجدول1[[#This Row],[تم بيعه]]","v":0}]
[null,null,null,null,null,null,null,{"$f":"الجدول1[[#This Row],[الموجود بالمخزن]]-الجدول1[[#This Row],[تم بيعه]]","v":0}]
[null,null,null,null,null,null,null,{"$f":"الجدول1[[#This Row],[الموجود بالمخزن]]-الجدول1[[#This Row],[تم بيعه]]","v":0}]
[null,null,null,null,null,null,null,{"$f":"الجدول1[[#This Row],[الموجود بالمخزن]]-الجدول1[[#This Row],[تم بيعه]]","v":0}]
[null,null,null,null,null,null,null,{"$f":"الجدول1[[#This Row],[الموجود بالمخزن]]-الجدول1[[#This Row],[تم بيعه]]","v":0}]
[null,null,null,null,null,null,null,{"$f":"الجدول1[[#This Row],[الموجود بالمخزن]]-الجدول1[[#This Row],[تم بيعه]]","v":0}]
[null,null,null,null,null,null,null,{"$f":"الجدول1[[#This Row],[الموجود بالمخزن]]-الجدول1[[#This Row],[تم بيعه]]","v":0}]
[null,null,null,null,null,null,null,{"$f":"الجدول1[[#This Row],[الموجود بالمخزن]]-الجدول1[[#This Row],[تم بيعه]]","v":0}]
[null,null,null,null,null,null,null,{"$f":"الجدول1[[#This Row],[الموجود بالمخزن]]-الجدول1[[#This Row],[تم بيعه]]","v":0}]
[null,null,null,null,null,null,null,{"$f":"الجدول1[[#This Row],[الموجود بالمخزن]]-الجدول1[[#This Row],[تم بيعه]]","v":0}]
[null,null,null,null,null,null,null,{"$f":"الجدول1[[#This Row],[الموجود بالمخزن]]-الجدول1[[#This Row],[تم بيعه]]","v":0}]
[null,null,null,null,null,null,null,{"$f":"الجدول1[[#This Row],[الموجود بالمخزن]]-الجدول1[[#This Row],[تم بيعه]]","v":0}]
[null,null,null,null,null,null,null,{"$f":"الجدول1[[#This Row],[الموجود بالمخزن]]-الجدول1[[#This Row],[تم بيعه]]","v":0}]
[null,null,null,null,null,null,null,{"$f":"الجدول1[[#This Row],[الموجود بالمخزن]]-الجدول1[[#This Row],[تم بيعه]]","v":0}]
[null,null,null,null,null,null,null,{"$f":"الجدول1[[#This Row],[الموجود بالمخزن]]-الجدول1[[#This Row],[تم بيعه]]","v":0}]
[null,null,null,null,null,null,null,{"$f":"الجدول1[[#This Row],[الموجود بالمخزن]]-الجدول1[[#This Row],[تم بيعه]]","v":0}]
[null,null,null,null,null,null,null,{"$f":"الجدول1[[#This Row],[الموجود بالمخزن]]-الجدول1[[#This Row],[تم بيعه]]","v":0}]
[null,null,null,null,null,null,null,{"$f":"الجدول1[[#This Row],[الموجود بالمخزن]]-الجدول1[[#This Row],[تم بيعه]]","v":0}]
[null,null,null,null,null,null,null,{"$f":"الجدول1[[#This Row],[الموجود بالمخزن]]-الجدول1[[#This Row],[تم بيعه]]","v":0}]
[null,null,null,null,null,null,null,{"$f":"الجدول1[[#This Row],[الموجود بالمخزن]]-الجدول1[[#This Row],[تم بيعه]]","v":0}]
[null,null,null,null,null,null,null,{"$f":"الجدول1[[#This Row],[الموجود بالمخزن]]-الجدول1[[#This Row],[تم بيعه]]","v":0}]
[null,null,null,null,null,null,null,{"$f":"الجدول1[[#This Row],[الموجود بالمخزن]]-الجدول1[[#This Row],[تم بيعه]]","v":0}]
[null,null,null,null,null,null,null,{"$f":"الجدول1[[#This Row],[الموجود بالمخزن]]-الجدول1[[#This Row],[تم بيعه]]","v":0}]
[null,null,null,null,null,null,null,{"$f":"الجدول1[[#This Row],[الموجود بالمخزن]]-الجدول1[[#This Row],[تم بيعه]]","v":0}]
[null,null,null,null,null,null,null,{"$f":"الجدول1[[#This Row],[الموجود بالمخزن]]-الجدول1[[#This Row],[تم بيعه]]","v":0}]
[null,null,null,null,null,null,null,{"$f":"الجدول1[[#This Row],[الموجود بالمخزن]]-الجدول1[[#This Row],[تم بيعه]]","v":0}]
[null,null,null,null,null,null,null,{"$f":"الجدول1[[#This Row],[الموجود بالمخزن]]-الجدول1[[#This Row],[تم بيعه]]","v":0}]
[null,null,null,null,null,null,null,{"$f":"الجدول1[[#This Row],[الموجود بالمخزن]]-الجدول1[[#This Row],[تم بيعه]]","v":0}]
[null,null,null,null,null,null,null,{"$f":"الجدول1[[#This Row],[الموجود بالمخزن]]-الجدول1[[#This Row],[تم بيعه]]","v":0}]
[null,null,null,null,null,null,null,{"$f":"الجدول1[[#This Row],[الموجود بالمخزن]]-الجدول1[[#This Row],[تم بيعه]]","v":0}]
[null,null,null,null,null,null,null,{"$f":"الجدول1[[#This Row],[الموجود بالمخزن]]-الجدول1[[#This Row],[تم بيعه]]","v":0}]
[null,null,null,null,null,null,null,{"$f":"الجدول1[[#This Row],[الموجود بالمخزن]]-الجدول1[[#This Row],[تم بيعه]]","v":0}]
[null,null,null,null,null,null,null,{"$f":"الجدول1[[#This Row],[الموجود بالمخزن]]-الجدول1[[#This Row],[تم بيعه]]","v":0}]
[null,null,null,null,null,null,null,{"$f":"الجدول1[[#This Row],[الموجود بالمخزن]]-الجدول1[[#This Row],[تم بيعه]]","v":0}]
[null,null,null,null,null,null,null,{"$f":"الجدول1[[#This Row],[الموجود بالمخزن]]-الجدول1[[#This Row],[تم بيعه]]","v":0}]
[null,null,null,null,null,null,null,{"$f":"الجدول1[[#This Row],[الموجود بالمخزن]]-الجدول1[[#This Row],[تم بيعه]]","v":0}]
[null,null,null,null,null,null,null,{"$f":"الجدول1[[#This Row],[الموجود بالمخزن]]-الجدول1[[#This Row],[تم بيعه]]","v":0}]
[null,null,null,null,null,null,null,{"$f":"الجدول1[[#This Row],[الموجود بالمخزن]]-الجدول1[[#This Row],[تم بيعه]]","v":0}]
[null,null,null,null,null,null,null,{"$f":"الجدول1[[#This Row],[الموجود بالمخزن]]-الجدول1[[#This Row],[تم بيعه]]","v":0}]
[null,null,null,null,null,null,null,{"$f":"الجدول1[[#This Row],[الموجود بالمخزن]]-الجدول1[[#This Row],[تم بيعه]]","v":0}]
[null,null,null,null,null,null,null,{"$f":"الجدول1[[#This Row],[الموجود بالمخزن]]-الجدول1[[#This Row],[تم بيعه]]","v":0}]
[null,null,null,null,null,null,null,{"$f":"الجدول1[[#This Row],[الموجود بالمخزن]]-الجدول1[[#This Row],[تم بيعه]]","v":0}]
[null,null,null,null,null,null,null,{"$f":"الجدول1[[#This Row],[الموجود بالمخزن]]-الجدول1[[#This Row],[تم بيعه]]","v":0}]
[null,null,null,null,null,null,null,{"$f":"الجدول1[[#This Row],[الموجود بالمخزن]]-الجدول1[[#This Row],[تم بيعه]]","v":0}]
[null,null,null,null,null,null,null,{"$f":"الجدول1[[#This Row],[الموجود بالمخزن]]-الجدول1[[#This Row],[تم بيعه]]","v":0}]
[null,null,null,null,null,null,null,{"$f":"الجدول1[[#This Row],[الموجود بالمخزن]]-الجدول1[[#This Row],[تم بيعه]]","v":0}]
[null,null,null,null,null,null,null,{"$f":"الجدول1[[#This Row],[الموجود بالمخزن]]-الجدول1[[#This Row],[تم بيعه]]","v":0}]
[null,null,null,null,null,null,null,{"$f":"الجدول1[[#This Row],[الموجود بالمخزن]]-الجدول1[[#This Row],[تم بيعه]]","v":0}]
[null,null,null,null,null,null,null,{"$f":"الجدول1[[#This Row],[الموجود بالمخزن]]-الجدول1[[#This Row],[تم بيعه]]","v":0}]
[null,null,null,null,null,null,null,{"$f":"الجدول1[[#This Row],[الموجود بالمخزن]]-الجدول1[[#This Row],[تم بيعه]]","v":0}]
[null,null,null,null,null,null,null,{"$f":"الجدول1[[#This Row],[الموجود بالمخزن]]-الجدول1[[#This Row],[تم بيعه]]","v":0}]
[null,null,null,null,null,null,null,{"$f":"الجدول1[[#This Row],[الموجود بالمخزن]]-الجدول1[[#This Row],[تم بيعه]]","v":0}]
[null,null,null,null,null,null,null,{"$f":"الجدول1[[#This Row],[الموجود بالمخزن]]-الجدول1[[#This Row],[تم بيعه]]","v":0}]
[null,null,null,null,null,null,null,{"$f":"الجدول1[[#This Row],[الموجود بالمخزن]]-الجدول1[[#This Row],[تم بيعه]]","v":0}]
[null,null,null,null,null,null,null,{"$f":"الجدول1[[#This Row],[الموجود بالمخزن]]-الجدول1[[#This Row],[تم بيعه]]","v":0}]
[null,null,null,null,null,null,null,{"$f":"الجدول1[[#This Row],[الموجود بالمخزن]]-الجدول1[[#This Row],[تم بيعه]]","v":0}]
[null,null,null,null,null,null,null,{"$f":"الجدول1[[#This Row],[الموجود بالمخزن]]-الجدول1[[#This Row],[تم بيعه]]","v":0}]
[null,null,null,null,null,null,null,{"$f":"الجدول1[[#This Row],[الموجود بالمخزن]]-الجدول1[[#This Row],[تم بيعه]]","v":0}]
[null,null,null,null,null,null,null,{"$f":"الجدول1[[#This Row],[الموجود بالمخزن]]-الجدول1[[#This Row],[تم بيعه]]","v":0}]
[null,null,null,null,null,null,null,{"$f":"الجدول1[[#This Row],[الموجود بالمخزن]]-الجدول1[[#This Row],[تم بيعه]]","v":0}]
[null,null,null,null,null,null,null,{"$f":"الجدول1[[#This Row],[الموجود بالمخزن]]-الجدول1[[#This Row],[تم بيعه]]","v":0}]
[null,null,null,null,null,null,null,{"$f":"الجدول1[[#This Row],[الموجود بالمخزن]]-الجدول1[[#This Row],[تم بيعه]]","v":0}]
[null,null,null,null,null,null,null,{"$f":"الجدول1[[#This Row],[الموجود بالمخزن]]-الجدول1[[#This Row],[تم بيعه]]","v":0}]
[null,null,null,null,null,null,null,{"$f":"الجدول1[[#This Row],[الموجود بالمخزن]]-الجدول1[[#This Row],[تم بيعه]]","v":0}]
[null,null,null,null,null,null,null,{"$f":"الجدول1[[#This Row],[الموجود بالمخزن]]-الجدول1[[#This Row],[تم بيعه]]","v":0}]
[null,null,null,null,null,null,null,{"$f":"الجدول1[[#This Row],[الموجود بالمخزن]]-الجدول1[[#This Row],[تم بيعه]]","v":0}]
[null,null,null,null,null,null,null,{"$f":"الجدول1[[#This Row],[الموجود بالمخزن]]-الجدول1[[#This Row],[تم بيعه]]","v":0}]
[null,null,null,null,null,null,null,{"$f":"الجدول1[[#This Row],[الموجود بالمخزن]]-الجدول1[[#This Row],[تم بيعه]]","v":0}]
[null,null,null,null,null,null,null,{"$f":"الجدول1[[#This Row],[الموجود بالمخزن]]-الجدول1[[#This Row],[تم بيعه]]","v":0}]
[null,null,null,null,null,null,null,{"$f":"الجدول1[[#This Row],[الموجود بالمخزن]]-الجدول1[[#This Row],[تم بيعه]]","v":0}]
[null,null,null,null,null,null,null,{"$f":"الجدول1[[#This Row],[الموجود بالمخزن]]-الجدول1[[#This Row],[تم بيعه]]","v":0}]
[null,null,null,null,null,null,null,{"$f":"الجدول1[[#This Row],[الموجود بالمخزن]]-الجدول1[[#This Row],[تم بيعه]]","v":0}]
[null,null,null,null,null,null,null,{"$f":"الجدول1[[#This Row],[الموجود بالمخزن]]-الجدول1[[#This Row],[تم بيعه]]","v":0}]
[null,null,null,null,null,null,null,{"$f":"الجدول1[[#This Row],[الموجود بالمخزن]]-الجدول1[[#This Row],[تم بيعه]]","v":0}]
[null,null,null,null,null,null,null,{"$f":"الجدول1[[#This Row],[الموجود بالمخزن]]-الجدول1[[#This Row],[تم بيعه]]","v":0}]
[null,null,null,null,null,null,null,{"$f":"الجدول1[[#This Row],[الموجود بالمخزن]]-الجدول1[[#This Row],[تم بيعه]]","v":0}]
[null,null,null,null,null,null,null,{"$f":"الجدول1[[#This Row],[الموجود بالمخزن]]-الجدول1[[#This Row],[تم بيعه]]","v":0}]
[null,null,null,null,null,null,null,{"$f":"الجدول1[[#This Row],[الموجود بالمخزن]]-الجدول1[[#This Row],[تم بيعه]]","v":0}]
[null,null,null,null,null,null,null,{"$f":"الجدول1[[#This Row],[الموجود بالمخزن]]-الجدول1[[#This Row],[تم بيعه]]","v":0}]
[null,null,null,null,null,null,null,{"$f":"الجدول1[[#This Row],[الموجود بالمخزن]]-الجدول1[[#This Row],[تم بيعه]]","v":0}]
[null,null,null,null,null,null,null,{"$f":"الجدول1[[#This Row],[الموجود بالمخزن]]-الجدول1[[#This Row],[تم بيعه]]","v":0}]
[null,null,null,null,null,null,null,{"$f":"الجدول1[[#This Row],[الموجود بالمخزن]]-الجدول1[[#This Row],[تم بيعه]]","v":0}]
[null,null,null,null,null,null,null,{"$f":"الجدول1[[#This Row],[الموجود بالمخزن]]-الجدول1[[#This Row],[تم بيعه]]","v":0}]
[null,null,null,null,null,null,null,{"$f":"الجدول1[[#This Row],[الموجود بالمخزن]]-الجدول1[[#This Row],[تم بيعه]]","v":0}]
[null,null,null,null,null,null,null,{"$f":"الجدول1[[#This Row],[الموجود بالمخزن]]-الجدول1[[#This Row],[تم بيعه]]","v":0}]
[null,null,null,null,null,null,null,{"$f":"الجدول1[[#This Row],[الموجود بالمخزن]]-الجدول1[[#This Row],[تم بيعه]]","v":0}]
[null,null,null,null,null,null,null,{"$f":"الجدول1[[#This Row],[الموجود بالمخزن]]-الجدول1[[#This Row],[تم بيعه]]","v":0}]
[null,null,null,null,null,null,null,{"$f":"الجدول1[[#This Row],[الموجود بالمخزن]]-الجدول1[[#This Row],[تم بيعه]]","v":0}]
[null,null,null,null,null,null,null,{"$f":"الجدول1[[#This Row],[الموجود بالمخزن]]-الجدول1[[#This Row],[تم بيعه]]","v":0}]
[null,null,null,null,null,null,null,{"$f":"الجدول1[[#This Row],[الموجود بالمخزن]]-الجدول1[[#This Row],[تم بيعه]]","v":0}]
[null,null,null,null,null,null,null,{"$f":"الجدول1[[#This Row],[الموجود بالمخزن]]-الجدول1[[#This Row],[تم بيعه]]","v":0}]
[null,null,null,null,null,null,null,{"$f":"الجدول1[[#This Row],[الموجود بالمخزن]]-الجدول1[[#This Row],[تم بيعه]]","v":0}]
[null,null,null,null,null,null,null,{"$f":"الجدول1[[#This Row],[الموجود بالمخزن]]-الجدول1[[#This Row],[تم بيعه]]","v":0}]
[null,null,null,null,null,null,null,{"$f":"الجدول1[[#This Row],[الموجود بالمخزن]]-الجدول1[[#This Row],[تم بيعه]]","v":0}]
[null,null,null,null,null,null,null,{"$f":"الجدول1[[#This Row],[الموجود بالمخزن]]-الجدول1[[#This Row],[تم بيعه]]","v":0}]
[null,null,null,null,null,null,null,{"$f":"الجدول1[[#This Row],[الموجود بالمخزن]]-الجدول1[[#This Row],[تم بيعه]]","v":0}]
[null,null,null,null,null,null,null,{"$f":"الجدول1[[#This Row],[الموجود بالمخزن]]-الجدول1[[#This Row],[تم بيعه]]","v":0}]
[null,null,null,null,null,null,null,{"$f":"الجدول1[[#This Row],[الموجود بالمخزن]]-الجدول1[[#This Row],[تم بيعه]]","v":0}]
[null,null,null,null,null,null,null,{"$f":"الجدول1[[#This Row],[الموجود بالمخزن]]-الجدول1[[#This Row],[تم بيعه]]","v":0}]
[null,null,null,null,null,null,null,{"$f":"الجدول1[[#This Row],[الموجود بالمخزن]]-الجدول1[[#This Row],[تم بيعه]]","v":0}]
[null,null,null,null,null,null,null,{"$f":"الجدول1[[#This Row],[الموجود بالمخزن]]-الجدول1[[#This Row],[تم بيعه]]","v":0}]
[null,null,null,null,null,null,null,{"$f":"الجدول1[[#This Row],[الموجود بالمخزن]]-الجدول1[[#This Row],[تم بيعه]]","v":0}]
[null,null,null,null,null,null,null,{"$f":"الجدول1[[#This Row],[الموجود بالمخزن]]-الجدول1[[#This Row],[تم بيعه]]","v":0}]
[null,null,null,null,null,null,null,{"$f":"الجدول1[[#This Row],[الموجود بالمخزن]]-الجدول1[[#This Row],[تم بيعه]]","v":0}]
[null,null,null,null,null,null,null,{"$f":"الجدول1[[#This Row],[الموجود بالمخزن]]-الجدول1[[#This Row],[تم بيعه]]","v":0}]
[null,null,null,null,null,null,null,{"$f":"الجدول1[[#This Row],[الموجود بالمخزن]]-الجدول1[[#This Row],[تم بيعه]]","v":0}]
[null,null,null,null,null,null,null,{"$f":"الجدول1[[#This Row],[الموجود بالمخزن]]-الجدول1[[#This Row],[تم بيعه]]","v":0}]
[null,null,null,null,null,null,null,{"$f":"الجدول1[[#This Row],[الموجود بالمخزن]]-الجدول1[[#This Row],[تم بيعه]]","v":0}]
[null,null,null,null,null,null,null,{"$f":"الجدول1[[#This Row],[الموجود بالمخزن]]-الجدول1[[#This Row],[تم بيعه]]","v":0}]
[null,null,null,null,null,null,null,{"$f":"الجدول1[[#This Row],[الموجود بالمخزن]]-الجدول1[[#This Row],[تم بيعه]]","v":0}]
[null,null,null,null,null,null,null,{"$f":"الجدول1[[#This Row],[الموجود بالمخزن]]-الجدول1[[#This Row],[تم بيعه]]","v":0}]
[null,null,null,null,null,null,null,{"$f":"الجدول1[[#This Row],[الموجود بالمخزن]]-الجدول1[[#This Row],[تم بيعه]]","v":0}]
[null,null,null,null,null,null,null,{"$f":"الجدول1[[#This Row],[الموجود بالمخزن]]-الجدول1[[#This Row],[تم بيعه]]","v":0}]
[null,null,null,null,null,null,null,{"$f":"الجدول1[[#This Row],[الموجود بالمخزن]]-الجدول1[[#This Row],[تم بيعه]]","v":0}]
[null,null,null,null,null,null,null,{"$f":"الجدول1[[#This Row],[الموجود بالمخزن]]-الجدول1[[#This Row],[تم بيعه]]","v":0}]
[null,null,null,null,null,null,null,{"$f":"الجدول1[[#This Row],[الموجود بالمخزن]]-الجدول1[[#This Row],[تم بيعه]]","v":0}]
[null,null,null,null,null,null,null,{"$f":"الجدول1[[#This Row],[الموجود بالمخزن]]-الجدول1[[#This Row],[تم بيعه]]","v":0}]
[null,null,null,null,null,null,null,{"$f":"الجدول1[[#This Row],[الموجود بالمخزن]]-الجدول1[[#This Row],[تم بيعه]]","v":0}]
[null,null,null,null,null,null,null,{"$f":"الجدول1[[#This Row],[الموجود بالمخزن]]-الجدول1[[#This Row],[تم بيعه]]","v":0}]
[null,null,null,null,null,null,null,{"$f":"الجدول1[[#This Row],[الموجود بالمخزن]]-الجدول1[[#This Row],[تم بيعه]]","v":0}]
[null,null,null,null,null,null,null,{"$f":"الجدول1[[#This Row],[الموجود بالمخزن]]-الجدول1[[#This Row],[تم بيعه]]","v":0}]
[null,null,null,null,null,null,null,{"$f":"الجدول1[[#This Row],[الموجود بالمخزن]]-الجدول1[[#This Row],[تم بيعه]]","v":0}]
[null,null,null,null,null,null,null,{"$f":"الجدول1[[#This Row],[الموجود بالمخزن]]-الجدول1[[#This Row],[تم بيعه]]","v":0}]
[null,null,null,null,null,null,null,{"$f":"الجدول1[[#This Row],[الموجود بالمخزن]]-الجدول1[[#This Row],[تم بيعه]]","v":0}]
[null,null,null,null,null,null,null,{"$f":"الجدول1[[#This Row],[الموجود بالمخزن]]-الجدول1[[#This Row],[تم بيعه]]","v":0}]
[null,null,null,null,null,null,null,{"$f":"الجدول1[[#This Row],[الموجود بالمخزن]]-الجدول1[[#This Row],[تم بيعه]]","v":0}]
[null,null,null,null,null,null,null,{"$f":"الجدول1[[#This Row],[الموجود بالمخزن]]-الجدول1[[#This Row],[تم بيعه]]","v":0}]
[null,null,null,null,null,null,null,{"$f":"الجدول1[[#This Row],[الموجود بالمخزن]]-الجدول1[[#This Row],[تم بيعه]]","v":0}]
[null,null,null,null,null,null,null,{"$f":"الجدول1[[#This Row],[الموجود بالمخزن]]-الجدول1[[#This Row],[تم بيعه]]","v":0}]
[null,null,null,null,null,null,null,{"$f":"الجدول1[[#This Row],[الموجود بالمخزن]]-الجدول1[[#This Row],[تم بيعه]]","v":0}]
[null,null,null,null,null,null,null,{"$f":"الجدول1[[#This Row],[الموجود بالمخزن]]-الجدول1[[#This Row],[تم بيعه]]","v":0}]
[null,null,null,null,null,null,null,{"$f":"الجدول1[[#This Row],[الموجود بالمخزن]]-الجدول1[[#This Row],[تم بيعه]]","v":0}]
[null,null,null,null,null,null,null,{"$f":"الجدول1[[#This Row],[الموجود بالمخزن]]-الجدول1[[#This Row],[تم بيعه]]","v":0}]
[null,null,null,null,null,null,null,{"$f":"الجدول1[[#This Row],[الموجود بالمخزن]]-الجدول1[[#This Row],[تم بيعه]]","v":0}]
[null,null,null,null,null,null,null,{"$f":"الجدول1[[#This Row],[الموجود بالمخزن]]-الجدول1[[#This Row],[تم بيعه]]","v":0}]
[null,null,null,null,null,null,null,{"$f":"الجدول1[[#This Row],[الموجود بالمخزن]]-الجدول1[[#This Row],[تم بيعه]]","v":0}]
[null,null,null,null,null,null,null,{"$f":"الجدول1[[#This Row],[الموجود بالمخزن]]-الجدول1[[#This Row],[تم بيعه]]","v":0}]
[null,null,null,null,null,null,null,{"$f":"الجدول1[[#This Row],[الموجود بالمخزن]]-الجدول1[[#This Row],[تم بيعه]]","v":0}]
[null,null,null,null,null,null,null,{"$f":"الجدول1[[#This Row],[الموجود بالمخزن]]-الجدول1[[#This Row],[تم بيعه]]","v":0}]
[null,null,null,null,null,null,null,{"$f":"الجدول1[[#This Row],[الموجود بالمخزن]]-الجدول1[[#This Row],[تم بيعه]]","v":0}]
[null,null,null,null,null,null,null,{"$f":"الجدول1[[#This Row],[الموجود بالمخزن]]-الجدول1[[#This Row],[تم بيعه]]","v":0}]
[null,null,null,null,null,null,null,{"$f":"الجدول1[[#This Row],[الموجود بالمخزن]]-الجدول1[[#This Row],[تم بيعه]]","v":0}]
[null,null,null,null,null,null,null,{"$f":"الجدول1[[#This Row],[الموجود بالمخزن]]-الجدول1[[#This Row],[تم بيعه]]","v":0}]
[null,null,null,null,null,null,null,{"$f":"الجدول1[[#This Row],[الموجود بالمخزن]]-الجدول1[[#This Row],[تم بيعه]]","v":0}]
[null,null,null,null,null,null,null,{"$f":"الجدول1[[#This Row],[الموجود بالمخزن]]-الجدول1[[#This Row],[تم بيعه]]","v":0}]
[null,null,null,null,null,null,null,{"$f":"الجدول1[[#This Row],[الموجود بالمخزن]]-الجدول1[[#This Row],[تم بيعه]]","v":0}]
[null,null,null,null,null,null,null,{"$f":"الجدول1[[#This Row],[الموجود بالمخزن]]-الجدول1[[#This Row],[تم بيعه]]","v":0}]
[null,null,null,null,null,null,null,{"$f":"الجدول1[[#This Row],[الموجود بالمخزن]]-الجدول1[[#This Row],[تم بيعه]]","v":0}]
[null,null,null,null,null,null,null,{"$f":"الجدول1[[#This Row],[الموجود بالمخزن]]-الجدول1[[#This Row],[تم بيعه]]","v":0}]
[null,null,null,null,null,null,null,{"$f":"الجدول1[[#This Row],[الموجود بالمخزن]]-الجدول1[[#This Row],[تم بيعه]]","v":0}]
[null,null,null,null,null,null,null,{"$f":"الجدول1[[#This Row],[الموجود بالمخزن]]-الجدول1[[#This Row],[تم بيعه]]","v":0}]
[null,null,null,null,null,null,null,{"$f":"الجدول1[[#This Row],[الموجود بالمخزن]]-الجدول1[[#This Row],[تم بيعه]]","v":0}]
[null,null,null,null,null,null,null,{"$f":"الجدول1[[#This Row],[الموجود بالمخزن]]-الجدول1[[#This Row],[تم بيعه]]","v":0}]
[null,null,null,null,null,null,null,{"$f":"الجدول1[[#This Row],[الموجود بالمخزن]]-الجدول1[[#This Row],[تم بيعه]]","v":0}]
[null,null,null,null,null,null,null,{"$f":"الجدول1[[#This Row],[الموجود بالمخزن]]-الجدول1[[#This Row],[تم بيعه]]","v":0}]
[null,null,null,null,null,null,null,{"$f":"الجدول1[[#This Row],[الموجود بالمخزن]]-الجدول1[[#This Row],[تم بيعه]]","v":0}]
[null,null,null,null,null,null,null,{"$f":"الجدول1[[#This Row],[الموجود بالمخزن]]-الجدول1[[#This Row],[تم بيعه]]","v":0}]
[null,null,null,null,null,null,null,{"$f":"الجدول1[[#This Row],[الموجود بالمخزن]]-الجدول1[[#This Row],[تم بيعه]]","v":0}]
[null,null,null,null,null,null,null,{"$f":"الجدول1[[#This Row],[الموجود بالمخزن]]-الجدول1[[#This Row],[تم بيعه]]","v":0}]
[null,null,null,null,null,null,null,{"$f":"الجدول1[[#This Row],[الموجود بالمخزن]]-الجدول1[[#This Row],[تم بيعه]]","v":0}]
[null,null,null,null,null,null,null,{"$f":"الجدول1[[#This Row],[الموجود بالمخزن]]-الجدول1[[#This Row],[تم بيعه]]","v":0}]
[null,null,null,null,null,null,null,{"$f":"الجدول1[[#This Row],[الموجود بالمخزن]]-الجدول1[[#This Row],[تم بيعه]]","v":0}]
[null,null,null,null,null,null,null,{"$f":"الجدول1[[#This Row],[الموجود بالمخزن]]-الجدول1[[#This Row],[تم بيعه]]","v":0}]
[null,null,null,null,null,null,null,{"$f":"الجدول1[[#This Row],[الموجود بالمخزن]]-الجدول1[[#This Row],[تم بيعه]]","v":0}]
[null,null,null,null,null,null,null,{"$f":"الجدول1[[#This Row],[الموجود بالمخزن]]-الجدول1[[#This Row],[تم بيعه]]","v":0}]
[null,null,null,null,null,null,null,{"$f":"الجدول1[[#This Row],[الموجود بالمخزن]]-الجدول1[[#This Row],[تم بيعه]]","v":0}]
[null,null,null,null,null,null,null,{"$f":"الجدول1[[#This Row],[الموجود بالمخزن]]-الجدول1[[#This Row],[تم بيعه]]","v":0}]
[null,null,null,null,null,null,null,{"$f":"الجدول1[[#This Row],[الموجود بالمخزن]]-الجدول1[[#This Row],[تم بيعه]]","v":0}]
[null,null,null,null,null,null,null,{"$f":"الجدول1[[#This Row],[الموجود بالمخزن]]-الجدول1[[#This Row],[تم بيعه]]","v":0}]
[null,null,null,null,null,null,null,{"$f":"الجدول1[[#This Row],[الموجود بالمخزن]]-الجدول1[[#This Row],[تم بيعه]]","v":0}]
[null,null,null,null,null,null,null,{"$f":"الجدول1[[#This Row],[الموجود بالمخزن]]-الجدول1[[#This Row],[تم بيعه]]","v":0}]
[null,null,null,null,null,null,null,{"$f":"الجدول1[[#This Row],[الموجود بالمخزن]]-الجدول1[[#This Row],[تم بيعه]]","v":0}]
[null,null,null,null,null,null,null,{"$f":"الجدول1[[#This Row],[الموجود بالمخزن]]-الجدول1[[#This Row],[تم بيعه]]","v":0}]
[null,null,null,null,null,null,null,{"$f":"الجدول1[[#This Row],[الموجود بالمخزن]]-الجدول1[[#This Row],[تم بيعه]]","v":0}]
[null,null,null,null,null,null,null,{"$f":"الجدول1[[#This Row],[الموجود بالمخزن]]-الجدول1[[#This Row],[تم بيعه]]","v":0}]
[null,null,null,null,null,null,null,{"$f":"الجدول1[[#This Row],[الموجود بالمخزن]]-الجدول1[[#This Row],[تم بيعه]]","v":0}]
[null,null,null,null,null,null,null,{"$f":"الجدول1[[#This Row],[الموجود بالمخزن]]-الجدول1[[#This Row],[تم بيعه]]","v":0}]
[null,null,null,null,null,null,null,{"$f":"الجدول1[[#This Row],[الموجود بالمخزن]]-الجدول1[[#This Row],[تم بيعه]]","v":0}]
[null,null,null,null,null,null,null,{"$f":"الجدول1[[#This Row],[الموجود بالمخزن]]-الجدول1[[#This Row],[تم بيعه]]","v":0}]
[null,null,null,null,null,null,null,{"$f":"الجدول1[[#This Row],[الموجود بالمخزن]]-الجدول1[[#This Row],[تم بيعه]]","v":0}]
[null,null,null,null,null,null,null,{"$f":"الجدول1[[#This Row],[الموجود بالمخزن]]-الجدول1[[#This Row],[تم بيعه]]","v":0}]
[null,null,null,null,null,null,null,{"$f":"الجدول1[[#This Row],[الموجود بالمخزن]]-الجدول1[[#This Row],[تم بيعه]]","v":0}]
[null,null,null,null,null,null,null,{"$f":"الجدول1[[#This Row],[الموجود بالمخزن]]-الجدول1[[#This Row],[تم بيعه]]","v":0}]
[null,null,null,null,null,null,null,{"$f":"الجدول1[[#This Row],[الموجود بالمخزن]]-الجدول1[[#This Row],[تم بيعه]]","v":0}]
[null,null,null,null,null,null,null,{"$f":"الجدول1[[#This Row],[الموجود بالمخزن]]-الجدول1[[#This Row],[تم بيعه]]","v":0}]
[null,null,null,null,null,null,null,{"$f":"الجدول1[[#This Row],[الموجود بالمخزن]]-الجدول1[[#This Row],[تم بيعه]]","v":0}]
[null,null,null,null,null,null,null,{"$f":"الجدول1[[#This Row],[الموجود بالمخزن]]-الجدول1[[#This Row],[تم بيعه]]","v":0}]
[null,null,null,null,null,null,null,{"$f":"الجدول1[[#This Row],[الموجود بالمخزن]]-الجدول1[[#This Row],[تم بيعه]]","v":0}]
[null,null,null,null,null,null,null,{"$f":"الجدول1[[#This Row],[الموجود بالمخزن]]-الجدول1[[#This Row],[تم بيعه]]","v":0}]
[null,null,null,null,null,null,null,{"$f":"الجدول1[[#This Row],[الموجود بالمخزن]]-الجدول1[[#This Row],[تم بيعه]]","v":0}]
[null,null,null,null,null,null,null,{"$f":"الجدول1[[#This Row],[الموجود بالمخزن]]-الجدول1[[#This Row],[تم بيعه]]","v":0}]
[null,null,null,null,null,null,null,{"$f":"الجدول1[[#This Row],[الموجود بالمخزن]]-الجدول1[[#This Row],[تم بيعه]]","v":0}]
[null,null,null,null,null,null,null,{"$f":"الجدول1[[#This Row],[الموجود بالمخزن]]-الجدول1[[#This Row],[تم بيعه]]","v":0}]
[null,null,null,null,null,null,null,{"$f":"الجدول1[[#This Row],[الموجود بالمخزن]]-الجدول1[[#This Row],[تم بيعه]]","v":0}]
[null,null,null,null,null,null,null,{"$f":"الجدول1[[#This Row],[الموجود بالمخزن]]-الجدول1[[#This Row],[تم بيعه]]","v":0}]
[null,null,null,null,null,null,null,{"$f":"الجدول1[[#This Row],[الموجود بالمخزن]]-الجدول1[[#This Row],[تم بيعه]]","v":0}]
[null,null,null,null,null,null,null,{"$f":"الجدول1[[#This Row],[الموجود بالمخزن]]-الجدول1[[#This Row],[تم بيعه]]","v":0}]
[null,null,null,null,null,null,null,{"$f":"الجدول1[[#This Row],[الموجود بالمخزن]]-الجدول1[[#This Row],[تم بيعه]]","v":0}]
[null,null,null,null,null,null,null,{"$f":"الجدول1[[#This Row],[الموجود بالمخزن]]-الجدول1[[#This Row],[تم بيعه]]","v":0}]
[null,null,null,null,null,null,null,{"$f":"الجدول1[[#This Row],[الموجود بالمخزن]]-الجدول1[[#This Row],[تم بيعه]]","v":0}]
[null,null,null,null,null,null,null,{"$f":"الجدول1[[#This Row],[الموجود بالمخزن]]-الجدول1[[#This Row],[تم بيعه]]","v":0}]
[null,null,null,null,null,null,null,{"$f":"الجدول1[[#This Row],[الموجود بالمخزن]]-الجدول1[[#This Row],[تم بيعه]]","v":0}]
[null,null,null,null,null,null,null,{"$f":"الجدول1[[#This Row],[الموجود بالمخزن]]-الجدول1[[#This Row],[تم بيعه]]","v":0}]
[null,null,null,null,null,null,null,{"$f":"الجدول1[[#This Row],[الموجود بالمخزن]]-الجدول1[[#This Row],[تم بيعه]]","v":0}]
[null,null,null,null,null,null,null,{"$f":"الجدول1[[#This Row],[الموجود بالمخزن]]-الجدول1[[#This Row],[تم بيعه]]","v":0}]
[null,null,null,null,null,null,null,{"$f":"الجدول1[[#This Row],[الموجود بالمخزن]]-الجدول1[[#This Row],[تم بيعه]]","v":0}]
[null,null,null,null,null,null,null,{"$f":"الجدول1[[#This Row],[الموجود بالمخزن]]-الجدول1[[#This Row],[تم بيعه]]","v":0}]
[null,null,null,null,null,null,null,{"$f":"الجدول1[[#This Row],[الموجود بالمخزن]]-الجدول1[[#This Row],[تم بيعه]]","v":0}]
[null,null,null,null,null,null,null,{"$f":"الجدول1[[#This Row],[الموجود بالمخزن]]-الجدول1[[#This Row],[تم بيعه]]","v":0}]
[null,null,null,null,null,null,null,{"$f":"الجدول1[[#This Row],[الموجود بالمخزن]]-الجدول1[[#This Row],[تم بيعه]]","v":0}]
[null,null,null,null,null,null,null,{"$f":"الجدول1[[#This Row],[الموجود بالمخزن]]-الجدول1[[#This Row],[تم بيعه]]","v":0}]
[null,null,null,null,null,null,null,{"$f":"الجدول1[[#This Row],[الموجود بالمخزن]]-الجدول1[[#This Row],[تم بيعه]]","v":0}]
[null,null,null,null,null,null,null,{"$f":"الجدول1[[#This Row],[الموجود بالمخزن]]-الجدول1[[#This Row],[تم بيعه]]","v":0}]
[null,null,null,null,null,null,null,{"$f":"الجدول1[[#This Row],[الموجود بالمخزن]]-الجدول1[[#This Row],[تم بيعه]]","v":0}]
[null,null,null,null,null,null,null,{"$f":"الجدول1[[#This Row],[الموجود بالمخزن]]-الجدول1[[#This Row],[تم بيعه]]","v":0}]
[null,null,null,null,null,null,null,{"$f":"الجدول1[[#This Row],[الموجود بالمخزن]]-الجدول1[[#This Row],[تم بيعه]]","v":0}]
[null,null,null,null,null,null,null,{"$f":"الجدول1[[#This Row],[الموجود بالمخزن]]-الجدول1[[#This Row],[تم بيعه]]","v":0}]
[null,null,null,null,null,null,null,{"$f":"الجدول1[[#This Row],[الموجود بالمخزن]]-الجدول1[[#This Row],[تم بيعه]]","v":0}]
[null,null,null,null,null,null,null,{"$f":"الجدول1[[#This Row],[الموجود بالمخزن]]-الجدول1[[#This Row],[تم بيعه]]","v":0}]
[null,null,null,null,null,null,null,{"$f":"الجدول1[[#This Row],[الموجود بالمخزن]]-الجدول1[[#This Row],[تم بيعه]]","v":0}]
[null,null,null,null,null,null,null,{"$f":"الجدول1[[#This Row],[الموجود بالمخزن]]-الجدول1[[#This Row],[تم بيعه]]","v":0}]
[null,null,null,null,null,null,null,{"$f":"الجدول1[[#This Row],[الموجود بالمخزن]]-الجدول1[[#This Row],[تم بيعه]]","v":0}]
[null,null,null,null,null,null,null,{"$f":"الجدول1[[#This Row],[الموجود بالمخزن]]-الجدول1[[#This Row],[تم بيعه]]","v":0}]
[null,null,null,null,null,null,null,{"$f":"الجدول1[[#This Row],[الموجود بالمخزن]]-الجدول1[[#This Row],[تم بيعه]]","v":0}]
[null,null,null,null,null,null,null,{"$f":"الجدول1[[#This Row],[الموجود بالمخزن]]-الجدول1[[#This Row],[تم بيعه]]","v":0}]
[null,null,null,null,null,null,null,{"$f":"الجدول1[[#This Row],[الموجود بالمخزن]]-الجدول1[[#This Row],[تم بيعه]]","v":0}]
[null,null,null,null,null,null,null,{"$f":"الجدول1[[#This Row],[الموجود بالمخزن]]-الجدول1[[#This Row],[تم بيعه]]","v":0}]
[null,null,null,null,null,null,null,{"$f":"الجدول1[[#This Row],[الموجود بالمخزن]]-الجدول1[[#This Row],[تم بيعه]]","v":0}]
[null,null,null,null,null,null,null,{"$f":"الجدول1[[#This Row],[الموجود بالمخزن]]-الجدول1[[#This Row],[تم بيعه]]","v":0}]
[null,null,null,null,null,null,null,{"$f":"الجدول1[[#This Row],[الموجود بالمخزن]]-الجدول1[[#This Row],[تم بيعه]]","v":0}]
[null,null,null,null,null,null,null,{"$f":"الجدول1[[#This Row],[الموجود بالمخزن]]-الجدول1[[#This Row],[تم بيعه]]","v":0}]
[null,null,null,null,null,null,null,{"$f":"الجدول1[[#This Row],[الموجود بالمخزن]]-الجدول1[[#This Row],[تم بيعه]]","v":0}]
[null,null,null,null,null,null,null,{"$f":"الجدول1[[#This Row],[الموجود بالمخزن]]-الجدول1[[#This Row],[تم بيعه]]","v":0}]
[null,null,null,null,null,null,null,{"$f":"الجدول1[[#This Row],[الموجود بالمخزن]]-الجدول1[[#This Row],[تم بيعه]]","v":0}]
[null,null,null,null,null,null,null,{"$f":"الجدول1[[#This Row],[الموجود بالمخزن]]-الجدول1[[#This Row],[تم بيعه]]","v":0}]
[null,null,null,null,null,null,null,{"$f":"الجدول1[[#This Row],[الموجود بالمخزن]]-الجدول1[[#This Row],[تم بيعه]]","v":0}]
[null,null,null,null,null,null,null,{"$f":"الجدول1[[#This Row],[الموجود بالمخزن]]-الجدول1[[#This Row],[تم بيعه]]","v":0}]
[null,null,null,null,null,null,null,{"$f":"الجدول1[[#This Row],[الموجود بالمخزن]]-الجدول1[[#This Row],[تم بيعه]]","v":0}]
[null,null,null,null,null,null,null,{"$f":"الجدول1[[#This Row],[الموجود بالمخزن]]-الجدول1[[#This Row],[تم بيعه]]","v":0}]
[null,null,null,null,null,null,null,{"$f":"الجدول1[[#This Row],[الموجود بالمخزن]]-الجدول1[[#This Row],[تم بيعه]]","v":0}]
[null,null,null,null,null,null,null,{"$f":"الجدول1[[#This Row],[الموجود بالمخزن]]-الجدول1[[#This Row],[تم بيعه]]","v":0}]
[null,null,null,null,null,null,null,{"$f":"الجدول1[[#This Row],[الموجود بالمخزن]]-الجدول1[[#This Row],[تم بيعه]]","v":0}]
[null,null,null,null,null,null,null,{"$f":"الجدول1[[#This Row],[الموجود بالمخزن]]-الجدول1[[#This Row],[تم بيعه]]","v":0}]
[null,null,null,null,null,null,null,{"$f":"الجدول1[[#This Row],[الموجود بالمخزن]]-الجدول1[[#This Row],[تم بيعه]]","v":0}]
[null,null,null,null,null,null,null,{"$f":"الجدول1[[#This Row],[الموجود بالمخزن]]-الجدول1[[#This Row],[تم بيعه]]","v":0}]
[null,null,null,null,null,null,null,{"$f":"الجدول1[[#This Row],[الموجود بالمخزن]]-الجدول1[[#This Row],[تم بيعه]]","v":0}]
[null,null,null,null,null,null,null,{"$f":"الجدول1[[#This Row],[الموجود بالمخزن]]-الجدول1[[#This Row],[تم بيعه]]","v":0}]
[null,null,null,null,null,null,null,{"$f":"الجدول1[[#This Row],[الموجود بالمخزن]]-الجدول1[[#This Row],[تم بيعه]]","v":0}]
[null,null,null,null,null,null,null,{"$f":"الجدول1[[#This Row],[الموجود بالمخزن]]-الجدول1[[#This Row],[تم بيعه]]","v":0}]
[null,null,null,null,null,null,null,{"$f":"الجدول1[[#This Row],[الموجود بالمخزن]]-الجدول1[[#This Row],[تم بيعه]]","v":0}]
[null,null,null,null,null,null,null,{"$f":"الجدول1[[#This Row],[الموجود بالمخزن]]-الجدول1[[#This Row],[تم بيعه]]","v":0}]
[null,null,null,null,null,null,null,{"$f":"الجدول1[[#This Row],[الموجود بالمخزن]]-الجدول1[[#This Row],[تم بيعه]]","v":0}]
[null,null,null,null,null,null,null,{"$f":"الجدول1[[#This Row],[الموجود بالمخزن]]-الجدول1[[#This Row],[تم بيعه]]","v":0}]
[null,null,null,null,null,null,null,{"$f":"الجدول1[[#This Row],[الموجود بالمخزن]]-الجدول1[[#This Row],[تم بيعه]]","v":0}]
[null,null,null,null,null,null,null,{"$f":"الجدول1[[#This Row],[الموجود بالمخزن]]-الجدول1[[#This Row],[تم بيعه]]","v":0}]
[null,null,null,null,null,null,null,{"$f":"الجدول1[[#This Row],[الموجود بالمخزن]]-الجدول1[[#This Row],[تم بيعه]]","v":0}]
[null,null,null,null,null,null,null,{"$f":"الجدول1[[#This Row],[الموجود بالمخزن]]-الجدول1[[#This Row],[تم بيعه]]","v":0}]
[null,null,null,null,null,null,null,{"$f":"الجدول1[[#This Row],[الموجود بالمخزن]]-الجدول1[[#This Row],[تم بيعه]]","v":0}]
[null,null,null,null,null,null,null,{"$f":"الجدول1[[#This Row],[الموجود بالمخزن]]-الجدول1[[#This Row],[تم بيعه]]","v":0}]
[null,null,null,null,null,null,null,{"$f":"الجدول1[[#This Row],[الموجود بالمخزن]]-الجدول1[[#This Row],[تم بيعه]]","v":0}]
[null,null,null,null,null,null,null,{"$f":"الجدول1[[#This Row],[الموجود بالمخزن]]-الجدول1[[#This Row],[تم بيعه]]","v":0}]
[null,null,null,null,null,null,null,{"$f":"الجدول1[[#This Row],[الموجود بالمخزن]]-الجدول1[[#This Row],[تم بيعه]]","v":0}]
[null,null,null,null,null,null,null,{"$f":"الجدول1[[#This Row],[الموجود بالمخزن]]-الجدول1[[#This Row],[تم بيعه]]","v":0}]
[null,null,null,null,null,null,null,{"$f":"الجدول1[[#This Row],[الموجود بالمخزن]]-الجدول1[[#This Row],[تم بيعه]]","v":0}]
[null,null,null,null,null,null,null,{"$f":"الجدول1[[#This Row],[الموجود بالمخزن]]-الجدول1[[#This Row],[تم بيعه]]","v":0}]
[null,null,null,null,null,null,null,{"$f":"الجدول1[[#This Row],[الموجود بالمخزن]]-الجدول1[[#This Row],[تم بيعه]]","v":0}]
[null,null,null,null,null,null,null,{"$f":"الجدول1[[#This Row],[الموجود بالمخزن]]-الجدول1[[#This Row],[تم بيعه]]","v":0}]
[null,null,null,null,null,null,null,{"$f":"الجدول1[[#This Row],[الموجود بالمخزن]]-الجدول1[[#This Row],[تم بيعه]]","v":0}]
[null,null,null,null,null,null,null,{"$f":"الجدول1[[#This Row],[الموجود بالمخزن]]-الجدول1[[#This Row],[تم بيعه]]","v":0}]
[null,null,null,null,null,null,null,{"$f":"الجدول1[[#This Row],[الموجود بالمخزن]]-الجدول1[[#This Row],[تم بيعه]]","v":0}]
[null,null,null,null,null,null,null,{"$f":"الجدول1[[#This Row],[الموجود بالمخزن]]-الجدول1[[#This Row],[تم بيعه]]","v":0}]
[null,null,null,null,null,null,null,{"$f":"الجدول1[[#This Row],[الموجود بالمخزن]]-الجدول1[[#This Row],[تم بيعه]]","v":0}]
[null,null,null,null,null,null,null,{"$f":"الجدول1[[#This Row],[الموجود بالمخزن]]-الجدول1[[#This Row],[تم بيعه]]","v":0}]
[null,null,null,null,null,null,null,{"$f":"الجدول1[[#This Row],[الموجود بالمخزن]]-الجدول1[[#This Row],[تم بيعه]]","v":0}]
[null,null,null,null,null,null,null,{"$f":"الجدول1[[#This Row],[الموجود بالمخزن]]-الجدول1[[#This Row],[تم بيعه]]","v":0}]
[null,null,null,null,null,null,null,{"$f":"الجدول1[[#This Row],[الموجود بالمخزن]]-الجدول1[[#This Row],[تم بيعه]]","v":0}]
[null,null,null,null,null,null,null,{"$f":"الجدول1[[#This Row],[الموجود بالمخزن]]-الجدول1[[#This Row],[تم بيعه]]","v":0}]
[null,null,null,null,null,null,null,{"$f":"الجدول1[[#This Row],[الموجود بالمخزن]]-الجدول1[[#This Row],[تم بيعه]]","v":0}]
[null,null,null,null,null,null,null,{"$f":"الجدول1[[#This Row],[الموجود بالمخزن]]-الجدول1[[#This Row],[تم بيعه]]","v":0}]
[null,null,null,null,null,null,null,{"$f":"الجدول1[[#This Row],[الموجود بالمخزن]]-الجدول1[[#This Row],[تم بيعه]]","v":0}]
[null,null,null,null,null,null,null,{"$f":"الجدول1[[#This Row],[الموجود بالمخزن]]-الجدول1[[#This Row],[تم بيعه]]","v":0}]
[null,null,null,null,null,null,null,{"$f":"الجدول1[[#This Row],[الموجود بالمخزن]]-الجدول1[[#This Row],[تم بيعه]]","v":0}]
[null,null,null,null,null,null,null,{"$f":"الجدول1[[#This Row],[الموجود بالمخزن]]-الجدول1[[#This Row],[تم بيعه]]","v":0}]
[null,null,null,null,null,null,null,{"$f":"الجدول1[[#This Row],[الموجود بالمخزن]]-الجدول1[[#This Row],[تم بيعه]]","v":0}]
[null,null,null,null,null,null,null,{"$f":"الجدول1[[#This Row],[الموجود بالمخزن]]-الجدول1[[#This Row],[تم بيعه]]","v":0}]
[null,null,null,null,null,null,null,{"$f":"الجدول1[[#This Row],[الموجود بالمخزن]]-الجدول1[[#This Row],[تم بيعه]]","v":0}]
[null,null,null,null,null,null,null,{"$f":"الجدول1[[#This Row],[الموجود بالمخزن]]-الجدول1[[#This Row],[تم بيعه]]","v":0}]
[null,null,null,null,null,null,null,{"$f":"الجدول1[[#This Row],[الموجود بالمخزن]]-الجدول1[[#This Row],[تم بيعه]]","v":0}]
[null,null,null,null,null,null,null,{"$f":"الجدول1[[#This Row],[الموجود بالمخزن]]-الجدول1[[#This Row],[تم بيعه]]","v":0}]
[null,null,null,null,null,null,null,{"$f":"الجدول1[[#This Row],[الموجود بالمخزن]]-الجدول1[[#This Row],[تم بيعه]]","v":0}]
[null,null,null,null,null,null,null,{"$f":"الجدول1[[#This Row],[الموجود بالمخزن]]-الجدول1[[#This Row],[تم بيعه]]","v":0}]
[null,null,null,null,null,null,null,{"$f":"الجدول1[[#This Row],[الموجود بالمخزن]]-الجدول1[[#This Row],[تم بيعه]]","v":0}]
[null,null,null,null,null,null,null,{"$f":"الجدول1[[#This Row],[الموجود بالمخزن]]-الجدول1[[#This Row],[تم بيعه]]","v":0}]
[null,null,null,null,null,null,null,{"$f":"الجدول1[[#This Row],[الموجود بالمخزن]]-الجدول1[[#This Row],[تم بيعه]]","v":0}]
[null,null,null,null,null,null,null,{"$f":"الجدول1[[#This Row],[الموجود بالمخزن]]-الجدول1[[#This Row],[تم بيعه]]","v":0}]
[null,null,null,null,null,null,null,{"$f":"الجدول1[[#This Row],[الموجود بالمخزن]]-الجدول1[[#This Row],[تم بيعه]]","v":0}]
[null,null,null,null,null,null,null,{"$f":"الجدول1[[#This Row],[الموجود بالمخزن]]-الجدول1[[#This Row],[تم بيعه]]","v":0}]
[null,null,null,null,null,null,null,{"$f":"الجدول1[[#This Row],[الموجود بالمخزن]]-الجدول1[[#This Row],[تم بيعه]]","v":0}]
[null,null,null,null,null,null,null,{"$f":"الجدول1[[#This Row],[الموجود بالمخزن]]-الجدول1[[#This Row],[تم بيعه]]","v":0}]
[null,null,null,null,null,null,null,{"$f":"الجدول1[[#This Row],[الموجود بالمخزن]]-الجدول1[[#This Row],[تم بيعه]]","v":0}]
[null,null,null,null,null,null,null,{"$f":"الجدول1[[#This Row],[الموجود بالمخزن]]-الجدول1[[#This Row],[تم بيعه]]","v":0}]
[null,null,null,null,null,null,null,{"$f":"الجدول1[[#This Row],[الموجود بالمخزن]]-الجدول1[[#This Row],[تم بيعه]]","v":0}]
[null,null,null,null,null,null,null,{"$f":"الجدول1[[#This Row],[الموجود بالمخزن]]-الجدول1[[#This Row],[تم بيعه]]","v":0}]
[null,null,null,null,null,null,null,{"$f":"الجدول1[[#This Row],[الموجود بالمخزن]]-الجدول1[[#This Row],[تم بيعه]]","v":0}]
[null,null,null,null,null,null,null,{"$f":"الجدول1[[#This Row],[الموجود بالمخزن]]-الجدول1[[#This Row],[تم بيعه]]","v":0}]
[null,null,null,null,null,null,null,{"$f":"الجدول1[[#This Row],[الموجود بالمخزن]]-الجدول1[[#This Row],[تم بيعه]]","v":0}]
[null,null,null,null,null,null,null,{"$f":"الجدول1[[#This Row],[الموجود بالمخزن]]-الجدول1[[#This Row],[تم بيعه]]","v":0}]
[null,null,null,null,null,null,null,{"$f":"الجدول1[[#This Row],[الموجود بالمخزن]]-الجدول1[[#This Row],[تم بيعه]]","v":0}]
[null,null,null,null,null,null,null,{"$f":"الجدول1[[#This Row],[الموجود بالمخزن]]-الجدول1[[#This Row],[تم بيعه]]","v":0}]
[null,null,null,null,null,null,null,{"$f":"الجدول1[[#This Row],[الموجود بالمخزن]]-الجدول1[[#This Row],[تم بيعه]]","v":0}]
[null,null,null,null,null,null,null,{"$f":"الجدول1[[#This Row],[الموجود بالمخزن]]-الجدول1[[#This Row],[تم بيعه]]","v":0}]
[null,null,null,null,null,null,null,{"$f":"الجدول1[[#This Row],[الموجود بالمخزن]]-الجدول1[[#This Row],[تم بيعه]]","v":0}]
[null,null,null,null,null,null,null,{"$f":"الجدول1[[#This Row],[الموجود بالمخزن]]-الجدول1[[#This Row],[تم بيعه]]","v":0}]
[null,null,null,null,null,null,null,{"$f":"الجدول1[[#This Row],[الموجود بالمخزن]]-الجدول1[[#This Row],[تم بيعه]]","v":0}]
[null,null,null,null,null,null,null,{"$f":"الجدول1[[#This Row],[الموجود بالمخزن]]-الجدول1[[#This Row],[تم بيعه]]","v":0}]
[null,null,null,null,null,null,null,{"$f":"الجدول1[[#This Row],[الموجود بالمخزن]]-الجدول1[[#This Row],[تم بيعه]]","v":0}]
[null,null,null,null,null,null,null,{"$f":"الجدول1[[#This Row],[الموجود بالمخزن]]-الجدول1[[#This Row],[تم بيعه]]","v":0}]
[null,null,null,null,null,null,null,{"$f":"الجدول1[[#This Row],[الموجود بالمخزن]]-الجدول1[[#This Row],[تم بيعه]]","v":0}]
[null,null,null,null,null,null,null,{"$f":"الجدول1[[#This Row],[الموجود بالمخزن]]-الجدول1[[#This Row],[تم بيعه]]","v":0}]
[null,null,null,null,null,null,null,{"$f":"الجدول1[[#This Row],[الموجود بالمخزن]]-الجدول1[[#This Row],[تم بيعه]]","v":0}]
[null,null,null,null,null,null,null,{"$f":"الجدول1[[#This Row],[الموجود بالمخزن]]-الجدول1[[#This Row],[تم بيعه]]","v":0}]
[null,null,null,null,null,null,null,{"$f":"الجدول1[[#This Row],[الموجود بالمخزن]]-الجدول1[[#This Row],[تم بيعه]]","v":0}]
[null,null,null,null,null,null,null,{"$f":"الجدول1[[#This Row],[الموجود بالمخزن]]-الجدول1[[#This Row],[تم بيعه]]","v":0}]
[null,null,null,null,null,null,null,{"$f":"الجدول1[[#This Row],[الموجود بالمخزن]]-الجدول1[[#This Row],[تم بيعه]]","v":0}]
[null,null,null,null,null,null,null,{"$f":"الجدول1[[#This Row],[الموجود بالمخزن]]-الجدول1[[#This Row],[تم بيعه]]","v":0}]
[null,null,null,null,null,null,null,{"$f":"الجدول1[[#This Row],[الموجود بالمخزن]]-الجدول1[[#This Row],[تم بيعه]]","v":0}]
[null,null,null,null,null,null,null,{"$f":"الجدول1[[#This Row],[الموجود بالمخزن]]-الجدول1[[#This Row],[تم بيعه]]","v":0}]
[null,null,null,null,null,null,null,{"$f":"الجدول1[[#This Row],[الموجود بالمخزن]]-الجدول1[[#This Row],[تم بيعه]]","v":0}]
[null,null,null,null,null,null,null,{"$f":"الجدول1[[#This Row],[الموجود بالمخزن]]-الجدول1[[#This Row],[تم بيعه]]","v":0}]
[null,null,null,null,null,null,null,{"$f":"الجدول1[[#This Row],[الموجود بالمخزن]]-الجدول1[[#This Row],[تم بيعه]]","v":0}]
[null,null,null,null,null,null,null,{"$f":"الجدول1[[#This Row],[الموجود بالمخزن]]-الجدول1[[#This Row],[تم بيعه]]","v":0}]
[null,null,null,null,null,null,null,{"$f":"الجدول1[[#This Row],[الموجود بالمخزن]]-الجدول1[[#This Row],[تم بيعه]]","v":0}]
[null,null,null,null,null,null,null,{"$f":"الجدول1[[#This Row],[الموجود بالمخزن]]-الجدول1[[#This Row],[تم بيعه]]","v":0}]
[null,null,null,null,null,null,null,{"$f":"الجدول1[[#This Row],[الموجود بالمخزن]]-الجدول1[[#This Row],[تم بيعه]]","v":0}]
[null,null,null,null,null,null,null,{"$f":"الجدول1[[#This Row],[الموجود بالمخزن]]-الجدول1[[#This Row],[تم بيعه]]","v":0}]
[null,null,null,null,null,null,null,{"$f":"الجدول1[[#This Row],[الموجود بالمخزن]]-الجدول1[[#This Row],[تم بيعه]]","v":0}]
[null,null,null,null,null,null,null,{"$f":"الجدول1[[#This Row],[الموجود بالمخزن]]-الجدول1[[#This Row],[تم بيعه]]","v":0}]
[null,null,null,null,null,null,null,{"$f":"الجدول1[[#This Row],[الموجود بالمخزن]]-الجدول1[[#This Row],[تم بيعه]]","v":0}]
[null,null,null,null,null,null,null,{"$f":"الجدول1[[#This Row],[الموجود بالمخزن]]-الجدول1[[#This Row],[تم بيعه]]","v":0}]
[null,null,null,null,null,null,null,{"$f":"الجدول1[[#This Row],[الموجود بالمخزن]]-الجدول1[[#This Row],[تم بيعه]]","v":0}]
[null,null,null,null,null,null,null,{"$f":"الجدول1[[#This Row],[الموجود بالمخزن]]-الجدول1[[#This Row],[تم بيعه]]","v":0}]
[null,null,null,null,null,null,null,{"$f":"الجدول1[[#This Row],[الموجود بالمخزن]]-الجدول1[[#This Row],[تم بيعه]]","v":0}]
[null,null,null,null,null,null,null,{"$f":"الجدول1[[#This Row],[الموجود بالمخزن]]-الجدول1[[#This Row],[تم بيعه]]","v":0}]
[null,null,null,null,null,null,null,{"$f":"الجدول1[[#This Row],[الموجود بالمخزن]]-الجدول1[[#This Row],[تم بيعه]]","v":0}]
[null,null,null,null,null,null,null,{"$f":"الجدول1[[#This Row],[الموجود بالمخزن]]-الجدول1[[#This Row],[تم بيعه]]","v":0}]
[null,null,null,null,null,null,null,{"$f":"الجدول1[[#This Row],[الموجود بالمخزن]]-الجدول1[[#This Row],[تم بيعه]]","v":0}]
[null,null,null,null,null,null,null,{"$f":"الجدول1[[#This Row],[الموجود بالمخزن]]-الجدول1[[#This Row],[تم بيعه]]","v":0}]
[null,null,null,null,null,null,null,{"$f":"الجدول1[[#This Row],[الموجود بالمخزن]]-الجدول1[[#This Row],[تم بيعه]]","v":0}]
[null,null,null,null,null,null,null,{"$f":"الجدول1[[#This Row],[الموجود بالمخزن]]-الجدول1[[#This Row],[تم بيعه]]","v":0}]
[null,null,null,null,null,null,null,{"$f":"الجدول1[[#This Row],[الموجود بالمخزن]]-الجدول1[[#This Row],[تم بيعه]]","v":0}]
[null,null,null,null,null,null,null,{"$f":"الجدول1[[#This Row],[الموجود بالمخزن]]-الجدول1[[#This Row],[تم بيعه]]","v":0}]
[null,null,null,null,null,null,null,{"$f":"الجدول1[[#This Row],[الموجود بالمخزن]]-الجدول1[[#This Row],[تم بيعه]]","v":0}]
[null,null,null,null,null,null,null,{"$f":"الجدول1[[#This Row],[الموجود بالمخزن]]-الجدول1[[#This Row],[تم بيعه]]","v":0}]
[null,null,null,null,null,null,null,{"$f":"الجدول1[[#This Row],[الموجود بالمخزن]]-الجدول1[[#This Row],[تم بيعه]]","v":0}]
[null,null,null,null,null,null,null,{"$f":"الجدول1[[#This Row],[الموجود بالمخزن]]-الجدول1[[#This Row],[تم بيعه]]","v":0}]
[null,null,null,null,null,null,null,{"$f":"الجدول1[[#This Row],[الموجود بالمخزن]]-الجدول1[[#This Row],[تم بيعه]]","v":0}]
[null,null,null,null,null,null,null,{"$f":"الجدول1[[#This Row],[الموجود بالمخزن]]-الجدول1[[#This Row],[تم بيعه]]","v":0}]
[null,null,null,null,null,null,null,{"$f":"الجدول1[[#This Row],[الموجود بالمخزن]]-الجدول1[[#This Row],[تم بيعه]]","v":0}]
[null,null,null,null,null,null,null,{"$f":"الجدول1[[#This Row],[الموجود بالمخزن]]-الجدول1[[#This Row],[تم بيعه]]","v":0}]
[null,null,null,null,null,null,null,{"$f":"الجدول1[[#This Row],[الموجود بالمخزن]]-الجدول1[[#This Row],[تم بيعه]]","v":0}]
[null,null,null,null,null,null,null,{"$f":"الجدول1[[#This Row],[الموجود بالمخزن]]-الجدول1[[#This Row],[تم بيعه]]","v":0}]
[null,null,null,null,null,null,null,{"$f":"الجدول1[[#This Row],[الموجود بالمخزن]]-الجدول1[[#This Row],[تم بيعه]]","v":0}]
[null,null,null,null,null,null,null,{"$f":"الجدول1[[#This Row],[الموجود بالمخزن]]-الجدول1[[#This Row],[تم بيعه]]","v":0}]
[null,null,null,null,null,null,null,{"$f":"الجدول1[[#This Row],[الموجود بالمخزن]]-الجدول1[[#This Row],[تم بيعه]]","v":0}]
[null,null,null,null,null,null,null,{"$f":"الجدول1[[#This Row],[الموجود بالمخزن]]-الجدول1[[#This Row],[تم بيعه]]","v":0}]
[null,null,null,null,null,null,null,{"$f":"الجدول1[[#This Row],[الموجود بالمخزن]]-الجدول1[[#This Row],[تم بيعه]]","v":0}]
[null,null,null,null,null,null,null,{"$f":"الجدول1[[#This Row],[الموجود بالمخزن]]-الجدول1[[#This Row],[تم بيعه]]","v":0}]
[null,null,null,null,null,null,null,{"$f":"الجدول1[[#This Row],[الموجود بالمخزن]]-الجدول1[[#This Row],[تم بيعه]]","v":0}]
[null,null,null,null,null,null,null,{"$f":"الجدول1[[#This Row],[الموجود بالمخزن]]-الجدول1[[#This Row],[تم بيعه]]","v":0}]
[null,null,null,null,null,null,null,{"$f":"الجدول1[[#This Row],[الموجود بالمخزن]]-الجدول1[[#This Row],[تم بيعه]]","v":0}]
[null,null,null,null,null,null,null,{"$f":"الجدول1[[#This Row],[الموجود بالمخزن]]-الجدول1[[#This Row],[تم بيعه]]","v":0}]
[null,null,null,null,null,null,null,{"$f":"الجدول1[[#This Row],[الموجود بالمخزن]]-الجدول1[[#This Row],[تم بيعه]]","v":0}]
[null,null,null,null,null,null,null,{"$f":"الجدول1[[#This Row],[الموجود بالمخزن]]-الجدول1[[#This Row],[تم بيعه]]","v":0}]
[null,null,null,null,null,null,null,{"$f":"الجدول1[[#This Row],[الموجود بالمخزن]]-الجدول1[[#This Row],[تم بيعه]]","v":0}]
[null,null,null,null,null,null,null,{"$f":"الجدول1[[#This Row],[الموجود بالمخزن]]-الجدول1[[#This Row],[تم بيعه]]","v":0}]
[null,null,null,null,null,null,null,{"$f":"الجدول1[[#This Row],[الموجود بالمخزن]]-الجدول1[[#This Row],[تم بيعه]]","v":0}]
[null,null,null,null,null,null,null,{"$f":"الجدول1[[#This Row],[الموجود بالمخزن]]-الجدول1[[#This Row],[تم بيعه]]","v":0}]
[null,null,null,null,null,null,null,{"$f":"الجدول1[[#This Row],[الموجود بالمخزن]]-الجدول1[[#This Row],[تم بيعه]]","v":0}]
[null,null,null,null,null,null,null,{"$f":"الجدول1[[#This Row],[الموجود بالمخزن]]-الجدول1[[#This Row],[تم بيعه]]","v":0}]
[null,null,null,null,null,null,null,{"$f":"الجدول1[[#This Row],[الموجود بالمخزن]]-الجدول1[[#This Row],[تم بيعه]]","v":0}]
[null,null,null,null,null,null,null,{"$f":"الجدول1[[#This Row],[الموجود بالمخزن]]-الجدول1[[#This Row],[تم بيعه]]","v":0}]
[null,null,null,null,null,null,null,{"$f":"الجدول1[[#This Row],[الموجود بالمخزن]]-الجدول1[[#This Row],[تم بيعه]]","v":0}]
[null,null,null,null,null,null,null,{"$f":"الجدول1[[#This Row],[الموجود بالمخزن]]-الجدول1[[#This Row],[تم بيعه]]","v":0}]
[null,null,null,null,null,null,null,{"$f":"الجدول1[[#This Row],[الموجود بالمخزن]]-الجدول1[[#This Row],[تم بيعه]]","v":0}]
[null,null,null,null,null,null,null,{"$f":"الجدول1[[#This Row],[الموجود بالمخزن]]-الجدول1[[#This Row],[تم بيعه]]","v":0}]
[null,null,null,null,null,null,null,{"$f":"الجدول1[[#This Row],[الموجود بالمخزن]]-الجدول1[[#This Row],[تم بيعه]]","v":0}]
[null,null,null,null,null,null,null,{"$f":"الجدول1[[#This Row],[الموجود بالمخزن]]-الجدول1[[#This Row],[تم بيعه]]","v":0}]
[null,null,null,null,null,null,null,{"$f":"الجدول1[[#This Row],[الموجود بالمخزن]]-الجدول1[[#This Row],[تم بيعه]]","v":0}]
[null,null,null,null,null,null,null,{"$f":"الجدول1[[#This Row],[الموجود بالمخزن]]-الجدول1[[#This Row],[تم بيعه]]","v":0}]
[null,null,null,null,null,null,null,{"$f":"الجدول1[[#This Row],[الموجود بالمخزن]]-الجدول1[[#This Row],[تم بيعه]]","v":0}]
[null,null,null,null,null,null,null,{"$f":"الجدول1[[#This Row],[الموجود بالمخزن]]-الجدول1[[#This Row],[تم بيعه]]","v":0}]
[null,null,null,null,null,null,null,{"$f":"الجدول1[[#This Row],[الموجود بالمخزن]]-الجدول1[[#This Row],[تم بيعه]]","v":0}]
[null,null,null,null,null,null,null,{"$f":"الجدول1[[#This Row],[الموجود بالمخزن]]-الجدول1[[#This Row],[تم بيعه]]","v":0}]
[null,null,null,null,null,null,null,{"$f":"الجدول1[[#This Row],[الموجود بالمخزن]]-الجدول1[[#This Row],[تم بيعه]]","v":0}]
[null,null,null,null,null,null,null,{"$f":"الجدول1[[#This Row],[الموجود بالمخزن]]-الجدول1[[#This Row],[تم بيعه]]","v":0}]
[null,null,null,null,null,null,null,{"$f":"الجدول1[[#This Row],[الموجود بالمخزن]]-الجدول1[[#This Row],[تم بيعه]]","v":0}]
[null,null,null,null,null,null,null,{"$f":"الجدول1[[#This Row],[الموجود بالمخزن]]-الجدول1[[#This Row],[تم بيعه]]","v":0}]
[null,null,null,null,null,null,null,{"$f":"الجدول1[[#This Row],[الموجود بالمخزن]]-الجدول1[[#This Row],[تم بيعه]]","v":0}]
[null,null,null,null,null,null,null,{"$f":"الجدول1[[#This Row],[الموجود بالمخزن]]-الجدول1[[#This Row],[تم بيعه]]","v":0}]
[null,null,null,null,null,null,null,{"$f":"الجدول1[[#This Row],[الموجود بالمخزن]]-الجدول1[[#This Row],[تم بيعه]]","v":0}]
[null,null,null,null,null,null,null,{"$f":"الجدول1[[#This Row],[الموجود بالمخزن]]-الجدول1[[#This Row],[تم بيعه]]","v":0}]
[null,null,null,null,null,null,null,{"$f":"الجدول1[[#This Row],[الموجود بالمخزن]]-الجدول1[[#This Row],[تم بيعه]]","v":0}]
[null,null,null,null,null,null,null,{"$f":"الجدول1[[#This Row],[الموجود بالمخزن]]-الجدول1[[#This Row],[تم بيعه]]","v":0}]
[null,null,null,null,null,null,null,{"$f":"الجدول1[[#This Row],[الموجود بالمخزن]]-الجدول1[[#This Row],[تم بيعه]]","v":0}]
[null,null,null,null,null,null,null,{"$f":"الجدول1[[#This Row],[الموجود بالمخزن]]-الجدول1[[#This Row],[تم بيعه]]","v":0}]
[null,null,null,null,null,null,null,{"$f":"الجدول1[[#This Row],[الموجود بالمخزن]]-الجدول1[[#This Row],[تم بيعه]]","v":0}]
[null,null,null,null,null,null,null,{"$f":"الجدول1[[#This Row],[الموجود بالمخزن]]-الجدول1[[#This Row],[تم بيعه]]","v":0}]
[null,null,null,null,null,null,null,{"$f":"الجدول1[[#This Row],[الموجود بالمخزن]]-الجدول1[[#This Row],[تم بيعه]]","v":0}]
[null,null,null,null,null,null,null,{"$f":"الجدول1[[#This Row],[الموجود بالمخزن]]-الجدول1[[#This Row],[تم بيعه]]","v":0}]
[null,null,null,null,null,null,null,{"$f":"الجدول1[[#This Row],[الموجود بالمخزن]]-الجدول1[[#This Row],[تم بيعه]]","v":0}]
[null,null,null,null,null,null,null,{"$f":"الجدول1[[#This Row],[الموجود بالمخزن]]-الجدول1[[#This Row],[تم بيعه]]","v":0}]
[null,null,null,null,null,null,null,{"$f":"الجدول1[[#This Row],[الموجود بالمخزن]]-الجدول1[[#This Row],[تم بيعه]]","v":0}]
[null,null,null,null,null,null,null,{"$f":"الجدول1[[#This Row],[الموجود بالمخزن]]-الجدول1[[#This Row],[تم بيعه]]","v":0}]
[null,null,null,null,null,null,null,{"$f":"الجدول1[[#This Row],[الموجود بالمخزن]]-الجدول1[[#This Row],[تم بيعه]]","v":0}]
[null,null,null,null,null,null,null,{"$f":"الجدول1[[#This Row],[الموجود بالمخزن]]-الجدول1[[#This Row],[تم بيعه]]","v":0}]
[null,null,null,null,null,null,null,{"$f":"الجدول1[[#This Row],[الموجود بالمخزن]]-الجدول1[[#This Row],[تم بيعه]]","v":0}]
[null,null,null,null,null,null,null,{"$f":"الجدول1[[#This Row],[الموجود بالمخزن]]-الجدول1[[#This Row],[تم بيعه]]","v":0}]
[null,null,null,null,null,null,null,{"$f":"الجدول1[[#This Row],[الموجود بالمخزن]]-الجدول1[[#This Row],[تم بيعه]]","v":0}]
[null,null,null,null,null,null,null,{"$f":"الجدول1[[#This Row],[الموجود بالمخزن]]-الجدول1[[#This Row],[تم بيعه]]","v":0}]
[null,null,null,null,null,null,null,{"$f":"الجدول1[[#This Row],[الموجود بالمخزن]]-الجدول1[[#This Row],[تم بيعه]]","v":0}]
[null,null,null,null,null,null,null,{"$f":"الجدول1[[#This Row],[الموجود بالمخزن]]-الجدول1[[#This Row],[تم بيعه]]","v":0}]
[null,null,null,null,null,null,null,{"$f":"الجدول1[[#This Row],[الموجود بالمخزن]]-الجدول1[[#This Row],[تم بيعه]]","v":0}]
[null,null,null,null,null,null,null,{"$f":"الجدول1[[#This Row],[الموجود بالمخزن]]-الجدول1[[#This Row],[تم بيعه]]","v":0}]
[null,null,null,null,null,null,null,{"$f":"الجدول1[[#This Row],[الموجود بالمخزن]]-الجدول1[[#This Row],[تم بيعه]]","v":0}]
[null,null,null,null,null,null,null,{"$f":"الجدول1[[#This Row],[الموجود بالمخزن]]-الجدول1[[#This Row],[تم بيعه]]","v":0}]
[null,null,null,null,null,null,null,{"$f":"الجدول1[[#This Row],[الموجود بالمخزن]]-الجدول1[[#This Row],[تم بيعه]]","v":0}]
[null,null,null,null,null,null,null,{"$f":"الجدول1[[#This Row],[الموجود بالمخزن]]-الجدول1[[#This Row],[تم بيعه]]","v":0}]
[null,null,null,null,null,null,null,{"$f":"الجدول1[[#This Row],[الموجود بالمخزن]]-الجدول1[[#This Row],[تم بيعه]]","v":0}]
[null,null,null,null,null,null,null,{"$f":"الجدول1[[#This Row],[الموجود بالمخزن]]-الجدول1[[#This Row],[تم بيعه]]","v":0}]
[null,null,null,null,null,null,null,{"$f":"الجدول1[[#This Row],[الموجود بالمخزن]]-الجدول1[[#This Row],[تم بيعه]]","v":0}]
[null,null,null,null,null,null,null,{"$f":"الجدول1[[#This Row],[الموجود بالمخزن]]-الجدول1[[#This Row],[تم بيعه]]","v":0}]
[null,null,null,null,null,null,null,{"$f":"الجدول1[[#This Row],[الموجود بالمخزن]]-الجدول1[[#This Row],[تم بيعه]]","v":0}]
[null,null,null,null,null,null,null,{"$f":"الجدول1[[#This Row],[الموجود بالمخزن]]-الجدول1[[#This Row],[تم بيعه]]","v":0}]
[null,null,null,null,null,null,null,{"$f":"الجدول1[[#This Row],[الموجود بالمخزن]]-الجدول1[[#This Row],[تم بيعه]]","v":0}]
[null,null,null,null,null,null,null,{"$f":"الجدول1[[#This Row],[الموجود بالمخزن]]-الجدول1[[#This Row],[تم بيعه]]","v":0}]
[null,null,null,null,null,null,null,{"$f":"الجدول1[[#This Row],[الموجود بالمخزن]]-الجدول1[[#This Row],[تم بيعه]]","v":0}]
[null,null,null,null,null,null,null,{"$f":"الجدول1[[#This Row],[الموجود بالمخزن]]-الجدول1[[#This Row],[تم بيعه]]","v":0}]
[null,null,null,null,null,null,null,{"$f":"الجدول1[[#This Row],[الموجود بالمخزن]]-الجدول1[[#This Row],[تم بيعه]]","v":0}]
[null,null,null,null,null,null,null,{"$f":"الجدول1[[#This Row],[الموجود بالمخزن]]-الجدول1[[#This Row],[تم بيعه]]","v":0}]
[null,null,null,null,null,null,null,{"$f":"الجدول1[[#This Row],[الموجود بالمخزن]]-الجدول1[[#This Row],[تم بيعه]]","v":0}]
[null,null,null,null,null,null,null,{"$f":"الجدول1[[#This Row],[الموجود بالمخزن]]-الجدول1[[#This Row],[تم بيعه]]","v":0}]
[null,null,null,null,null,null,null,{"$f":"الجدول1[[#This Row],[الموجود بالمخزن]]-الجدول1[[#This Row],[تم بيعه]]","v":0}]
[null,null,null,null,null,null,null,{"$f":"الجدول1[[#This Row],[الموجود بالمخزن]]-الجدول1[[#This Row],[تم بيعه]]","v":0}]
[null,null,null,null,null,null,null,{"$f":"الجدول1[[#This Row],[الموجود بالمخزن]]-الجدول1[[#This Row],[تم بيعه]]","v":0}]
[null,null,null,null,null,null,null,{"$f":"الجدول1[[#This Row],[الموجود بالمخزن]]-الجدول1[[#This Row],[تم بيعه]]","v":0}]
[null,null,null,null,null,null,null,{"$f":"الجدول1[[#This Row],[الموجود بالمخزن]]-الجدول1[[#This Row],[تم بيعه]]","v":0}]
[null,null,null,null,null,null,null,{"$f":"الجدول1[[#This Row],[الموجود بالمخزن]]-الجدول1[[#This Row],[تم بيعه]]","v":0}]
[null,null,null,null,null,null,null,{"$f":"الجدول1[[#This Row],[الموجود بالمخزن]]-الجدول1[[#This Row],[تم بيعه]]","v":0}]
[null,null,null,null,null,null,null,{"$f":"الجدول1[[#This Row],[الموجود بالمخزن]]-الجدول1[[#This Row],[تم بيعه]]","v":0}]
[null,null,null,null,null,null,null,{"$f":"الجدول1[[#This Row],[الموجود بالمخزن]]-الجدول1[[#This Row],[تم بيعه]]","v":0}]
[null,null,null,null,null,null,null,{"$f":"الجدول1[[#This Row],[الموجود بالمخزن]]-الجدول1[[#This Row],[تم بيعه]]","v":0}]
[null,null,null,null,null,null,null,{"$f":"الجدول1[[#This Row],[الموجود بالمخزن]]-الجدول1[[#This Row],[تم بيعه]]","v":0}]
[null,null,null,null,null,null,null,{"$f":"الجدول1[[#This Row],[الموجود بالمخزن]]-الجدول1[[#This Row],[تم بيعه]]","v":0}]
[null,null,null,null,null,null,null,{"$f":"الجدول1[[#This Row],[الموجود بالمخزن]]-الجدول1[[#This Row],[تم بيعه]]","v":0}]
[null,null,null,null,null,null,null,{"$f":"الجدول1[[#This Row],[الموجود بالمخزن]]-الجدول1[[#This Row],[تم بيعه]]","v":0}]
[null,null,null,null,null,null,null,{"$f":"الجدول1[[#This Row],[الموجود بالمخزن]]-الجدول1[[#This Row],[تم بيعه]]","v":0}]
[null,null,null,null,null,null,null,{"$f":"الجدول1[[#This Row],[الموجود بالمخزن]]-الجدول1[[#This Row],[تم بيعه]]","v":0}]
[null,null,null,null,null,null,null,{"$f":"الجدول1[[#This Row],[الموجود بالمخزن]]-الجدول1[[#This Row],[تم بيعه]]","v":0}]
[null,null,null,null,null,null,null,{"$f":"الجدول1[[#This Row],[الموجود بالمخزن]]-الجدول1[[#This Row],[تم بيعه]]","v":0}]
[null,null,null,null,null,null,null,{"$f":"الجدول1[[#This Row],[الموجود بالمخزن]]-الجدول1[[#This Row],[تم بيعه]]","v":0}]
[null,null,null,null,null,null,null,{"$f":"الجدول1[[#This Row],[الموجود بالمخزن]]-الجدول1[[#This Row],[تم بيعه]]","v":0}]
[null,null,null,null,null,null,null,{"$f":"الجدول1[[#This Row],[الموجود بالمخزن]]-الجدول1[[#This Row],[تم بيعه]]","v":0}]
[null,null,null,null,null,null,null,{"$f":"الجدول1[[#This Row],[الموجود بالمخزن]]-الجدول1[[#This Row],[تم بيعه]]","v":0}]
[null,null,null,null,null,null,null,{"$f":"الجدول1[[#This Row],[الموجود بالمخزن]]-الجدول1[[#This Row],[تم بيعه]]","v":0}]
[null,null,null,null,null,null,null,{"$f":"الجدول1[[#This Row],[الموجود بالمخزن]]-الجدول1[[#This Row],[تم بيعه]]","v":0}]
[null,null,null,null,null,null,null,{"$f":"الجدول1[[#This Row],[الموجود بالمخزن]]-الجدول1[[#This Row],[تم بيعه]]","v":0}]
[null,null,null,null,null,null,null,{"$f":"الجدول1[[#This Row],[الموجود بالمخزن]]-الجدول1[[#This Row],[تم بيعه]]","v":0}]
[null,null,null,null,null,null,null,{"$f":"الجدول1[[#This Row],[الموجود بالمخزن]]-الجدول1[[#This Row],[تم بيعه]]","v":0}]
[null,null,null,null,null,null,null,{"$f":"الجدول1[[#This Row],[الموجود بالمخزن]]-الجدول1[[#This Row],[تم بيعه]]","v":0}]
[null,null,null,null,null,null,null,{"$f":"الجدول1[[#This Row],[الموجود بالمخزن]]-الجدول1[[#This Row],[تم بيعه]]","v":0}]
[null,null,null,null,null,null,null,{"$f":"الجدول1[[#This Row],[الموجود بالمخزن]]-الجدول1[[#This Row],[تم بيعه]]","v":0}]
[null,null,null,null,null,null,null,{"$f":"الجدول1[[#This Row],[الموجود بالمخزن]]-الجدول1[[#This Row],[تم بيعه]]","v":0}]
[null,null,null,null,null,null,null,{"$f":"الجدول1[[#This Row],[الموجود بالمخزن]]-الجدول1[[#This Row],[تم بيعه]]","v":0}]
[null,null,null,null,null,null,null,{"$f":"الجدول1[[#This Row],[الموجود بالمخزن]]-الجدول1[[#This Row],[تم بيعه]]","v":0}]
[null,null,null,null,null,null,null,{"$f":"الجدول1[[#This Row],[الموجود بالمخزن]]-الجدول1[[#This Row],[تم بيعه]]","v":0}]
[null,null,null,null,null,null,null,{"$f":"الجدول1[[#This Row],[الموجود بالمخزن]]-الجدول1[[#This Row],[تم بيعه]]","v":0}]
[null,null,null,null,null,null,null,{"$f":"الجدول1[[#This Row],[الموجود بالمخزن]]-الجدول1[[#This Row],[تم بيعه]]","v":0}]
[null,null,null,null,null,null,null,{"$f":"الجدول1[[#This Row],[الموجود بالمخزن]]-الجدول1[[#This Row],[تم بيعه]]","v":0}]
[null,null,null,null,null,null,null,{"$f":"الجدول1[[#This Row],[الموجود بالمخزن]]-الجدول1[[#This Row],[تم بيعه]]","v":0}]
[null,null,null,null,null,null,null,{"$f":"الجدول1[[#This Row],[الموجود بالمخزن]]-الجدول1[[#This Row],[تم بيعه]]","v":0}]
[null,null,null,null,null,null,null,{"$f":"الجدول1[[#This Row],[الموجود بالمخزن]]-الجدول1[[#This Row],[تم بيعه]]","v":0}]
[null,null,null,null,null,null,null,{"$f":"الجدول1[[#This Row],[الموجود بالمخزن]]-الجدول1[[#This Row],[تم بيعه]]","v":0}]
[null,null,null,null,null,null,null,{"$f":"الجدول1[[#This Row],[الموجود بالمخزن]]-الجدول1[[#This Row],[تم بيعه]]","v":0}]
[null,null,null,null,null,null,null,{"$f":"الجدول1[[#This Row],[الموجود بالمخزن]]-الجدول1[[#This Row],[تم بيعه]]","v":0}]
[null,null,null,null,null,null,null,{"$f":"الجدول1[[#This Row],[الموجود بالمخزن]]-الجدول1[[#This Row],[تم بيعه]]","v":0}]
[null,null,null,null,null,null,null,{"$f":"الجدول1[[#This Row],[الموجود بالمخزن]]-الجدول1[[#This Row],[تم بيعه]]","v":0}]
[null,null,null,null,null,null,null,{"$f":"الجدول1[[#This Row],[الموجود بالمخزن]]-الجدول1[[#This Row],[تم بيعه]]","v":0}]
[null,null,null,null,null,null,null,{"$f":"الجدول1[[#This Row],[الموجود بالمخزن]]-الجدول1[[#This Row],[تم بيعه]]","v":0}]
[null,null,null,null,null,null,null,{"$f":"الجدول1[[#This Row],[الموجود بالمخزن]]-الجدول1[[#This Row],[تم بيعه]]","v":0}]
[null,null,null,null,null,null,null,{"$f":"الجدول1[[#This Row],[الموجود بالمخزن]]-الجدول1[[#This Row],[تم بيعه]]","v":0}]
[null,null,null,null,null,null,null,{"$f":"الجدول1[[#This Row],[الموجود بالمخزن]]-الجدول1[[#This Row],[تم بيعه]]","v":0}]
[null,null,null,null,null,null,null,{"$f":"الجدول1[[#This Row],[الموجود بالمخزن]]-الجدول1[[#This Row],[تم بيعه]]","v":0}]
[null,null,null,null,null,null,null,{"$f":"الجدول1[[#This Row],[الموجود بالمخزن]]-الجدول1[[#This Row],[تم بيعه]]","v":0}]
[null,null,null,null,null,null,null,{"$f":"الجدول1[[#This Row],[الموجود بالمخزن]]-الجدول1[[#This Row],[تم بيعه]]","v":0}]
[null,null,null,null,null,null,null,{"$f":"الجدول1[[#This Row],[الموجود بالمخزن]]-الجدول1[[#This Row],[تم بيعه]]","v":0}]
[null,null,null,null,null,null,null,{"$f":"الجدول1[[#This Row],[الموجود بالمخزن]]-الجدول1[[#This Row],[تم بيعه]]","v":0}]
[null,null,null,null,null,null,null,{"$f":"الجدول1[[#This Row],[الموجود بالمخزن]]-الجدول1[[#This Row],[تم بيعه]]","v":0}]
[null,null,null,null,null,null,null,{"$f":"الجدول1[[#This Row],[الموجود بالمخزن]]-الجدول1[[#This Row],[تم بيعه]]","v":0}]
[null,null,null,null,null,null,null,{"$f":"الجدول1[[#This Row],[الموجود بالمخزن]]-الجدول1[[#This Row],[تم بيعه]]","v":0}]
[null,null,null,null,null,null,null,{"$f":"الجدول1[[#This Row],[الموجود بالمخزن]]-الجدول1[[#This Row],[تم بيعه]]","v":0}]
[null,null,null,null,null,null,null,{"$f":"الجدول1[[#This Row],[الموجود بالمخزن]]-الجدول1[[#This Row],[تم بيعه]]","v":0}]
[null,null,null,null,null,null,null,{"$f":"الجدول1[[#This Row],[الموجود بالمخزن]]-الجدول1[[#This Row],[تم بيعه]]","v":0}]
[null,null,null,null,null,null,null,{"$f":"الجدول1[[#This Row],[الموجود بالمخزن]]-الجدول1[[#This Row],[تم بيعه]]","v":0}]
[null,null,null,null,null,null,null,{"$f":"الجدول1[[#This Row],[الموجود بالمخزن]]-الجدول1[[#This Row],[تم بيعه]]","v":0}]
[null,null,null,null,null,null,null,{"$f":"الجدول1[[#This Row],[الموجود بالمخزن]]-الجدول1[[#This Row],[تم بيعه]]","v":0}]
[null,null,null,null,null,null,null,{"$f":"الجدول1[[#This Row],[الموجود بالمخزن]]-الجدول1[[#This Row],[تم بيعه]]","v":0}]
[null,null,null,null,null,null,null,{"$f":"الجدول1[[#This Row],[الموجود بالمخزن]]-الجدول1[[#This Row],[تم بيعه]]","v":0}]
[null,null,null,null,null,null,null,{"$f":"الجدول1[[#This Row],[الموجود بالمخزن]]-الجدول1[[#This Row],[تم بيعه]]","v":0}]
[null,null,null,null,null,null,null,{"$f":"الجدول1[[#This Row],[الموجود بالمخزن]]-الجدول1[[#This Row],[تم بيعه]]","v":0}]
[null,null,null,null,null,null,null,{"$f":"الجدول1[[#This Row],[الموجود بالمخزن]]-الجدول1[[#This Row],[تم بيعه]]","v":0}]
[null,null,null,null,null,null,null,{"$f":"الجدول1[[#This Row],[الموجود بالمخزن]]-الجدول1[[#This Row],[تم بيعه]]","v":0}]
[null,null,null,null,null,null,null,{"$f":"الجدول1[[#This Row],[الموجود بالمخزن]]-الجدول1[[#This Row],[تم بيعه]]","v":0}]
[null,null,null,null,null,null,null,{"$f":"الجدول1[[#This Row],[الموجود بالمخزن]]-الجدول1[[#This Row],[تم بيعه]]","v":0}]
[null,null,null,null,null,null,null,{"$f":"الجدول1[[#This Row],[الموجود بالمخزن]]-الجدول1[[#This Row],[تم بيعه]]","v":0}]
[null,null,null,null,null,null,null,{"$f":"الجدول1[[#This Row],[الموجود بالمخزن]]-الجدول1[[#This Row],[تم بيعه]]","v":0}]
[null,null,null,null,null,null,null,{"$f":"الجدول1[[#This Row],[الموجود بالمخزن]]-الجدول1[[#This Row],[تم بيعه]]","v":0}]
[null,null,null,null,null,null,null,{"$f":"الجدول1[[#This Row],[الموجود بالمخزن]]-الجدول1[[#This Row],[تم بيعه]]","v":0}]
[null,null,null,null,null,null,null,{"$f":"الجدول1[[#This Row],[الموجود بالمخزن]]-الجدول1[[#This Row],[تم بيعه]]","v":0}]
[null,null,null,null,null,null,null,{"$f":"الجدول1[[#This Row],[الموجود بالمخزن]]-الجدول1[[#This Row],[تم بيعه]]","v":0}]
[null,null,null,null,null,null,null,{"$f":"الجدول1[[#This Row],[الموجود بالمخزن]]-الجدول1[[#This Row],[تم بيعه]]","v":0}]
[null,null,null,null,null,null,null,{"$f":"الجدول1[[#This Row],[الموجود بالمخزن]]-الجدول1[[#This Row],[تم بيعه]]","v":0}]
[null,null,null,null,null,null,null,{"$f":"الجدول1[[#This Row],[الموجود بالمخزن]]-الجدول1[[#This Row],[تم بيعه]]","v":0}]
[null,null,null,null,null,null,null,{"$f":"الجدول1[[#This Row],[الموجود بالمخزن]]-الجدول1[[#This Row],[تم بيعه]]","v":0}]
[null,null,null,null,null,null,null,{"$f":"الجدول1[[#This Row],[الموجود بالمخزن]]-الجدول1[[#This Row],[تم بيعه]]","v":0}]
[null,null,null,null,null,null,null,{"$f":"الجدول1[[#This Row],[الموجود بالمخزن]]-الجدول1[[#This Row],[تم بيعه]]","v":0}]
[null,null,null,null,null,null,null,{"$f":"الجدول1[[#This Row],[الموجود بالمخزن]]-الجدول1[[#This Row],[تم بيعه]]","v":0}]
[null,null,null,null,null,null,null,{"$f":"الجدول1[[#This Row],[الموجود بالمخزن]]-الجدول1[[#This Row],[تم بيعه]]","v":0}]
[null,null,null,null,null,null,null,{"$f":"الجدول1[[#This Row],[الموجود بالمخزن]]-الجدول1[[#This Row],[تم بيعه]]","v":0}]
[null,null,null,null,null,null,null,{"$f":"الجدول1[[#This Row],[الموجود بالمخزن]]-الجدول1[[#This Row],[تم بيعه]]","v":0}]
[null,null,null,null,null,null,null,{"$f":"الجدول1[[#This Row],[الموجود بالمخزن]]-الجدول1[[#This Row],[تم بيعه]]","v":0}]
[null,null,null,null,null,null,null,{"$f":"الجدول1[[#This Row],[الموجود بالمخزن]]-الجدول1[[#This Row],[تم بيعه]]","v":0}]
[null,null,null,null,null,null,null,{"$f":"الجدول1[[#This Row],[الموجود بالمخزن]]-الجدول1[[#This Row],[تم بيعه]]","v":0}]
[null,null,null,null,null,null,null,{"$f":"الجدول1[[#This Row],[الموجود بالمخزن]]-الجدول1[[#This Row],[تم بيعه]]","v":0}]
[null,null,null,null,null,null,null,{"$f":"الجدول1[[#This Row],[الموجود بالمخزن]]-الجدول1[[#This Row],[تم بيعه]]","v":0}]
[null,null,null,null,null,null,null,{"$f":"الجدول1[[#This Row],[الموجود بالمخزن]]-الجدول1[[#This Row],[تم بيعه]]","v":0}]
[null,null,null,null,null,null,null,{"$f":"الجدول1[[#This Row],[الموجود بالمخزن]]-الجدول1[[#This Row],[تم بيعه]]","v":0}]
[null,null,null,null,null,null,null,{"$f":"الجدول1[[#This Row],[الموجود بالمخزن]]-الجدول1[[#This Row],[تم بيعه]]","v":0}]
[null,null,null,null,null,null,null,{"$f":"الجدول1[[#This Row],[الموجود بالمخزن]]-الجدول1[[#This Row],[تم بيعه]]","v":0}]
[null,null,null,null,null,null,null,{"$f":"الجدول1[[#This Row],[الموجود بالمخزن]]-الجدول1[[#This Row],[تم بيعه]]","v":0}]
[null,null,null,null,null,null,null,{"$f":"الجدول1[[#This Row],[الموجود بالمخزن]]-الجدول1[[#This Row],[تم بيعه]]","v":0}]
[null,null,null,null,null,null,null,{"$f":"الجدول1[[#This Row],[الموجود بالمخزن]]-الجدول1[[#This Row],[تم بيعه]]","v":0}]
[null,null,null,null,null,null,null,{"$f":"الجدول1[[#This Row],[الموجود بالمخزن]]-الجدول1[[#This Row],[تم بيعه]]","v":0}]
[null,null,null,null,null,null,null,{"$f":"الجدول1[[#This Row],[الموجود بالمخزن]]-الجدول1[[#This Row],[تم بيعه]]","v":0}]
[null,null,null,null,null,null,null,{"$f":"الجدول1[[#This Row],[الموجود بالمخزن]]-الجدول1[[#This Row],[تم بيعه]]","v":0}]
[null,null,null,null,null,null,null,{"$f":"الجدول1[[#This Row],[الموجود بالمخزن]]-الجدول1[[#This Row],[تم بيعه]]","v":0}]
[null,null,null,null,null,null,null,{"$f":"الجدول1[[#This Row],[الموجود بالمخزن]]-الجدول1[[#This Row],[تم بيعه]]","v":0}]
[null,null,null,null,null,null,null,{"$f":"الجدول1[[#This Row],[الموجود بالمخزن]]-الجدول1[[#This Row],[تم بيعه]]","v":0}]
[null,null,null,null,null,null,null,{"$f":"الجدول1[[#This Row],[الموجود بالمخزن]]-الجدول1[[#This Row],[تم بيعه]]","v":0}]
[null,null,null,null,null,null,null,{"$f":"الجدول1[[#This Row],[الموجود بالمخزن]]-الجدول1[[#This Row],[تم بيعه]]","v":0}]
[null,null,null,null,null,null,null,{"$f":"الجدول1[[#This Row],[الموجود بالمخزن]]-الجدول1[[#This Row],[تم بيعه]]","v":0}]
[null,null,null,null,null,null,null,{"$f":"الجدول1[[#This Row],[الموجود بالمخزن]]-الجدول1[[#This Row],[تم بيعه]]","v":0}]
[null,null,null,null,null,null,null,{"$f":"الجدول1[[#This Row],[الموجود بالمخزن]]-الجدول1[[#This Row],[تم بيعه]]","v":0}]
[null,null,null,null,null,null,null,{"$f":"الجدول1[[#This Row],[الموجود بالمخزن]]-الجدول1[[#This Row],[تم بيعه]]","v":0}]
[null,null,null,null,null,null,null,{"$f":"الجدول1[[#This Row],[الموجود بالمخزن]]-الجدول1[[#This Row],[تم بيعه]]","v":0}]
[null,null,null,null,null,null,null,{"$f":"الجدول1[[#This Row],[الموجود بالمخزن]]-الجدول1[[#This Row],[تم بيعه]]","v":0}]
[null,null,null,null,null,null,null,{"$f":"الجدول1[[#This Row],[الموجود بالمخزن]]-الجدول1[[#This Row],[تم بيعه]]","v":0}]
[null,null,null,null,null,null,null,{"$f":"الجدول1[[#This Row],[الموجود بالمخزن]]-الجدول1[[#This Row],[تم بيعه]]","v":0}]
[null,null,null,null,null,null,null,{"$f":"الجدول1[[#This Row],[الموجود بالمخزن]]-الجدول1[[#This Row],[تم بيعه]]","v":0}]
[null,null,null,null,null,null,null,{"$f":"الجدول1[[#This Row],[الموجود بالمخزن]]-الجدول1[[#This Row],[تم بيعه]]","v":0}]
[null,null,null,null,null,null,null,{"$f":"الجدول1[[#This Row],[الموجود بالمخزن]]-الجدول1[[#This Row],[تم بيعه]]","v":0}]
[null,null,null,null,null,null,null,{"$f":"الجدول1[[#This Row],[الموجود بالمخزن]]-الجدول1[[#This Row],[تم بيعه]]","v":0}]
[null,null,null,null,null,null,null,{"$f":"الجدول1[[#This Row],[الموجود بالمخزن]]-الجدول1[[#This Row],[تم بيعه]]","v":0}]
[null,null,null,null,null,null,null,{"$f":"الجدول1[[#This Row],[الموجود بالمخزن]]-الجدول1[[#This Row],[تم بيعه]]","v":0}]
[null,null,null,null,null,null,null,{"$f":"الجدول1[[#This Row],[الموجود بالمخزن]]-الجدول1[[#This Row],[تم بيعه]]","v":0}]
[null,null,null,null,null,null,null,{"$f":"الجدول1[[#This Row],[الموجود بالمخزن]]-الجدول1[[#This Row],[تم بيعه]]","v":0}]
[null,null,null,null,null,null,null,{"$f":"الجدول1[[#This Row],[الموجود بالمخزن]]-الجدول1[[#This Row],[تم بيعه]]","v":0}]
[null,null,null,null,null,null,null,{"$f":"الجدول1[[#This Row],[الموجود بالمخزن]]-الجدول1[[#This Row],[تم بيعه]]","v":0}]
[null,null,null,null,null,null,null,{"$f":"الجدول1[[#This Row],[الموجود بالمخزن]]-الجدول1[[#This Row],[تم بيعه]]","v":0}]
[null,null,null,null,null,null,null,{"$f":"الجدول1[[#This Row],[الموجود بالمخزن]]-الجدول1[[#This Row],[تم بيعه]]","v":0}]
[null,null,null,null,null,null,null,{"$f":"الجدول1[[#This Row],[الموجود بالمخزن]]-الجدول1[[#This Row],[تم بيعه]]","v":0}]
[null,null,null,null,null,null,null,{"$f":"الجدول1[[#This Row],[الموجود بالمخزن]]-الجدول1[[#This Row],[تم بيعه]]","v":0}]
[null,null,null,null,null,null,null,{"$f":"الجدول1[[#This Row],[الموجود بالمخزن]]-الجدول1[[#This Row],[تم بيعه]]","v":0}]
[null,null,null,null,null,null,null,{"$f":"الجدول1[[#This Row],[الموجود بالمخزن]]-الجدول1[[#This Row],[تم بيعه]]","v":0}]
[null,null,null,null,null,null,null,{"$f":"الجدول1[[#This Row],[الموجود بالمخزن]]-الجدول1[[#This Row],[تم بيعه]]","v":0}]
[null,null,null,null,null,null,null,{"$f":"الجدول1[[#This Row],[الموجود بالمخزن]]-الجدول1[[#This Row],[تم بيعه]]","v":0}]
[null,null,null,null,null,null,null,{"$f":"الجدول1[[#This Row],[الموجود بالمخزن]]-الجدول1[[#This Row],[تم بيعه]]","v":0}]
[null,null,null,null,null,null,null,{"$f":"الجدول1[[#This Row],[الموجود بالمخزن]]-الجدول1[[#This Row],[تم بيعه]]","v":0}]
[null,null,null,null,null,null,null,{"$f":"الجدول1[[#This Row],[الموجود بالمخزن]]-الجدول1[[#This Row],[تم بيعه]]","v":0}]
[null,null,null,null,null,null,null,{"$f":"الجدول1[[#This Row],[الموجود بالمخزن]]-الجدول1[[#This Row],[تم بيعه]]","v":0}]
[null,null,null,null,null,null,null,{"$f":"الجدول1[[#This Row],[الموجود بالمخزن]]-الجدول1[[#This Row],[تم بيعه]]","v":0}]
[null,null,null,null,null,null,null,{"$f":"الجدول1[[#This Row],[الموجود بالمخزن]]-الجدول1[[#This Row],[تم بيعه]]","v":0}]
[null,null,null,null,null,null,null,{"$f":"الجدول1[[#This Row],[الموجود بالمخزن]]-الجدول1[[#This Row],[تم بيعه]]","v":0}]
[null,null,null,null,null,null,null,{"$f":"الجدول1[[#This Row],[الموجود بالمخزن]]-الجدول1[[#This Row],[تم بيعه]]","v":0}]
[null,null,null,null,null,null,null,{"$f":"الجدول1[[#This Row],[الموجود بالمخزن]]-الجدول1[[#This Row],[تم بيعه]]","v":0}]
[null,null,null,null,null,null,null,{"$f":"الجدول1[[#This Row],[الموجود بالمخزن]]-الجدول1[[#This Row],[تم بيعه]]","v":0}]
[null,null,null,null,null,null,null,{"$f":"الجدول1[[#This Row],[الموجود بالمخزن]]-الجدول1[[#This Row],[تم بيعه]]","v":0}]
[null,null,null,null,null,null,null,{"$f":"الجدول1[[#This Row],[الموجود بالمخزن]]-الجدول1[[#This Row],[تم بيعه]]","v":0}]
[null,null,null,null,null,null,null,{"$f":"الجدول1[[#This Row],[الموجود بالمخزن]]-الجدول1[[#This Row],[تم بيعه]]","v":0}]
[null,null,null,null,null,null,null,{"$f":"الجدول1[[#This Row],[الموجود بالمخزن]]-الجدول1[[#This Row],[تم بيعه]]","v":0}]
[null,null,null,null,null,null,null,{"$f":"الجدول1[[#This Row],[الموجود بالمخزن]]-الجدول1[[#This Row],[تم بيعه]]","v":0}]
[null,null,null,null,null,null,null,{"$f":"الجدول1[[#This Row],[الموجود بالمخزن]]-الجدول1[[#This Row],[تم بيعه]]","v":0}]
[null,null,null,null,null,null,null,{"$f":"الجدول1[[#This Row],[الموجود بالمخزن]]-الجدول1[[#This Row],[تم بيعه]]","v":0}]
[null,null,null,null,null,null,null,{"$f":"الجدول1[[#This Row],[الموجود بالمخزن]]-الجدول1[[#This Row],[تم بيعه]]","v":0}]
[null,null,null,null,null,null,null,{"$f":"الجدول1[[#This Row],[الموجود بالمخزن]]-الجدول1[[#This Row],[تم بيعه]]","v":0}]
[null,null,null,null,null,null,null,{"$f":"الجدول1[[#This Row],[الموجود بالمخزن]]-الجدول1[[#This Row],[تم بيعه]]","v":0}]
[null,null,null,null,null,null,null,{"$f":"الجدول1[[#This Row],[الموجود بالمخزن]]-الجدول1[[#This Row],[تم بيعه]]","v":0}]
[null,null,null,null,null,null,null,{"$f":"الجدول1[[#This Row],[الموجود بالمخزن]]-الجدول1[[#This Row],[تم بيعه]]","v":0}]
[null,null,null,null,null,null,null,{"$f":"الجدول1[[#This Row],[الموجود بالمخزن]]-الجدول1[[#This Row],[تم بيعه]]","v":0}]
[null,null,null,null,null,null,null,{"$f":"الجدول1[[#This Row],[الموجود بالمخزن]]-الجدول1[[#This Row],[تم بيعه]]","v":0}]
[null,null,null,null,null,null,null,{"$f":"الجدول1[[#This Row],[الموجود بالمخزن]]-الجدول1[[#This Row],[تم بيعه]]","v":0}]
[null,null,null,null,null,null,null,{"$f":"الجدول1[[#This Row],[الموجود بالمخزن]]-الجدول1[[#This Row],[تم بيعه]]","v":0}]
[null,null,null,null,null,null,null,{"$f":"الجدول1[[#This Row],[الموجود بالمخزن]]-الجدول1[[#This Row],[تم بيعه]]","v":0}]
[null,null,null,null,null,null,null,{"$f":"الجدول1[[#This Row],[الموجود بالمخزن]]-الجدول1[[#This Row],[تم بيعه]]","v":0}]
[null,null,null,null,null,null,null,{"$f":"الجدول1[[#This Row],[الموجود بالمخزن]]-الجدول1[[#This Row],[تم بيعه]]","v":0}]
[null,null,null,null,null,null,null,{"$f":"الجدول1[[#This Row],[الموجود بالمخزن]]-الجدول1[[#This Row],[تم بيعه]]","v":0}]
[null,null,null,null,null,null,null,{"$f":"الجدول1[[#This Row],[الموجود بالمخزن]]-الجدول1[[#This Row],[تم بيعه]]","v":0}]
[null,null,null,null,null,null,null,{"$f":"الجدول1[[#This Row],[الموجود بالمخزن]]-الجدول1[[#This Row],[تم بيعه]]","v":0}]
[null,null,null,null,null,null,null,{"$f":"الجدول1[[#This Row],[الموجود بالمخزن]]-الجدول1[[#This Row],[تم بيعه]]","v":0}]
[null,null,null,null,null,null,null,{"$f":"الجدول1[[#This Row],[الموجود بالمخزن]]-الجدول1[[#This Row],[تم بيعه]]","v":0}]
[null,null,null,null,null,null,null,{"$f":"الجدول1[[#This Row],[الموجود بالمخزن]]-الجدول1[[#This Row],[تم بيعه]]","v":0}]
[null,null,null,null,null,null,null,{"$f":"الجدول1[[#This Row],[الموجود بالمخزن]]-الجدول1[[#This Row],[تم بيعه]]","v":0}]
[null,null,null,null,null,null,null,{"$f":"الجدول1[[#This Row],[الموجود بالمخزن]]-الجدول1[[#This Row],[تم بيعه]]","v":0}]
[null,null,null,null,null,null,null,{"$f":"الجدول1[[#This Row],[الموجود بالمخزن]]-الجدول1[[#This Row],[تم بيعه]]","v":0}]
[null,null,null,null,null,null,null,{"$f":"الجدول1[[#This Row],[الموجود بالمخزن]]-الجدول1[[#This Row],[تم بيعه]]","v":0}]
[null,null,null,null,null,null,null,{"$f":"الجدول1[[#This Row],[الموجود بالمخزن]]-الجدول1[[#This Row],[تم بيعه]]","v":0}]
[null,null,null,null,null,null,null,{"$f":"الجدول1[[#This Row],[الموجود بالمخزن]]-الجدول1[[#This Row],[تم بيعه]]","v":0}]
[null,null,null,null,null,null,null,{"$f":"الجدول1[[#This Row],[الموجود بالمخزن]]-الجدول1[[#This Row],[تم بيعه]]","v":0}]
[null,null,null,null,null,null,null,{"$f":"الجدول1[[#This Row],[الموجود بالمخزن]]-الجدول1[[#This Row],[تم بيعه]]","v":0}]
[null,null,null,null,null,null,null,{"$f":"الجدول1[[#This Row],[الموجود بالمخزن]]-الجدول1[[#This Row],[تم بيعه]]","v":0}]
[null,null,null,null,null,null,null,{"$f":"الجدول1[[#This Row],[الموجود بالمخزن]]-الجدول1[[#This Row],[تم بيعه]]","v":0}]
[null,null,null,null,null,null,null,{"$f":"الجدول1[[#This Row],[الموجود بالمخزن]]-الجدول1[[#This Row],[تم بيعه]]","v":0}]
[null,null,null,null,null,null,null,{"$f":"الجدول1[[#This Row],[الموجود بالمخزن]]-الجدول1[[#This Row],[تم بيعه]]","v":0}]
[null,null,null,null,null,null,null,{"$f":"الجدول1[[#This Row],[الموجود بالمخزن]]-الجدول1[[#This Row],[تم بيعه]]","v":0}]
[null,null,null,null,null,null,null,{"$f":"الجدول1[[#This Row],[الموجود بالمخزن]]-الجدول1[[#This Row],[تم بيعه]]","v":0}]
[null,null,null,null,null,null,null,{"$f":"الجدول1[[#This Row],[الموجود بالمخزن]]-الجدول1[[#This Row],[تم بيعه]]","v":0}]
[null,null,null,null,null,null,null,{"$f":"الجدول1[[#This Row],[الموجود بالمخزن]]-الجدول1[[#This Row],[تم بيعه]]","v":0}]
[null,null,null,null,null,null,null,{"$f":"الجدول1[[#This Row],[الموجود بالمخزن]]-الجدول1[[#This Row],[تم بيعه]]","v":0}]
[null,null,null,null,null,null,null,{"$f":"الجدول1[[#This Row],[الموجود بالمخزن]]-الجدول1[[#This Row],[تم بيعه]]","v":0}]
[null,null,null,null,null,null,null,{"$f":"الجدول1[[#This Row],[الموجود بالمخزن]]-الجدول1[[#This Row],[تم بيعه]]","v":0}]
[null,null,null,null,null,null,null,{"$f":"الجدول1[[#This Row],[الموجود بالمخزن]]-الجدول1[[#This Row],[تم بيعه]]","v":0}]
[null,null,null,null,null,null,null,{"$f":"الجدول1[[#This Row],[الموجود بالمخزن]]-الجدول1[[#This Row],[تم بيعه]]","v":0}]
[null,null,null,null,null,null,null,{"$f":"الجدول1[[#This Row],[الموجود بالمخزن]]-الجدول1[[#This Row],[تم بيعه]]","v":0}]
[null,null,null,null,null,null,null,{"$f":"الجدول1[[#This Row],[الموجود بالمخزن]]-الجدول1[[#This Row],[تم بيعه]]","v":0}]
[null,null,null,null,null,null,null,{"$f":"الجدول1[[#This Row],[الموجود بالمخزن]]-الجدول1[[#This Row],[تم بيعه]]","v":0}]
[null,null,null,null,null,null,null,{"$f":"الجدول1[[#This Row],[الموجود بالمخزن]]-الجدول1[[#This Row],[تم بيعه]]","v":0}]
[null,null,null,null,null,null,null,{"$f":"الجدول1[[#This Row],[الموجود بالمخزن]]-الجدول1[[#This Row],[تم بيعه]]","v":0}]
[null,null,null,null,null,null,null,{"$f":"الجدول1[[#This Row],[الموجود بالمخزن]]-الجدول1[[#This Row],[تم بيعه]]","v":0}]
[null,null,null,null,null,null,null,{"$f":"الجدول1[[#This Row],[الموجود بالمخزن]]-الجدول1[[#This Row],[تم بيعه]]","v":0}]
[null,null,null,null,null,null,null,{"$f":"الجدول1[[#This Row],[الموجود بالمخزن]]-الجدول1[[#This Row],[تم بيعه]]","v":0}]
[null,null,null,null,null,null,null,{"$f":"الجدول1[[#This Row],[الموجود بالمخزن]]-الجدول1[[#This Row],[تم بيعه]]","v":0}]
[null,null,null,null,null,null,null,{"$f":"الجدول1[[#This Row],[الموجود بالمخزن]]-الجدول1[[#This Row],[تم بيعه]]","v":0}]
[null,null,null,null,null,null,null,{"$f":"الجدول1[[#This Row],[الموجود بالمخزن]]-الجدول1[[#This Row],[تم بيعه]]","v":0}]
[null,null,null,null,null,null,null,{"$f":"الجدول1[[#This Row],[الموجود بالمخزن]]-الجدول1[[#This Row],[تم بيعه]]","v":0}]
[null,null,null,null,null,null,null,{"$f":"الجدول1[[#This Row],[الموجود بالمخزن]]-الجدول1[[#This Row],[تم بيعه]]","v":0}]
[null,null,null,null,null,null,null,{"$f":"الجدول1[[#This Row],[الموجود بالمخزن]]-الجدول1[[#This Row],[تم بيعه]]","v":0}]
[null,null,null,null,null,null,null,{"$f":"الجدول1[[#This Row],[الموجود بالمخزن]]-الجدول1[[#This Row],[تم بيعه]]","v":0}]
[null,null,null,null,null,null,null,{"$f":"الجدول1[[#This Row],[الموجود بالمخزن]]-الجدول1[[#This Row],[تم بيعه]]","v":0}]
[null,null,null,null,null,null,null,{"$f":"الجدول1[[#This Row],[الموجود بالمخزن]]-الجدول1[[#This Row],[تم بيعه]]","v":0}]
[null,null,null,null,null,null,null,{"$f":"الجدول1[[#This Row],[الموجود بالمخزن]]-الجدول1[[#This Row],[تم بيعه]]","v":0}]
[null,null,null,null,null,null,null,{"$f":"الجدول1[[#This Row],[الموجود بالمخزن]]-الجدول1[[#This Row],[تم بيعه]]","v":0}]
[null,null,null,null,null,null,null,{"$f":"الجدول1[[#This Row],[الموجود بالمخزن]]-الجدول1[[#This Row],[تم بيعه]]","v":0}]
[null,null,null,null,null,null,null,{"$f":"الجدول1[[#This Row],[الموجود بالمخزن]]-الجدول1[[#This Row],[تم بيعه]]","v":0}]
[null,null,null,null,null,null,null,{"$f":"الجدول1[[#This Row],[الموجود بالمخزن]]-الجدول1[[#This Row],[تم بيعه]]","v":0}]
[null,null,null,null,null,null,null,{"$f":"الجدول1[[#This Row],[الموجود بالمخزن]]-الجدول1[[#This Row],[تم بيعه]]","v":0}]
[null,null,null,null,null,null,null,{"$f":"الجدول1[[#This Row],[الموجود بالمخزن]]-الجدول1[[#This Row],[تم بيعه]]","v":0}]
[null,null,null,null,null,null,null,{"$f":"الجدول1[[#This Row],[الموجود بالمخزن]]-الجدول1[[#This Row],[تم بيعه]]","v":0}]
[null,null,null,null,null,null,null,{"$f":"الجدول1[[#This Row],[الموجود بالمخزن]]-الجدول1[[#This Row],[تم بيعه]]","v":0}]
[null,null,null,null,null,null,null,{"$f":"الجدول1[[#This Row],[الموجود بالمخزن]]-الجدول1[[#This Row],[تم بيعه]]","v":0}]
[null,null,null,null,null,null,null,{"$f":"الجدول1[[#This Row],[الموجود بالمخزن]]-الجدول1[[#This Row],[تم بيعه]]","v":0}]
[null,null,null,null,null,null,null,{"$f":"الجدول1[[#This Row],[الموجود بالمخزن]]-الجدول1[[#This Row],[تم بيعه]]","v":0}]
[null,null,null,null,null,null,null,{"$f":"الجدول1[[#This Row],[الموجود بالمخزن]]-الجدول1[[#This Row],[تم بيعه]]","v":0}]
[null,null,null,null,null,null,null,{"$f":"الجدول1[[#This Row],[الموجود بالمخزن]]-الجدول1[[#This Row],[تم بيعه]]","v":0}]
[null,null,null,null,null,null,null,{"$f":"الجدول1[[#This Row],[الموجود بالمخزن]]-الجدول1[[#This Row],[تم بيعه]]","v":0}]
[null,null,null,null,null,null,null,{"$f":"الجدول1[[#This Row],[الموجود بالمخزن]]-الجدول1[[#This Row],[تم بيعه]]","v":0}]
[null,null,null,null,null,null,null,{"$f":"الجدول1[[#This Row],[الموجود بالمخزن]]-الجدول1[[#This Row],[تم بيعه]]","v":0}]
[null,null,null,null,null,null,null,{"$f":"الجدول1[[#This Row],[الموجود بالمخزن]]-الجدول1[[#This Row],[تم بيعه]]","v":0}]
[null,null,null,null,null,null,null,{"$f":"الجدول1[[#This Row],[الموجود بالمخزن]]-الجدول1[[#This Row],[تم بيعه]]","v":0}]
[null,null,null,null,null,null,null,{"$f":"الجدول1[[#This Row],[الموجود بالمخزن]]-الجدول1[[#This Row],[تم بيعه]]","v":0}]
[null,null,null,null,null,null,null,{"$f":"الجدول1[[#This Row],[الموجود بالمخزن]]-الجدول1[[#This Row],[تم بيعه]]","v":0}]
[null,null,null,null,null,null,null,{"$f":"الجدول1[[#This Row],[الموجود بالمخزن]]-الجدول1[[#This Row],[تم بيعه]]","v":0}]
[null,null,null,null,null,null,null,{"$f":"الجدول1[[#This Row],[الموجود بالمخزن]]-الجدول1[[#This Row],[تم بيعه]]","v":0}]
[null,null,null,null,null,null,null,{"$f":"الجدول1[[#This Row],[الموجود بالمخزن]]-الجدول1[[#This Row],[تم بيعه]]","v":0}]
[null,null,null,null,null,null,null,{"$f":"الجدول1[[#This Row],[الموجود بالمخزن]]-الجدول1[[#This Row],[تم بيعه]]","v":0}]
[null,null,null,null,null,null,null,{"$f":"الجدول1[[#This Row],[الموجود بالمخزن]]-الجدول1[[#This Row],[تم بيعه]]","v":0}]
[null,null,null,null,null,null,null,{"$f":"الجدول1[[#This Row],[الموجود بالمخزن]]-الجدول1[[#This Row],[تم بيعه]]","v":0}]
[null,null,null,null,null,null,null,{"$f":"الجدول1[[#This Row],[الموجود بالمخزن]]-الجدول1[[#This Row],[تم بيعه]]","v":0}]
[null,null,null,null,null,null,null,{"$f":"الجدول1[[#This Row],[الموجود بالمخزن]]-الجدول1[[#This Row],[تم بيعه]]","v":0}]
[null,null,null,null,null,null,null,{"$f":"الجدول1[[#This Row],[الموجود بالمخزن]]-الجدول1[[#This Row],[تم بيعه]]","v":0}]
[null,null,null,null,null,null,null,{"$f":"الجدول1[[#This Row],[الموجود بالمخزن]]-الجدول1[[#This Row],[تم بيعه]]","v":0}]
[null,null,null,null,null,null,null,{"$f":"الجدول1[[#This Row],[الموجود بالمخزن]]-الجدول1[[#This Row],[تم بيعه]]","v":0}]
[null,null,null,null,null,null,null,{"$f":"الجدول1[[#This Row],[الموجود بالمخزن]]-الجدول1[[#This Row],[تم بيعه]]","v":0}]
[null,null,null,null,null,null,null,{"$f":"الجدول1[[#This Row],[الموجود بالمخزن]]-الجدول1[[#This Row],[تم بيعه]]","v":0}]
[null,null,null,null,null,null,null,{"$f":"الجدول1[[#This Row],[الموجود بالمخزن]]-الجدول1[[#This Row],[تم بيعه]]","v":0}]
[null,null,null,null,null,null,null,{"$f":"الجدول1[[#This Row],[الموجود بالمخزن]]-الجدول1[[#This Row],[تم بيعه]]","v":0}]
[null,null,null,null,null,null,null,{"$f":"الجدول1[[#This Row],[الموجود بالمخزن]]-الجدول1[[#This Row],[تم بيعه]]","v":0}]
[null,null,null,null,null,null,null,{"$f":"الجدول1[[#This Row],[الموجود بالمخزن]]-الجدول1[[#This Row],[تم بيعه]]","v":0}]
[null,null,null,null,null,null,null,{"$f":"الجدول1[[#This Row],[الموجود بالمخزن]]-الجدول1[[#This Row],[تم بيعه]]","v":0}]
[null,null,null,null,null,null,null,{"$f":"الجدول1[[#This Row],[الموجود بالمخزن]]-الجدول1[[#This Row],[تم بيعه]]","v":0}]
[null,null,null,null,null,null,null,{"$f":"الجدول1[[#This Row],[الموجود بالمخزن]]-الجدول1[[#This Row],[تم بيعه]]","v":0}]
[null,null,null,null,null,null,null,{"$f":"الجدول1[[#This Row],[الموجود بالمخزن]]-الجدول1[[#This Row],[تم بيعه]]","v":0}]
[null,null,null,null,null,null,null,{"$f":"الجدول1[[#This Row],[الموجود بالمخزن]]-الجدول1[[#This Row],[تم بيعه]]","v":0}]
[null,null,null,null,null,null,null,{"$f":"الجدول1[[#This Row],[الموجود بالمخزن]]-الجدول1[[#This Row],[تم بيعه]]","v":0}]
[null,null,null,null,null,null,null,{"$f":"الجدول1[[#This Row],[الموجود بالمخزن]]-الجدول1[[#This Row],[تم بيعه]]","v":0}]
[null,null,null,null,null,null,null,{"$f":"الجدول1[[#This Row],[الموجود بالمخزن]]-الجدول1[[#This Row],[تم بيعه]]","v":0}]
[null,null,null,null,null,null,null,{"$f":"الجدول1[[#This Row],[الموجود بالمخزن]]-الجدول1[[#This Row],[تم بيعه]]","v":0}]
[null,null,null,null,null,null,null,{"$f":"الجدول1[[#This Row],[الموجود بالمخزن]]-الجدول1[[#This Row],[تم بيعه]]","v":0}]
[null,null,null,null,null,null,null,{"$f":"الجدول1[[#This Row],[الموجود بالمخزن]]-الجدول1[[#This Row],[تم بيعه]]","v":0}]
[null,null,null,null,null,null,null,{"$f":"الجدول1[[#This Row],[الموجود بالمخزن]]-الجدول1[[#This Row],[تم بيعه]]","v":0}]
[null,null,null,null,null,null,null,{"$f":"الجدول1[[#This Row],[الموجود بالمخزن]]-الجدول1[[#This Row],[تم بيعه]]","v":0}]
[null,null,null,null,null,null,null,{"$f":"الجدول1[[#This Row],[الموجود بالمخزن]]-الجدول1[[#This Row],[تم بيعه]]","v":0}]
[null,null,null,null,null,null,null,{"$f":"الجدول1[[#This Row],[الموجود بالمخزن]]-الجدول1[[#This Row],[تم بيعه]]","v":0}]
[null,null,null,null,null,null,null,{"$f":"الجدول1[[#This Row],[الموجود بالمخزن]]-الجدول1[[#This Row],[تم بيعه]]","v":0}]
[null,null,null,null,null,null,null,{"$f":"الجدول1[[#This Row],[الموجود بالمخزن]]-الجدول1[[#This Row],[تم بيعه]]","v":0}]
[null,null,null,null,null,null,null,{"$f":"الجدول1[[#This Row],[الموجود بالمخزن]]-الجدول1[[#This Row],[تم بيعه]]","v":0}]
[null,null,null,null,null,null,null,{"$f":"الجدول1[[#This Row],[الموجود بالمخزن]]-الجدول1[[#This Row],[تم بيعه]]","v":0}]
[null,null,null,null,null,null,null,{"$f":"الجدول1[[#This Row],[الموجود بالمخزن]]-الجدول1[[#This Row],[تم بيعه]]","v":0}]
[null,null,null,null,null,null,null,{"$f":"الجدول1[[#This Row],[الموجود بالمخزن]]-الجدول1[[#This Row],[تم بيعه]]","v":0}]
[null,null,null,null,null,null,null,{"$f":"الجدول1[[#This Row],[الموجود بالمخزن]]-الجدول1[[#This Row],[تم بيعه]]","v":0}]
[null,null,null,null,null,null,null,{"$f":"الجدول1[[#This Row],[الموجود بالمخزن]]-الجدول1[[#This Row],[تم بيعه]]","v":0}]
[null,null,null,null,null,null,null,{"$f":"الجدول1[[#This Row],[الموجود بالمخزن]]-الجدول1[[#This Row],[تم بيعه]]","v":0}]
[null,null,null,null,null,null,null,{"$f":"الجدول1[[#This Row],[الموجود بالمخزن]]-الجدول1[[#This Row],[تم بيعه]]","v":0}]
[null,null,null,null,null,null,null,{"$f":"الجدول1[[#This Row],[الموجود بالمخزن]]-الجدول1[[#This Row],[تم بيعه]]","v":0}]
[null,null,null,null,null,null,null,{"$f":"الجدول1[[#This Row],[الموجود بالمخزن]]-الجدول1[[#This Row],[تم بيعه]]","v":0}]
[null,null,null,null,null,null,null,{"$f":"الجدول1[[#This Row],[الموجود بالمخزن]]-الجدول1[[#This Row],[تم بيعه]]","v":0}]
[null,null,null,null,null,null,null,{"$f":"الجدول1[[#This Row],[الموجود بالمخزن]]-الجدول1[[#This Row],[تم بيعه]]","v":0}]
[null,null,null,null,null,null,null,{"$f":"الجدول1[[#This Row],[الموجود بالمخزن]]-الجدول1[[#This Row],[تم بيعه]]","v":0}]
[null,null,null,null,null,null,null,{"$f":"الجدول1[[#This Row],[الموجود بالمخزن]]-الجدول1[[#This Row],[تم بيعه]]","v":0}]
[null,null,null,null,null,null,null,{"$f":"الجدول1[[#This Row],[الموجود بالمخزن]]-الجدول1[[#This Row],[تم بيعه]]","v":0}]
[null,null,null,null,null,null,null,{"$f":"الجدول1[[#This Row],[الموجود بالمخزن]]-الجدول1[[#This Row],[تم بيعه]]","v":0}]
[null,null,null,null,null,null,null,{"$f":"الجدول1[[#This Row],[الموجود بالمخزن]]-الجدول1[[#This Row],[تم بيعه]]","v":0}]
[null,null,null,null,null,null,null,{"$f":"الجدول1[[#This Row],[الموجود بالمخزن]]-الجدول1[[#This Row],[تم بيعه]]","v":0}]
[null,null,null,null,null,null,null,{"$f":"الجدول1[[#This Row],[الموجود بالمخزن]]-الجدول1[[#This Row],[تم بيعه]]","v":0}]
[null,null,null,null,null,null,null,{"$f":"الجدول1[[#This Row],[الموجود بالمخزن]]-الجدول1[[#This Row],[تم بيعه]]","v":0}]
[null,null,null,null,null,null,null,{"$f":"الجدول1[[#This Row],[الموجود بالمخزن]]-الجدول1[[#This Row],[تم بيعه]]","v":0}]
[null,null,null,null,null,null,null,{"$f":"الجدول1[[#This Row],[الموجود بالمخزن]]-الجدول1[[#This Row],[تم بيعه]]","v":0}]
[null,null,null,null,null,null,null,{"$f":"الجدول1[[#This Row],[الموجود بالمخزن]]-الجدول1[[#This Row],[تم بيعه]]","v":0}]
[null,null,null,null,null,null,null,{"$f":"الجدول1[[#This Row],[الموجود بالمخزن]]-الجدول1[[#This Row],[تم بيعه]]","v":0}]
[null,null,null,null,null,null,null,{"$f":"الجدول1[[#This Row],[الموجود بالمخزن]]-الجدول1[[#This Row],[تم بيعه]]","v":0}]
[null,null,null,null,null,null,null,{"$f":"الجدول1[[#This Row],[الموجود بالمخزن]]-الجدول1[[#This Row],[تم بيعه]]","v":0}]
[null,null,null,null,null,null,null,{"$f":"الجدول1[[#This Row],[الموجود بالمخزن]]-الجدول1[[#This Row],[تم بيعه]]","v":0}]
[null,null,null,null,null,null,null,{"$f":"الجدول1[[#This Row],[الموجود بالمخزن]]-الجدول1[[#This Row],[تم بيعه]]","v":0}]
[null,null,null,null,null,null,null,{"$f":"الجدول1[[#This Row],[الموجود بالمخزن]]-الجدول1[[#This Row],[تم بيعه]]","v":0}]
[null,null,null,null,null,null,null,{"$f":"الجدول1[[#This Row],[الموجود بالمخزن]]-الجدول1[[#This Row],[تم بيعه]]","v":0}]
[null,null,null,null,null,null,null,{"$f":"الجدول1[[#This Row],[الموجود بالمخزن]]-الجدول1[[#This Row],[تم بيعه]]","v":0}]
[null,null,null,null,null,null,null,{"$f":"الجدول1[[#This Row],[الموجود بالمخزن]]-الجدول1[[#This Row],[تم بيعه]]","v":0}]
[null,null,null,null,null,null,null,{"$f":"الجدول1[[#This Row],[الموجود بالمخزن]]-الجدول1[[#This Row],[تم بيعه]]","v":0}]
[null,null,null,null,null,null,null,{"$f":"الجدول1[[#This Row],[الموجود بالمخزن]]-الجدول1[[#This Row],[تم بيعه]]","v":0}]
[null,null,null,null,null,null,null,{"$f":"الجدول1[[#This Row],[الموجود بالمخزن]]-الجدول1[[#This Row],[تم بيعه]]","v":0}]
[null,null,null,null,null,null,null,{"$f":"الجدول1[[#This Row],[الموجود بالمخزن]]-الجدول1[[#This Row],[تم بيعه]]","v":0}]
[null,null,null,null,null,null,null,{"$f":"الجدول1[[#This Row],[الموجود بالمخزن]]-الجدول1[[#This Row],[تم بيعه]]","v":0}]
[null,null,null,null,null,null,null,{"$f":"الجدول1[[#This Row],[الموجود بالمخزن]]-الجدول1[[#This Row],[تم بيعه]]","v":0}]
[null,null,null,null,null,null,null,{"$f":"الجدول1[[#This Row],[الموجود بالمخزن]]-الجدول1[[#This Row],[تم بيعه]]","v":0}]
[null,null,null,null,null,null,null,{"$f":"الجدول1[[#This Row],[الموجود بالمخزن]]-الجدول1[[#This Row],[تم بيعه]]","v":0}]
[null,null,null,null,null,null,null,{"$f":"الجدول1[[#This Row],[الموجود بالمخزن]]-الجدول1[[#This Row],[تم بيعه]]","v":0}]
[null,null,null,null,null,null,null,{"$f":"الجدول1[[#This Row],[الموجود بالمخزن]]-الجدول1[[#This Row],[تم بيعه]]","v":0}]
[null,null,null,null,null,null,null,{"$f":"الجدول1[[#This Row],[الموجود بالمخزن]]-الجدول1[[#This Row],[تم بيعه]]","v":0}]
[null,null,null,null,null,null,null,{"$f":"الجدول1[[#This Row],[الموجود بالمخزن]]-الجدول1[[#This Row],[تم بيعه]]","v":0}]
[null,null,null,null,null,null,null,{"$f":"الجدول1[[#This Row],[الموجود بالمخزن]]-الجدول1[[#This Row],[تم بيعه]]","v":0}]
[null,null,null,null,null,null,null,{"$f":"الجدول1[[#This Row],[الموجود بالمخزن]]-الجدول1[[#This Row],[تم بيعه]]","v":0}]
[null,null,null,null,null,null,null,{"$f":"الجدول1[[#This Row],[الموجود بالمخزن]]-الجدول1[[#This Row],[تم بيعه]]","v":0}]
[null,null,null,null,null,null,null,{"$f":"الجدول1[[#This Row],[الموجود بالمخزن]]-الجدول1[[#This Row],[تم بيعه]]","v":0}]
[null,null,null,null,null,null,null,{"$f":"الجدول1[[#This Row],[الموجود بالمخزن]]-الجدول1[[#This Row],[تم بيعه]]","v":0}]
[null,null,null,null,null,null,null,{"$f":"الجدول1[[#This Row],[الموجود بالمخزن]]-الجدول1[[#This Row],[تم بيعه]]","v":0}]
[null,null,null,null,null,null,null,{"$f":"الجدول1[[#This Row],[الموجود بالمخزن]]-الجدول1[[#This Row],[تم بيعه]]","v":0}]
[null,null,null,null,null,null,null,{"$f":"الجدول1[[#This Row],[الموجود بالمخزن]]-الجدول1[[#This Row],[تم بيعه]]","v":0}]
[null,null,null,null,null,null,null,{"$f":"الجدول1[[#This Row],[الموجود بالمخزن]]-الجدول1[[#This Row],[تم بيعه]]","v":0}]
[null,null,null,null,null,null,null,{"$f":"الجدول1[[#This Row],[الموجود بالمخزن]]-الجدول1[[#This Row],[تم بيعه]]","v":0}]
[null,null,null,null,null,null,null,{"$f":"الجدول1[[#This Row],[الموجود بالمخزن]]-الجدول1[[#This Row],[تم بيعه]]","v":0}]
[null,null,null,null,null,null,null,{"$f":"الجدول1[[#This Row],[الموجود بالمخزن]]-الجدول1[[#This Row],[تم بيعه]]","v":0}]
[null,null,null,null,null,null,null,{"$f":"الجدول1[[#This Row],[الموجود بالمخزن]]-الجدول1[[#This Row],[تم بيعه]]","v":0}]
[null,null,null,null,null,null,null,{"$f":"الجدول1[[#This Row],[الموجود بالمخزن]]-الجدول1[[#This Row],[تم بيعه]]","v":0}]
[null,null,null,null,null,null,null,{"$f":"الجدول1[[#This Row],[الموجود بالمخزن]]-الجدول1[[#This Row],[تم بيعه]]","v":0}]
[null,null,null,null,null,null,null,{"$f":"الجدول1[[#This Row],[الموجود بالمخزن]]-الجدول1[[#This Row],[تم بيعه]]","v":0}]
[null,null,null,null,null,null,null,{"$f":"الجدول1[[#This Row],[الموجود بالمخزن]]-الجدول1[[#This Row],[تم بيعه]]","v":0}]
[null,null,null,null,null,null,null,{"$f":"الجدول1[[#This Row],[الموجود بالمخزن]]-الجدول1[[#This Row],[تم بيعه]]","v":0}]
[null,null,null,null,null,null,null,{"$f":"الجدول1[[#This Row],[الموجود بالمخزن]]-الجدول1[[#This Row],[تم بيعه]]","v":0}]
[null,null,null,null,null,null,null,{"$f":"الجدول1[[#This Row],[الموجود بالمخزن]]-الجدول1[[#This Row],[تم بيعه]]","v":0}]
[null,null,null,null,null,null,null,{"$f":"الجدول1[[#This Row],[الموجود بالمخزن]]-الجدول1[[#This Row],[تم بيعه]]","v":0}]
[null,null,null,null,null,null,null,{"$f":"الجدول1[[#This Row],[الموجود بالمخزن]]-الجدول1[[#This Row],[تم بيعه]]","v":0}]
[null,null,null,null,null,null,null,{"$f":"الجدول1[[#This Row],[الموجود بالمخزن]]-الجدول1[[#This Row],[تم بيعه]]","v":0}]
[null,null,null,null,null,null,null,{"$f":"الجدول1[[#This Row],[الموجود بالمخزن]]-الجدول1[[#This Row],[تم بيعه]]","v":0}]
[null,null,null,null,null,null,null,{"$f":"الجدول1[[#This Row],[الموجود بالمخزن]]-الجدول1[[#This Row],[تم بيعه]]","v":0}]
[null,null,null,null,null,null,null,{"$f":"الجدول1[[#This Row],[الموجود بالمخزن]]-الجدول1[[#This Row],[تم بيعه]]","v":0}]
[null,null,null,null,null,null,null,{"$f":"الجدول1[[#This Row],[الموجود بالمخزن]]-الجدول1[[#This Row],[تم بيعه]]","v":0}]
[null,null,null,null,null,null,null,{"$f":"الجدول1[[#This Row],[الموجود بالمخزن]]-الجدول1[[#This Row],[تم بيعه]]","v":0}]
[null,null,null,null,null,null,null,{"$f":"الجدول1[[#This Row],[الموجود بالمخزن]]-الجدول1[[#This Row],[تم بيعه]]","v":0}]
[null,null,null,null,null,null,null,{"$f":"الجدول1[[#This Row],[الموجود بالمخزن]]-الجدول1[[#This Row],[تم بيعه]]","v":0}]
[null,null,null,null,null,null,null,{"$f":"الجدول1[[#This Row],[الموجود بالمخزن]]-الجدول1[[#This Row],[تم بيعه]]","v":0}]
[null,null,null,null,null,null,null,{"$f":"الجدول1[[#This Row],[الموجود بالمخزن]]-الجدول1[[#This Row],[تم بيعه]]","v":0}]
[null,null,null,null,null,null,null,{"$f":"الجدول1[[#This Row],[الموجود بالمخزن]]-الجدول1[[#This Row],[تم بيعه]]","v":0}]
[null,null,null,null,null,null,null,{"$f":"الجدول1[[#This Row],[الموجود بالمخزن]]-الجدول1[[#This Row],[تم بيعه]]","v":0}]
[null,null,null,null,null,null,null,{"$f":"الجدول1[[#This Row],[الموجود بالمخزن]]-الجدول1[[#This Row],[تم بيعه]]","v":0}]
[null,null,null,null,null,null,null,{"$f":"الجدول1[[#This Row],[الموجود بالمخزن]]-الجدول1[[#This Row],[تم بيعه]]","v":0}]
[null,null,null,null,null,null,null,{"$f":"الجدول1[[#This Row],[الموجود بالمخزن]]-الجدول1[[#This Row],[تم بيعه]]","v":0}]
[null,null,null,null,null,null,null,{"$f":"الجدول1[[#This Row],[الموجود بالمخزن]]-الجدول1[[#This Row],[تم بيعه]]","v":0}]
[null,null,null,null,null,null,null,{"$f":"الجدول1[[#This Row],[الموجود بالمخزن]]-الجدول1[[#This Row],[تم بيعه]]","v":0}]
[null,null,null,null,null,null,null,{"$f":"الجدول1[[#This Row],[الموجود بالمخزن]]-الجدول1[[#This Row],[تم بيعه]]","v":0}]
[null,null,null,null,null,null,null,{"$f":"الجدول1[[#This Row],[الموجود بالمخزن]]-الجدول1[[#This Row],[تم بيعه]]","v":0}]
[null,null,null,null,null,null,null,{"$f":"الجدول1[[#This Row],[الموجود بالمخزن]]-الجدول1[[#This Row],[تم بيعه]]","v":0}]
[null,null,null,null,null,null,null,{"$f":"الجدول1[[#This Row],[الموجود بالمخزن]]-الجدول1[[#This Row],[تم بيعه]]","v":0}]
[null,null,null,null,null,null,null,{"$f":"الجدول1[[#This Row],[الموجود بالمخزن]]-الجدول1[[#This Row],[تم بيعه]]","v":0}]
[null,null,null,null,null,null,null,{"$f":"الجدول1[[#This Row],[الموجود بالمخزن]]-الجدول1[[#This Row],[تم بيعه]]","v":0}]
[null,null,null,null,null,null,null,{"$f":"الجدول1[[#This Row],[الموجود بالمخزن]]-الجدول1[[#This Row],[تم بيعه]]","v":0}]
[null,null,null,null,null,null,null,{"$f":"الجدول1[[#This Row],[الموجود بالمخزن]]-الجدول1[[#This Row],[تم بيعه]]","v":0}]
[null,null,null,null,null,null,null,{"$f":"الجدول1[[#This Row],[الموجود بالمخزن]]-الجدول1[[#This Row],[تم بيعه]]","v":0}]
[null,null,null,null,null,null,null,{"$f":"الجدول1[[#This Row],[الموجود بالمخزن]]-الجدول1[[#This Row],[تم بيعه]]","v":0}]
[null,null,null,null,null,null,null,{"$f":"الجدول1[[#This Row],[الموجود بالمخزن]]-الجدول1[[#This Row],[تم بيعه]]","v":0}]
[null,null,null,null,null,null,null,{"$f":"الجدول1[[#This Row],[الموجود بالمخزن]]-الجدول1[[#This Row],[تم بيعه]]","v":0}]
[null,null,null,null,null,null,null,{"$f":"الجدول1[[#This Row],[الموجود بالمخزن]]-الجدول1[[#This Row],[تم بيعه]]","v":0}]
[null,null,null,null,null,null,null,{"$f":"الجدول1[[#This Row],[الموجود بالمخزن]]-الجدول1[[#This Row],[تم بيعه]]","v":0}]
[null,null,null,null,null,null,null,{"$f":"الجدول1[[#This Row],[الموجود بالمخزن]]-الجدول1[[#This Row],[تم بيعه]]","v":0}]
[null,null,null,null,null,null,null,{"$f":"الجدول1[[#This Row],[الموجود بالمخزن]]-الجدول1[[#This Row],[تم بيعه]]","v":0}]
[null,null,null,null,null,null,null,{"$f":"الجدول1[[#This Row],[الموجود بالمخزن]]-الجدول1[[#This Row],[تم بيعه]]","v":0}]
[null,null,null,null,null,null,null,{"$f":"الجدول1[[#This Row],[الموجود بالمخزن]]-الجدول1[[#This Row],[تم بيعه]]","v":0}]
[null,null,null,null,null,null,null,{"$f":"الجدول1[[#This Row],[الموجود بالمخزن]]-الجدول1[[#This Row],[تم بيعه]]","v":0}]
[null,null,null,null,null,null,null,{"$f":"الجدول1[[#This Row],[الموجود بالمخزن]]-الجدول1[[#This Row],[تم بيعه]]","v":0}]
[null,null,null,null,null,null,null,{"$f":"الجدول1[[#This Row],[الموجود بالمخزن]]-الجدول1[[#This Row],[تم بيعه]]","v":0}]
[null,null,null,null,null,null,null,{"$f":"الجدول1[[#This Row],[الموجود بالمخزن]]-الجدول1[[#This Row],[تم بيعه]]","v":0}]
[null,null,null,null,null,null,null,{"$f":"الجدول1[[#This Row],[الموجود بالمخزن]]-الجدول1[[#This Row],[تم بيعه]]","v":0}]
[null,null,null,null,null,null,null,{"$f":"الجدول1[[#This Row],[الموجود بالمخزن]]-الجدول1[[#This Row],[تم بيعه]]","v":0}]
[null,null,null,null,null,null,null,{"$f":"الجدول1[[#This Row],[الموجود بالمخزن]]-الجدول1[[#This Row],[تم بيعه]]","v":0}]
[null,null,null,null,null,null,null,{"$f":"الجدول1[[#This Row],[الموجود بالمخزن]]-الجدول1[[#This Row],[تم بيعه]]","v":0}]
[null,null,null,null,null,null,null,{"$f":"الجدول1[[#This Row],[الموجود بالمخزن]]-الجدول1[[#This Row],[تم بيعه]]","v":0}]
[null,null,null,null,null,null,null,{"$f":"الجدول1[[#This Row],[الموجود بالمخزن]]-الجدول1[[#This Row],[تم بيعه]]","v":0}]
[null,null,null,null,null,null,null,{"$f":"الجدول1[[#This Row],[الموجود بالمخزن]]-الجدول1[[#This Row],[تم بيعه]]","v":0}]
[null,null,null,null,null,null,null,{"$f":"الجدول1[[#This Row],[الموجود بالمخزن]]-الجدول1[[#This Row],[تم بيعه]]","v":0}]
[null,null,null,null,null,null,null,{"$f":"الجدول1[[#This Row],[الموجود بالمخزن]]-الجدول1[[#This Row],[تم بيعه]]","v":0}]
[null,null,null,null,null,null,null,{"$f":"الجدول1[[#This Row],[الموجود بالمخزن]]-الجدول1[[#This Row],[تم بيعه]]","v":0}]
[null,null,null,null,null,null,null,{"$f":"الجدول1[[#This Row],[الموجود بالمخزن]]-الجدول1[[#This Row],[تم بيعه]]","v":0}]
[null,null,null,null,null,null,null,{"$f":"الجدول1[[#This Row],[الموجود بالمخزن]]-الجدول1[[#This Row],[تم بيعه]]","v":0}]
[null,null,null,null,null,null,null,{"$f":"الجدول1[[#This Row],[الموجود بالمخزن]]-الجدول1[[#This Row],[تم بيعه]]","v":0}]
[null,null,null,null,null,null,null,{"$f":"الجدول1[[#This Row],[الموجود بالمخزن]]-الجدول1[[#This Row],[تم بيعه]]","v":0}]
[null,null,null,null,null,null,null,{"$f":"الجدول1[[#This Row],[الموجود بالمخزن]]-الجدول1[[#This Row],[تم بيعه]]","v":0}]
[null,null,null,null,null,null,null,{"$f":"الجدول1[[#This Row],[الموجود بالمخزن]]-الجدول1[[#This Row],[تم بيعه]]","v":0}]
[null,null,null,null,null,null,null,{"$f":"الجدول1[[#This Row],[الموجود بالمخزن]]-الجدول1[[#This Row],[تم بيعه]]","v":0}]
[null,null,null,null,null,null,null,{"$f":"الجدول1[[#This Row],[الموجود بالمخزن]]-الجدول1[[#This Row],[تم بيعه]]","v":0}]
[null,null,null,null,null,null,null,{"$f":"الجدول1[[#This Row],[الموجود بالمخزن]]-الجدول1[[#This Row],[تم بيعه]]","v":0}]
[null,null,null,null,null,null,null,{"$f":"الجدول1[[#This Row],[الموجود بالمخزن]]-الجدول1[[#This Row],[تم بيعه]]","v":0}]
[null,null,null,null,null,null,null,{"$f":"الجدول1[[#This Row],[الموجود بالمخزن]]-الجدول1[[#This Row],[تم بيعه]]","v":0}]
[null,null,null,null,null,null,null,{"$f":"الجدول1[[#This Row],[الموجود بالمخزن]]-الجدول1[[#This Row],[تم بيعه]]","v":0}]
[null,null,null,null,null,null,null,{"$f":"الجدول1[[#This Row],[الموجود بالمخزن]]-الجدول1[[#This Row],[تم بيعه]]","v":0}]
[null,null,null,null,null,null,null,{"$f":"الجدول1[[#This Row],[الموجود بالمخزن]]-الجدول1[[#This Row],[تم بيعه]]","v":0}]
[null,null,null,null,null,null,null,{"$f":"الجدول1[[#This Row],[الموجود بالمخزن]]-الجدول1[[#This Row],[تم بيعه]]","v":0}]
[null,null,null,null,null,null,null,{"$f":"الجدول1[[#This Row],[الموجود بالمخزن]]-الجدول1[[#This Row],[تم بيعه]]","v":0}]
[null,null,null,null,null,null,null,{"$f":"الجدول1[[#This Row],[الموجود بالمخزن]]-الجدول1[[#This Row],[تم بيعه]]","v":0}]
[null,null,null,null,null,null,null,{"$f":"الجدول1[[#This Row],[الموجود بالمخزن]]-الجدول1[[#This Row],[تم بيعه]]","v":0}]
[null,null,null,null,null,null,null,{"$f":"الجدول1[[#This Row],[الموجود بالمخزن]]-الجدول1[[#This Row],[تم بيعه]]","v":0}]
[null,null,null,null,null,null,null,{"$f":"الجدول1[[#This Row],[الموجود بالمخزن]]-الجدول1[[#This Row],[تم بيعه]]","v":0}]
[null,null,null,null,null,null,null,{"$f":"الجدول1[[#This Row],[الموجود بالمخزن]]-الجدول1[[#This Row],[تم بيعه]]","v":0}]
[null,null,null,null,null,null,null,{"$f":"الجدول1[[#This Row],[الموجود بالمخزن]]-الجدول1[[#This Row],[تم بيعه]]","v":0}]
[null,null,null,null,null,null,null,{"$f":"الجدول1[[#This Row],[الموجود بالمخزن]]-الجدول1[[#This Row],[تم بيعه]]","v":0}]
[null,null,null,null,null,null,null,{"$f":"الجدول1[[#This Row],[الموجود بالمخزن]]-الجدول1[[#This Row],[تم بيعه]]","v":0}]
[null,null,null,null,null,null,null,{"$f":"الجدول1[[#This Row],[الموجود بالمخزن]]-الجدول1[[#This Row],[تم بيعه]]","v":0}]
[null,null,null,null,null,null,null,{"$f":"الجدول1[[#This Row],[الموجود بالمخزن]]-الجدول1[[#This Row],[تم بيعه]]","v":0}]
[null,null,null,null,null,null,null,{"$f":"الجدول1[[#This Row],[الموجود بالمخزن]]-الجدول1[[#This Row],[تم بيعه]]","v":0}]
[null,null,null,null,null,null,null,{"$f":"الجدول1[[#This Row],[الموجود بالمخزن]]-الجدول1[[#This Row],[تم بيعه]]","v":0}]
[null,null,null,null,null,null,null,{"$f":"الجدول1[[#This Row],[الموجود بالمخزن]]-الجدول1[[#This Row],[تم بيعه]]","v":0}]
[null,null,null,null,null,null,null,{"$f":"الجدول1[[#This Row],[الموجود بالمخزن]]-الجدول1[[#This Row],[تم بيعه]]","v":0}]
[null,null,null,null,null,null,null,{"$f":"الجدول1[[#This Row],[الموجود بالمخزن]]-الجدول1[[#This Row],[تم بيعه]]","v":0}]
[null,null,null,null,null,null,null,{"$f":"الجدول1[[#This Row],[الموجود بالمخزن]]-الجدول1[[#This Row],[تم بيعه]]","v":0}]
[null,null,null,null,null,null,null,{"$f":"الجدول1[[#This Row],[الموجود بالمخزن]]-الجدول1[[#This Row],[تم بيعه]]","v":0}]
[null,null,null,null,null,null,null,{"$f":"الجدول1[[#This Row],[الموجود بالمخزن]]-الجدول1[[#This Row],[تم بيعه]]","v":0}]
[null,null,null,null,null,null,null,{"$f":"الجدول1[[#This Row],[الموجود بالمخزن]]-الجدول1[[#This Row],[تم بيعه]]","v":0}]
[null,null,null,null,null,null,null,{"$f":"الجدول1[[#This Row],[الموجود بالمخزن]]-الجدول1[[#This Row],[تم بيعه]]","v":0}]
[null,null,null,null,null,null,null,{"$f":"الجدول1[[#This Row],[الموجود بالمخزن]]-الجدول1[[#This Row],[تم بيعه]]","v":0}]
[null,null,null,null,null,null,null,{"$f":"الجدول1[[#This Row],[الموجود بالمخزن]]-الجدول1[[#This Row],[تم بيعه]]","v":0}]
[null,null,null,null,null,null,null,{"$f":"الجدول1[[#This Row],[الموجود بالمخزن]]-الجدول1[[#This Row],[تم بيعه]]","v":0}]
[null,null,null,null,null,null,null,{"$f":"الجدول1[[#This Row],[الموجود بالمخزن]]-الجدول1[[#This Row],[تم بيعه]]","v":0}]
[null,null,null,null,null,null,null,{"$f":"الجدول1[[#This Row],[الموجود بالمخزن]]-الجدول1[[#This Row],[تم بيعه]]","v":0}]
[null,null,null,null,null,null,null,{"$f":"الجدول1[[#This Row],[الموجود بالمخزن]]-الجدول1[[#This Row],[تم بيعه]]","v":0}]
[null,null,null,null,null,null,null,{"$f":"الجدول1[[#This Row],[الموجود بالمخزن]]-الجدول1[[#This Row],[تم بيعه]]","v":0}]
[null,null,null,null,null,null,null,{"$f":"الجدول1[[#This Row],[الموجود بالمخزن]]-الجدول1[[#This Row],[تم بيعه]]","v":0}]
[null,null,null,null,null,null,null,{"$f":"الجدول1[[#This Row],[الموجود بالمخزن]]-الجدول1[[#This Row],[تم بيعه]]","v":0}]
[null,null,null,null,null,null,null,{"$f":"الجدول1[[#This Row],[الموجود بالمخزن]]-الجدول1[[#This Row],[تم بيعه]]","v":0}]
[null,null,null,null,null,null,null,{"$f":"الجدول1[[#This Row],[الموجود بالمخزن]]-الجدول1[[#This Row],[تم بيعه]]","v":0}]
[null,null,null,null,null,null,null,{"$f":"الجدول1[[#This Row],[الموجود بالمخزن]]-الجدول1[[#This Row],[تم بيعه]]","v":0}]
[null,null,null,null,null,null,null,{"$f":"الجدول1[[#This Row],[الموجود بالمخزن]]-الجدول1[[#This Row],[تم بيعه]]","v":0}]
[null,null,null,null,null,null,null,{"$f":"الجدول1[[#This Row],[الموجود بالمخزن]]-الجدول1[[#This Row],[تم بيعه]]","v":0}]
[null,null,null,null,null,null,null,{"$f":"الجدول1[[#This Row],[الموجود بالمخزن]]-الجدول1[[#This Row],[تم بيعه]]","v":0}]
[null,null,null,null,null,null,null,{"$f":"الجدول1[[#This Row],[الموجود بالمخزن]]-الجدول1[[#This Row],[تم بيعه]]","v":0}]
[null,null,null,null,null,null,null,{"$f":"الجدول1[[#This Row],[الموجود بالمخزن]]-الجدول1[[#This Row],[تم بيعه]]","v":0}]
[null,null,null,null,null,null,null,{"$f":"الجدول1[[#This Row],[الموجود بالمخزن]]-الجدول1[[#This Row],[تم بيعه]]","v":0}]
[null,null,null,null,null,null,null,{"$f":"الجدول1[[#This Row],[الموجود بالمخزن]]-الجدول1[[#This Row],[تم بيعه]]","v":0}]
[null,null,null,null,null,null,null,{"$f":"الجدول1[[#This Row],[الموجود بالمخزن]]-الجدول1[[#This Row],[تم بيعه]]","v":0}]
[null,null,null,null,null,null,null,{"$f":"الجدول1[[#This Row],[الموجود بالمخزن]]-الجدول1[[#This Row],[تم بيعه]]","v":0}]
[null,null,null,null,null,null,null,{"$f":"الجدول1[[#This Row],[الموجود بالمخزن]]-الجدول1[[#This Row],[تم بيعه]]","v":0}]
[null,null,null,null,null,null,null,{"$f":"الجدول1[[#This Row],[الموجود بالمخزن]]-الجدول1[[#This Row],[تم بيعه]]","v":0}]
[null,null,null,null,null,null,null,{"$f":"الجدول1[[#This Row],[الموجود بالمخزن]]-الجدول1[[#This Row],[تم بيعه]]","v":0}]
[null,null,null,null,null,null,null,{"$f":"الجدول1[[#This Row],[الموجود بالمخزن]]-الجدول1[[#This Row],[تم بيعه]]","v":0}]
[null,null,null,null,null,null,null,{"$f":"الجدول1[[#This Row],[الموجود بالمخزن]]-الجدول1[[#This Row],[تم بيعه]]","v":0}]
[null,null,null,null,null,null,null,{"$f":"الجدول1[[#This Row],[الموجود بالمخزن]]-الجدول1[[#This Row],[تم بيعه]]","v":0}]
[null,null,null,null,null,null,null,{"$f":"الجدول1[[#This Row],[الموجود بالمخزن]]-الجدول1[[#This Row],[تم بيعه]]","v":0}]
[null,null,null,null,null,null,null,{"$f":"الجدول1[[#This Row],[الموجود بالمخزن]]-الجدول1[[#This Row],[تم بيعه]]","v":0}]
[null,null,null,null,null,null,null,{"$f":"الجدول1[[#This Row],[الموجود بالمخزن]]-الجدول1[[#This Row],[تم بيعه]]","v":0}]
[null,null,null,null,null,null,null,{"$f":"الجدول1[[#This Row],[الموجود بالمخزن]]-الجدول1[[#This Row],[تم بيعه]]","v":0}]
[null,null,null,null,null,null,null,{"$f":"الجدول1[[#This Row],[الموجود بالمخزن]]-الجدول1[[#This Row],[تم بيعه]]","v":0}]
[null,null,null,null,null,null,null,{"$f":"الجدول1[[#This Row],[الموجود بالمخزن]]-الجدول1[[#This Row],[تم بيعه]]","v":0}]
[null,null,null,null,null,null,null,{"$f":"الجدول1[[#This Row],[الموجود بالمخزن]]-الجدول1[[#This Row],[تم بيعه]]","v":0}]
[null,null,null,null,null,null,null,{"$f":"الجدول1[[#This Row],[الموجود بالمخزن]]-الجدول1[[#This Row],[تم بيعه]]","v":0}]
[null,null,null,null,null,null,null,{"$f":"الجدول1[[#This Row],[الموجود بالمخزن]]-الجدول1[[#This Row],[تم بيعه]]","v":0}]
[null,null,null,null,null,null,null,{"$f":"الجدول1[[#This Row],[الموجود بالمخزن]]-الجدول1[[#This Row],[تم بيعه]]","v":0}]
[null,null,null,null,null,null,null,{"$f":"الجدول1[[#This Row],[الموجود بالمخزن]]-الجدول1[[#This Row],[تم بيعه]]","v":0}]
[null,null,null,null,null,null,null,{"$f":"الجدول1[[#This Row],[الموجود بالمخزن]]-الجدول1[[#This Row],[تم بيعه]]","v":0}]
[null,null,null,null,null,null,null,{"$f":"الجدول1[[#This Row],[الموجود بالمخزن]]-الجدول1[[#This Row],[تم بيعه]]","v":0}]
[null,null,null,null,null,null,null,{"$f":"الجدول1[[#This Row],[الموجود بالمخزن]]-الجدول1[[#This Row],[تم بيعه]]","v":0}]
[null,null,null,null,null,null,null,{"$f":"الجدول1[[#This Row],[الموجود بالمخزن]]-الجدول1[[#This Row],[تم بيعه]]","v":0}]
[null,null,null,null,null,null,null,{"$f":"الجدول1[[#This Row],[الموجود بالمخزن]]-الجدول1[[#This Row],[تم بيعه]]","v":0}]
[null,null,null,null,null,null,null,{"$f":"الجدول1[[#This Row],[الموجود بالمخزن]]-الجدول1[[#This Row],[تم بيعه]]","v":0}]
[null,null,null,null,null,null,null,{"$f":"الجدول1[[#This Row],[الموجود بالمخزن]]-الجدول1[[#This Row],[تم بيعه]]","v":0}]
[null,null,null,null,null,null,null,{"$f":"الجدول1[[#This Row],[الموجود بالمخزن]]-الجدول1[[#This Row],[تم بيعه]]","v":0}]
[null,null,null,null,null,null,null,{"$f":"الجدول1[[#This Row],[الموجود بالمخزن]]-الجدول1[[#This Row],[تم بيعه]]","v":0}]
[null,null,null,null,null,null,null,{"$f":"الجدول1[[#This Row],[الموجود بالمخزن]]-الجدول1[[#This Row],[تم بيعه]]","v":0}]
[null,null,null,null,null,null,null,{"$f":"الجدول1[[#This Row],[الموجود بالمخزن]]-الجدول1[[#This Row],[تم بيعه]]","v":0}]
[null,null,null,null,null,null,null,{"$f":"الجدول1[[#This Row],[الموجود بالمخزن]]-الجدول1[[#This Row],[تم بيعه]]","v":0}]
[null,null,null,null,null,null,null,{"$f":"الجدول1[[#This Row],[الموجود بالمخزن]]-الجدول1[[#This Row],[تم بيعه]]","v":0}]
[null,null,null,null,null,null,null,{"$f":"الجدول1[[#This Row],[الموجود بالمخزن]]-الجدول1[[#This Row],[تم بيعه]]","v":0}]
[null,null,null,null,null,null,null,{"$f":"الجدول1[[#This Row],[الموجود بالمخزن]]-الجدول1[[#This Row],[تم بيعه]]","v":0}]
[null,null,null,null,null,null,null,{"$f":"الجدول1[[#This Row],[الموجود بالمخزن]]-الجدول1[[#This Row],[تم بيعه]]","v":0}]
[null,null,null,null,null,null,null,{"$f":"الجدول1[[#This Row],[الموجود بالمخزن]]-الجدول1[[#This Row],[تم بيعه]]","v":0}]
[null,null,null,null,null,null,null,{"$f":"الجدول1[[#This Row],[الموجود بالمخزن]]-الجدول1[[#This Row],[تم بيعه]]","v":0}]
[null,null,null,null,null,null,null,{"$f":"الجدول1[[#This Row],[الموجود بالمخزن]]-الجدول1[[#This Row],[تم بيعه]]","v":0}]
[null,null,null,null,null,null,null,{"$f":"الجدول1[[#This Row],[الموجود بالمخزن]]-الجدول1[[#This Row],[تم بيعه]]","v":0}]
[null,null,null,null,null,null,null,{"$f":"الجدول1[[#This Row],[الموجود بالمخزن]]-الجدول1[[#This Row],[تم بيعه]]","v":0}]
[null,null,null,null,null,null,null,{"$f":"الجدول1[[#This Row],[الموجود بالمخزن]]-الجدول1[[#This Row],[تم بيعه]]","v":0}]
[null,null,null,null,null,null,null,{"$f":"الجدول1[[#This Row],[الموجود بالمخزن]]-الجدول1[[#This Row],[تم بيعه]]","v":0}]
[null,null,null,null,null,null,null,{"$f":"الجدول1[[#This Row],[الموجود بالمخزن]]-الجدول1[[#This Row],[تم بيعه]]","v":0}]
[null,null,null,null,null,null,null,{"$f":"الجدول1[[#This Row],[الموجود بالمخزن]]-الجدول1[[#This Row],[تم بيعه]]","v":0}]
[null,null,null,null,null,null,null,{"$f":"الجدول1[[#This Row],[الموجود بالمخزن]]-الجدول1[[#This Row],[تم بيعه]]","v":0}]
[null,null,null,null,null,null,null,{"$f":"الجدول1[[#This Row],[الموجود بالمخزن]]-الجدول1[[#This Row],[تم بيعه]]","v":0}]
[null,null,null,null,null,null,null,{"$f":"الجدول1[[#This Row],[الموجود بالمخزن]]-الجدول1[[#This Row],[تم بيعه]]","v":0}]
[null,null,null,null,null,null,null,{"$f":"الجدول1[[#This Row],[الموجود بالمخزن]]-الجدول1[[#This Row],[تم بيعه]]","v":0}]
[null,null,null,null,null,null,null,{"$f":"الجدول1[[#This Row],[الموجود بالمخزن]]-الجدول1[[#This Row],[تم بيعه]]","v":0}]
[null,null,null,null,null,null,null,{"$f":"الجدول1[[#This Row],[الموجود بالمخزن]]-الجدول1[[#This Row],[تم بيعه]]","v":0}]
[null,null,null,null,null,null,null,{"$f":"الجدول1[[#This Row],[الموجود بالمخزن]]-الجدول1[[#This Row],[تم بيعه]]","v":0}]
[null,null,null,null,null,null,null,{"$f":"الجدول1[[#This Row],[الموجود بالمخزن]]-الجدول1[[#This Row],[تم بيعه]]","v":0}]
[null,null,null,null,null,null,null,{"$f":"الجدول1[[#This Row],[الموجود بالمخزن]]-الجدول1[[#This Row],[تم بيعه]]","v":0}]
[null,null,null,null,null,null,null,{"$f":"الجدول1[[#This Row],[الموجود بالمخزن]]-الجدول1[[#This Row],[تم بيعه]]","v":0}]
[null,null,null,null,null,null,null,{"$f":"الجدول1[[#This Row],[الموجود بالمخزن]]-الجدول1[[#This Row],[تم بيعه]]","v":0}]
[null,null,null,null,null,null,null,{"$f":"الجدول1[[#This Row],[الموجود بالمخزن]]-الجدول1[[#This Row],[تم بيعه]]","v":0}]
[null,null,null,null,null,null,null,{"$f":"الجدول1[[#This Row],[الموجود بالمخزن]]-الجدول1[[#This Row],[تم بيعه]]","v":0}]
[null,null,null,null,null,null,null,{"$f":"الجدول1[[#This Row],[الموجود بالمخزن]]-الجدول1[[#This Row],[تم بيعه]]","v":0}]
[null,null,null,null,null,null,null,{"$f":"الجدول1[[#This Row],[الموجود بالمخزن]]-الجدول1[[#This Row],[تم بيعه]]","v":0}]
[null,null,null,null,null,null,null,{"$f":"الجدول1[[#This Row],[الموجود بالمخزن]]-الجدول1[[#This Row],[تم بيعه]]","v":0}]
[null,null,null,null,null,null,null,{"$f":"الجدول1[[#This Row],[الموجود بالمخزن]]-الجدول1[[#This Row],[تم بيعه]]","v":0}]
[null,null,null,null,null,null,null,{"$f":"الجدول1[[#This Row],[الموجود بالمخزن]]-الجدول1[[#This Row],[تم بيعه]]","v":0}]
[null,null,null,null,null,null,null,{"$f":"الجدول1[[#This Row],[الموجود بالمخزن]]-الجدول1[[#This Row],[تم بيعه]]","v":0}]
[null,null,null,null,null,null,null,{"$f":"الجدول1[[#This Row],[الموجود بالمخزن]]-الجدول1[[#This Row],[تم بيعه]]","v":0}]
[null,null,null,null,null,null,null,{"$f":"الجدول1[[#This Row],[الموجود بالمخزن]]-الجدول1[[#This Row],[تم بيعه]]","v":0}]
[null,null,null,null,null,null,null,{"$f":"الجدول1[[#This Row],[الموجود بالمخزن]]-الجدول1[[#This Row],[تم بيعه]]","v":0}]
[null,null,null,null,null,null,null,{"$f":"الجدول1[[#This Row],[الموجود بالمخزن]]-الجدول1[[#This Row],[تم بيعه]]","v":0}]
[null,null,null,null,null,null,null,{"$f":"الجدول1[[#This Row],[الموجود بالمخزن]]-الجدول1[[#This Row],[تم بيعه]]","v":0}]
[null,null,null,null,null,null,null,{"$f":"الجدول1[[#This Row],[الموجود بالمخزن]]-الجدول1[[#This Row],[تم بيعه]]","v":0}]
[null,null,null,null,null,null,null,{"$f":"الجدول1[[#This Row],[الموجود بالمخزن]]-الجدول1[[#This Row],[تم بيعه]]","v":0}]
[null,null,null,null,null,null,null,{"$f":"الجدول1[[#This Row],[الموجود بالمخزن]]-الجدول1[[#This Row],[تم بيعه]]","v":0}]
[null,null,null,null,null,null,null,{"$f":"الجدول1[[#This Row],[الموجود بالمخزن]]-الجدول1[[#This Row],[تم بيعه]]","v":0}]
[null,null,null,null,null,null,null,{"$f":"الجدول1[[#This Row],[الموجود بالمخزن]]-الجدول1[[#This Row],[تم بيعه]]","v":0}]
[null,null,null,null,null,null,null,{"$f":"الجدول1[[#This Row],[الموجود بالمخزن]]-الجدول1[[#This Row],[تم بيعه]]","v":0}]
[null,null,null,null,null,null,null,{"$f":"الجدول1[[#This Row],[الموجود بالمخزن]]-الجدول1[[#This Row],[تم بيعه]]","v":0}]
[null,null,null,null,null,null,null,{"$f":"الجدول1[[#This Row],[الموجود بالمخزن]]-الجدول1[[#This Row],[تم بيعه]]","v":0}]
[null,null,null,null,null,null,null,{"$f":"الجدول1[[#This Row],[الموجود بالمخزن]]-الجدول1[[#This Row],[تم بيعه]]","v":0}]
[null,null,null,null,null,null,null,{"$f":"الجدول1[[#This Row],[الموجود بالمخزن]]-الجدول1[[#This Row],[تم بيعه]]","v":0}]
[null,null,null,null,null,null,null,{"$f":"الجدول1[[#This Row],[الموجود بالمخزن]]-الجدول1[[#This Row],[تم بيعه]]","v":0}]
[null,null,null,null,null,null,null,{"$f":"الجدول1[[#This Row],[الموجود بالمخزن]]-الجدول1[[#This Row],[تم بيعه]]","v":0}]
[null,null,null,null,null,null,null,{"$f":"الجدول1[[#This Row],[الموجود بالمخزن]]-الجدول1[[#This Row],[تم بيعه]]","v":0}]
[null,null,null,null,null,null,null,{"$f":"الجدول1[[#This Row],[الموجود بالمخزن]]-الجدول1[[#This Row],[تم بيعه]]","v":0}]
[null,null,null,null,null,null,null,{"$f":"الجدول1[[#This Row],[الموجود بالمخزن]]-الجدول1[[#This Row],[تم بيعه]]","v":0}]
[null,null,null,null,null,null,null,{"$f":"الجدول1[[#This Row],[الموجود بالمخزن]]-الجدول1[[#This Row],[تم بيعه]]","v":0}]
[null,null,null,null,null,null,null,{"$f":"الجدول1[[#This Row],[الموجود بالمخزن]]-الجدول1[[#This Row],[تم بيعه]]","v":0}]
[null,null,null,null,null,null,null,{"$f":"الجدول1[[#This Row],[الموجود بالمخزن]]-الجدول1[[#This Row],[تم بيعه]]","v":0}]
[null,null,null,null,null,null,null,{"$f":"الجدول1[[#This Row],[الموجود بالمخزن]]-الجدول1[[#This Row],[تم بيعه]]","v":0}]
[null,null,null,null,null,null,null,{"$f":"الجدول1[[#This Row],[الموجود بالمخزن]]-الجدول1[[#This Row],[تم بيعه]]","v":0}]
[null,null,null,null,null,null,null,{"$f":"الجدول1[[#This Row],[الموجود بالمخزن]]-الجدول1[[#This Row],[تم بيعه]]","v":0}]
[null,null,null,null,null,null,null,{"$f":"الجدول1[[#This Row],[الموجود بالمخزن]]-الجدول1[[#This Row],[تم بيعه]]","v":0}]
[null,null,null,null,null,null,null,{"$f":"الجدول1[[#This Row],[الموجود بالمخزن]]-الجدول1[[#This Row],[تم بيعه]]","v":0}]
[null,null,null,null,null,null,null,{"$f":"الجدول1[[#This Row],[الموجود بالمخزن]]-الجدول1[[#This Row],[تم بيعه]]","v":0}]
[null,null,null,null,null,null,null,{"$f":"الجدول1[[#This Row],[الموجود بالمخزن]]-الجدول1[[#This Row],[تم بيعه]]","v":0}]
[null,null,null,null,null,null,null,{"$f":"الجدول1[[#This Row],[الموجود بالمخزن]]-الجدول1[[#This Row],[تم بيعه]]","v":0}]
[null,null,null,null,null,null,null,{"$f":"الجدول1[[#This Row],[الموجود بالمخزن]]-الجدول1[[#This Row],[تم بيعه]]","v":0}]
[null,null,null,null,null,null,null,{"$f":"الجدول1[[#This Row],[الموجود بالمخزن]]-الجدول1[[#This Row],[تم بيعه]]","v":0}]
[null,null,null,null,null,null,null,{"$f":"الجدول1[[#This Row],[الموجود بالمخزن]]-الجدول1[[#This Row],[تم بيعه]]","v":0}]
[null,null,null,null,null,null,null,{"$f":"الجدول1[[#This Row],[الموجود بالمخزن]]-الجدول1[[#This Row],[تم بيعه]]","v":0}]
[null,null,null,null,null,null,null,{"$f":"الجدول1[[#This Row],[الموجود بالمخزن]]-الجدول1[[#This Row],[تم بيعه]]","v":0}]
[null,null,null,null,null,null,null,{"$f":"الجدول1[[#This Row],[الموجود بالمخزن]]-الجدول1[[#This Row],[تم بيعه]]","v":0}]
[null,null,null,null,null,null,null,{"$f":"الجدول1[[#This Row],[الموجود بالمخزن]]-الجدول1[[#This Row],[تم بيعه]]","v":0}]
[null,null,null,null,null,null,null,{"$f":"الجدول1[[#This Row],[الموجود بالمخزن]]-الجدول1[[#This Row],[تم بيعه]]","v":0}]
[null,null,null,null,null,null,null,{"$f":"الجدول1[[#This Row],[الموجود بالمخزن]]-الجدول1[[#This Row],[تم بيعه]]","v":0}]
[null,null,null,null,null,null,null,{"$f":"الجدول1[[#This Row],[الموجود بالمخزن]]-الجدول1[[#This Row],[تم بيعه]]","v":0}]
[null,null,null,null,null,null,null,{"$f":"الجدول1[[#This Row],[الموجود بالمخزن]]-الجدول1[[#This Row],[تم بيعه]]","v":0}]
[null,null,null,null,null,null,null,{"$f":"الجدول1[[#This Row],[الموجود بالمخزن]]-الجدول1[[#This Row],[تم بيعه]]","v":0}]
[null,null,null,null,null,null,null,{"$f":"الجدول1[[#This Row],[الموجود بالمخزن]]-الجدول1[[#This Row],[تم بيعه]]","v":0}]
[null,null,null,null,null,null,null,{"$f":"الجدول1[[#This Row],[الموجود بالمخزن]]-الجدول1[[#This Row],[تم بيعه]]","v":0}]
[null,null,null,null,null,null,null,{"$f":"الجدول1[[#This Row],[الموجود بالمخزن]]-الجدول1[[#This Row],[تم بيعه]]","v":0}]
[null,null,null,null,null,null,null,{"$f":"الجدول1[[#This Row],[الموجود بالمخزن]]-الجدول1[[#This Row],[تم بيعه]]","v":0}]
[null,null,null,null,null,null,null,{"$f":"الجدول1[[#This Row],[الموجود بالمخزن]]-الجدول1[[#This Row],[تم بيعه]]","v":0}]
[null,null,null,null,null,null,null,{"$f":"الجدول1[[#This Row],[الموجود بالمخزن]]-الجدول1[[#This Row],[تم بيعه]]","v":0}]
[null,null,null,null,null,null,null,{"$f":"الجدول1[[#This Row],[الموجود بالمخزن]]-الجدول1[[#This Row],[تم بيعه]]","v":0}]
[null,null,null,null,null,null,null,{"$f":"الجدول1[[#This Row],[الموجود بالمخزن]]-الجدول1[[#This Row],[تم بيعه]]","v":0}]
[null,null,null,null,null,null,null,{"$f":"الجدول1[[#This Row],[الموجود بالمخزن]]-الجدول1[[#This Row],[تم بيعه]]","v":0}]
[null,null,null,null,null,null,null,{"$f":"الجدول1[[#This Row],[الموجود بالمخزن]]-الجدول1[[#This Row],[تم بيعه]]","v":0}]
[null,null,null,null,null,null,null,{"$f":"الجدول1[[#This Row],[الموجود بالمخزن]]-الجدول1[[#This Row],[تم بيعه]]","v":0}]
[null,null,null,null,null,null,null,{"$f":"الجدول1[[#This Row],[الموجود بالمخزن]]-الجدول1[[#This Row],[تم بيعه]]","v":0}]
[null,null,null,null,null,null,null,{"$f":"الجدول1[[#This Row],[الموجود بالمخزن]]-الجدول1[[#This Row],[تم بيعه]]","v":0}]
[null,null,null,null,null,null,null,{"$f":"الجدول1[[#This Row],[الموجود بالمخزن]]-الجدول1[[#This Row],[تم بيعه]]","v":0}]
[null,null,null,null,null,null,null,{"$f":"الجدول1[[#This Row],[الموجود بالمخزن]]-الجدول1[[#This Row],[تم بيعه]]","v":0}]
[null,null,null,null,null,null,null,{"$f":"الجدول1[[#This Row],[الموجود بالمخزن]]-الجدول1[[#This Row],[تم بيعه]]","v":0}]
[null,null,null,null,null,null,null,{"$f":"الجدول1[[#This Row],[الموجود بالمخزن]]-الجدول1[[#This Row],[تم بيعه]]","v":0}]
[null,null,null,null,null,null,null,{"$f":"الجدول1[[#This Row],[الموجود بالمخزن]]-الجدول1[[#This Row],[تم بيعه]]","v":0}]
[null,null,null,null,null,null,null,{"$f":"الجدول1[[#This Row],[الموجود بالمخزن]]-الجدول1[[#This Row],[تم بيعه]]","v":0}]
[null,null,null,null,null,null,null,{"$f":"الجدول1[[#This Row],[الموجود بالمخزن]]-الجدول1[[#This Row],[تم بيعه]]","v":0}]
[null,null,null,null,null,null,null,{"$f":"الجدول1[[#This Row],[الموجود بالمخزن]]-الجدول1[[#This Row],[تم بيعه]]","v":0}]
[null,null,null,null,null,null,null,{"$f":"الجدول1[[#This Row],[الموجود بالمخزن]]-الجدول1[[#This Row],[تم بيعه]]","v":0}]
[null,null,null,null,null,null,null,{"$f":"الجدول1[[#This Row],[الموجود بالمخزن]]-الجدول1[[#This Row],[تم بيعه]]","v":0}]
[null,null,null,null,null,null,null,{"$f":"الجدول1[[#This Row],[الموجود بالمخزن]]-الجدول1[[#This Row],[تم بيعه]]","v":0}]
[null,null,null,null,null,null,null,{"$f":"الجدول1[[#This Row],[الموجود بالمخزن]]-الجدول1[[#This Row],[تم بيعه]]","v":0}]
[null,null,null,null,null,null,null,{"$f":"الجدول1[[#This Row],[الموجود بالمخزن]]-الجدول1[[#This Row],[تم بيعه]]","v":0}]
[null,null,null,null,null,null,null,{"$f":"الجدول1[[#This Row],[الموجود بالمخزن]]-الجدول1[[#This Row],[تم بيعه]]","v":0}]
[null,null,null,null,null,null,null,{"$f":"الجدول1[[#This Row],[الموجود بالمخزن]]-الجدول1[[#This Row],[تم بيعه]]","v":0}]
[null,null,null,null,null,null,null,{"$f":"الجدول1[[#This Row],[الموجود بالمخزن]]-الجدول1[[#This Row],[تم بيعه]]","v":0}]
[null,null,null,null,null,null,null,{"$f":"الجدول1[[#This Row],[الموجود بالمخزن]]-الجدول1[[#This Row],[تم بيعه]]","v":0}]
[null,null,null,null,null,null,null,{"$f":"الجدول1[[#This Row],[الموجود بالمخزن]]-الجدول1[[#This Row],[تم بيعه]]","v":0}]
[null,null,null,null,null,null,null,{"$f":"الجدول1[[#This Row],[الموجود بالمخزن]]-الجدول1[[#This Row],[تم بيعه]]","v":0}]
[null,null,null,null,null,null,null,{"$f":"الجدول1[[#This Row],[الموجود بالمخزن]]-الجدول1[[#This Row],[تم بيعه]]","v":0}]
[null,null,null,null,null,null,null,{"$f":"الجدول1[[#This Row],[الموجود بالمخزن]]-الجدول1[[#This Row],[تم بيعه]]","v":0}]
[null,null,null,null,null,null,null,{"$f":"الجدول1[[#This Row],[الموجود بالمخزن]]-الجدول1[[#This Row],[تم بيعه]]","v":0}]
[null,null,null,null,null,null,null,{"$f":"الجدول1[[#This Row],[الموجود بالمخزن]]-الجدول1[[#This Row],[تم بيعه]]","v":0}]
[null,null,null,null,null,null,null,{"$f":"الجدول1[[#This Row],[الموجود بالمخزن]]-الجدول1[[#This Row],[تم بيعه]]","v":0}]
[null,null,null,null,null,null,null,{"$f":"الجدول1[[#This Row],[الموجود بالمخزن]]-الجدول1[[#This Row],[تم بيعه]]","v":0}]
[null,null,null,null,null,null,null,{"$f":"الجدول1[[#This Row],[الموجود بالمخزن]]-الجدول1[[#This Row],[تم بيعه]]","v":0}]
[null,null,null,null,null,null,null,{"$f":"الجدول1[[#This Row],[الموجود بالمخزن]]-الجدول1[[#This Row],[تم بيعه]]","v":0}]
[null,null,null,null,null,null,null,{"$f":"الجدول1[[#This Row],[الموجود بالمخزن]]-الجدول1[[#This Row],[تم بيعه]]","v":0}]
[null,null,null,null,null,null,null,{"$f":"الجدول1[[#This Row],[الموجود بالمخزن]]-الجدول1[[#This Row],[تم بيعه]]","v":0}]
[null,null,null,null,null,null,null,{"$f":"الجدول1[[#This Row],[الموجود بالمخزن]]-الجدول1[[#This Row],[تم بيعه]]","v":0}]
[null,null,null,null,null,null,null,{"$f":"الجدول1[[#This Row],[الموجود بالمخزن]]-الجدول1[[#This Row],[تم بيعه]]","v":0}]
[null,null,null,null,null,null,null,{"$f":"الجدول1[[#This Row],[الموجود بالمخزن]]-الجدول1[[#This Row],[تم بيعه]]","v":0}]
[null,null,null,null,null,null,null,{"$f":"الجدول1[[#This Row],[الموجود بالمخزن]]-الجدول1[[#This Row],[تم بيعه]]","v":0}]
[null,null,null,null,null,null,null,{"$f":"الجدول1[[#This Row],[الموجود بالمخزن]]-الجدول1[[#This Row],[تم بيعه]]","v":0}]
[null,null,null,null,null,null,null,{"$f":"الجدول1[[#This Row],[الموجود بالمخزن]]-الجدول1[[#This Row],[تم بيعه]]","v":0}]
[null,null,null,null,null,null,null,{"$f":"الجدول1[[#This Row],[الموجود بالمخزن]]-الجدول1[[#This Row],[تم بيعه]]","v":0}]
[null,null,null,null,null,null,null,{"$f":"الجدول1[[#This Row],[الموجود بالمخزن]]-الجدول1[[#This Row],[تم بيعه]]","v":0}]
[null,null,null,null,null,null,null,{"$f":"الجدول1[[#This Row],[الموجود بالمخزن]]-الجدول1[[#This Row],[تم بيعه]]","v":0}]
[null,null,null,null,null,null,null,{"$f":"الجدول1[[#This Row],[الموجود بالمخزن]]-الجدول1[[#This Row],[تم بيعه]]","v":0}]
[null,null,null,null,null,null,null,{"$f":"الجدول1[[#This Row],[الموجود بالمخزن]]-الجدول1[[#This Row],[تم بيعه]]","v":0}]
[null,null,null,null,null,null,null,{"$f":"الجدول1[[#This Row],[الموجود بالمخزن]]-الجدول1[[#This Row],[تم بيعه]]","v":0}]
[null,null,null,null,null,null,null,{"$f":"الجدول1[[#This Row],[الموجود بالمخزن]]-الجدول1[[#This Row],[تم بيعه]]","v":0}]
[null,null,null,null,null,null,null,{"$f":"الجدول1[[#This Row],[الموجود بالمخزن]]-الجدول1[[#This Row],[تم بيعه]]","v":0}]
[null,null,null,null,null,null,null,{"$f":"الجدول1[[#This Row],[الموجود بالمخزن]]-الجدول1[[#This Row],[تم بيعه]]","v":0}]
[null,null,null,null,null,null,null,{"$f":"الجدول1[[#This Row],[الموجود بالمخزن]]-الجدول1[[#This Row],[تم بيعه]]","v":0}]
[null,null,null,null,null,null,null,{"$f":"الجدول1[[#This Row],[الموجود بالمخزن]]-الجدول1[[#This Row],[تم بيعه]]","v":0}]
[null,null,null,null,null,null,null,{"$f":"الجدول1[[#This Row],[الموجود بالمخزن]]-الجدول1[[#This Row],[تم بيعه]]","v":0}]
[null,null,null,null,null,null,null,{"$f":"الجدول1[[#This Row],[الموجود بالمخزن]]-الجدول1[[#This Row],[تم بيعه]]","v":0}]
[null,null,null,null,null,null,null,{"$f":"الجدول1[[#This Row],[الموجود بالمخزن]]-الجدول1[[#This Row],[تم بيعه]]","v":0}]
[null,null,null,null,null,null,null,{"$f":"الجدول1[[#This Row],[الموجود بالمخزن]]-الجدول1[[#This Row],[تم بيعه]]","v":0}]
[null,null,null,null,null,null,null,{"$f":"الجدول1[[#This Row],[الموجود بالمخزن]]-الجدول1[[#This Row],[تم بيعه]]","v":0}]
[null,null,null,null,null,null,null,{"$f":"الجدول1[[#This Row],[الموجود بالمخزن]]-الجدول1[[#This Row],[تم بيعه]]","v":0}]
[null,null,null,null,null,null,null,{"$f":"الجدول1[[#This Row],[الموجود بالمخزن]]-الجدول1[[#This Row],[تم بيعه]]","v":0}]
[null,null,null,null,null,null,null,{"$f":"الجدول1[[#This Row],[الموجود بالمخزن]]-الجدول1[[#This Row],[تم بيعه]]","v":0}]
[null,null,null,null,null,null,null,{"$f":"الجدول1[[#This Row],[الموجود بالمخزن]]-الجدول1[[#This Row],[تم بيعه]]","v":0}]
[null,null,null,null,null,null,null,{"$f":"الجدول1[[#This Row],[الموجود بالمخزن]]-الجدول1[[#This Row],[تم بيعه]]","v":0}]
[null,null,null,null,null,null,null,{"$f":"الجدول1[[#This Row],[الموجود بالمخزن]]-الجدول1[[#This Row],[تم بيعه]]","v":0}]
[null,null,null,null,null,null,null,{"$f":"الجدول1[[#This Row],[الموجود بالمخزن]]-الجدول1[[#This Row],[تم بيعه]]","v":0}]
[null,null,null,null,null,null,null,{"$f":"الجدول1[[#This Row],[الموجود بالمخزن]]-الجدول1[[#This Row],[تم بيعه]]","v":0}]
[null,null,null,null,null,null,null,{"$f":"الجدول1[[#This Row],[الموجود بالمخزن]]-الجدول1[[#This Row],[تم بيعه]]","v":0}]
[null,null,null,null,null,null,null,{"$f":"الجدول1[[#This Row],[الموجود بالمخزن]]-الجدول1[[#This Row],[تم بيعه]]","v":0}]
[null,null,null,null,null,null,null,{"$f":"الجدول1[[#This Row],[الموجود بالمخزن]]-الجدول1[[#This Row],[تم بيعه]]","v":0}]
[null,null,null,null,null,null,null,{"$f":"الجدول1[[#This Row],[الموجود بالمخزن]]-الجدول1[[#This Row],[تم بيعه]]","v":0}]
[null,null,null,null,null,null,null,{"$f":"الجدول1[[#This Row],[الموجود بالمخزن]]-الجدول1[[#This Row],[تم بيعه]]","v":0}]
[null,null,null,null,null,null,null,{"$f":"الجدول1[[#This Row],[الموجود بالمخزن]]-الجدول1[[#This Row],[تم بيعه]]","v":0}]
[null,null,null,null,null,null,null,{"$f":"الجدول1[[#This Row],[الموجود بالمخزن]]-الجدول1[[#This Row],[تم بيعه]]","v":0}]
[null,null,null,null,null,null,null,{"$f":"الجدول1[[#This Row],[الموجود بالمخزن]]-الجدول1[[#This Row],[تم بيعه]]","v":0}]
[null,null,null,null,null,null,null,{"$f":"الجدول1[[#This Row],[الموجود بالمخزن]]-الجدول1[[#This Row],[تم بيعه]]","v":0}]
[null,null,null,null,null,null,null,{"$f":"الجدول1[[#This Row],[الموجود بالمخزن]]-الجدول1[[#This Row],[تم بيعه]]","v":0}]
[null,null,null,null,null,null,null,{"$f":"الجدول1[[#This Row],[الموجود بالمخزن]]-الجدول1[[#This Row],[تم بيعه]]","v":0}]
[null,null,null,null,null,null,null,{"$f":"الجدول1[[#This Row],[الموجود بالمخزن]]-الجدول1[[#This Row],[تم بيعه]]","v":0}]
[null,null,null,null,null,null,null,{"$f":"الجدول1[[#This Row],[الموجود بالمخزن]]-الجدول1[[#This Row],[تم بيعه]]","v":0}]
[null,null,null,null,null,null,null,{"$f":"الجدول1[[#This Row],[الموجود بالمخزن]]-الجدول1[[#This Row],[تم بيعه]]","v":0}]
[null,null,null,null,null,null,null,{"$f":"الجدول1[[#This Row],[الموجود بالمخزن]]-الجدول1[[#This Row],[تم بيعه]]","v":0}]
[null,null,null,null,null,null,null,{"$f":"الجدول1[[#This Row],[الموجود بالمخزن]]-الجدول1[[#This Row],[تم بيعه]]","v":0}]
[null,null,null,null,null,null,null,{"$f":"الجدول1[[#This Row],[الموجود بالمخزن]]-الجدول1[[#This Row],[تم بيعه]]","v":0}]
[null,null,null,null,null,null,null,{"$f":"الجدول1[[#This Row],[الموجود بالمخزن]]-الجدول1[[#This Row],[تم بيعه]]","v":0}]
[null,null,null,null,null,null,null,{"$f":"الجدول1[[#This Row],[الموجود بالمخزن]]-الجدول1[[#This Row],[تم بيعه]]","v":0}]
[null,null,null,null,null,null,null,{"$f":"الجدول1[[#This Row],[الموجود بالمخزن]]-الجدول1[[#This Row],[تم بيعه]]","v":0}]
[null,null,null,null,null,null,null,{"$f":"الجدول1[[#This Row],[الموجود بالمخزن]]-الجدول1[[#This Row],[تم بيعه]]","v":0}]
[null,null,null,null,null,null,null,{"$f":"الجدول1[[#This Row],[الموجود بالمخزن]]-الجدول1[[#This Row],[تم بيعه]]","v":0}]
[null,null,null,null,null,null,null,{"$f":"الجدول1[[#This Row],[الموجود بالمخزن]]-الجدول1[[#This Row],[تم بيعه]]","v":0}]
[null,null,null,null,null,null,null,{"$f":"الجدول1[[#This Row],[الموجود بالمخزن]]-الجدول1[[#This Row],[تم بيعه]]","v":0}]
[null,null,null,null,null,null,null,{"$f":"الجدول1[[#This Row],[الموجود بالمخزن]]-الجدول1[[#This Row],[تم بيعه]]","v":0}]
[null,null,null,null,null,null,null,{"$f":"الجدول1[[#This Row],[الموجود بالمخزن]]-الجدول1[[#This Row],[تم بيعه]]","v":0}]
[null,null,null,null,null,null,null,{"$f":"الجدول1[[#This Row],[الموجود بالمخزن]]-الجدول1[[#This Row],[تم بيعه]]","v":0}]
[null,null,null,null,null,null,null,{"$f":"الجدول1[[#This Row],[الموجود بالمخزن]]-الجدول1[[#This Row],[تم بيعه]]","v":0}]
[null,null,null,null,null,null,null,{"$f":"الجدول1[[#This Row],[الموجود بالمخزن]]-الجدول1[[#This Row],[تم بيعه]]","v":0}]
[null,null,null,null,null,null,null,{"$f":"الجدول1[[#This Row],[الموجود بالمخزن]]-الجدول1[[#This Row],[تم بيعه]]","v":0}]
[null,null,null,null,null,null,null,{"$f":"الجدول1[[#This Row],[الموجود بالمخزن]]-الجدول1[[#This Row],[تم بيعه]]","v":0}]
[null,null,null,null,null,null,null,{"$f":"الجدول1[[#This Row],[الموجود بالمخزن]]-الجدول1[[#This Row],[تم بيعه]]","v":0}]
[null,null,null,null,null,null,null,{"$f":"الجدول1[[#This Row],[الموجود بالمخزن]]-الجدول1[[#This Row],[تم بيعه]]","v":0}]
[null,null,null,null,null,null,null,{"$f":"الجدول1[[#This Row],[الموجود بالمخزن]]-الجدول1[[#This Row],[تم بيعه]]","v":0}]
[null,null,null,null,null,null,null,{"$f":"الجدول1[[#This Row],[الموجود بالمخزن]]-الجدول1[[#This Row],[تم بيعه]]","v":0}]
[null,null,null,null,null,null,null,{"$f":"الجدول1[[#This Row],[الموجود بالمخزن]]-الجدول1[[#This Row],[تم بيعه]]","v":0}]
[null,null,null,null,null,null,null,{"$f":"الجدول1[[#This Row],[الموجود بالمخزن]]-الجدول1[[#This Row],[تم بيعه]]","v":0}]
[null,null,null,null,null,null,null,{"$f":"الجدول1[[#This Row],[الموجود بالمخزن]]-الجدول1[[#This Row],[تم بيعه]]","v":0}]
[null,null,null,null,null,null,null,{"$f":"الجدول1[[#This Row],[الموجود بالمخزن]]-الجدول1[[#This Row],[تم بيعه]]","v":0}]
[null,null,null,null,null,null,null,{"$f":"الجدول1[[#This Row],[الموجود بالمخزن]]-الجدول1[[#This Row],[تم بيعه]]","v":0}]
[null,null,null,null,null,null,null,{"$f":"الجدول1[[#This Row],[الموجود بالمخزن]]-الجدول1[[#This Row],[تم بيعه]]","v":0}]
[null,null,null,null,null,null,null,{"$f":"الجدول1[[#This Row],[الموجود بالمخزن]]-الجدول1[[#This Row],[تم بيعه]]","v":0}]
[null,null,null,null,null,null,null,{"$f":"الجدول1[[#This Row],[الموجود بالمخزن]]-الجدول1[[#This Row],[تم بيعه]]","v":0}]
[null,null,null,null,null,null,null,{"$f":"الجدول1[[#This Row],[الموجود بالمخزن]]-الجدول1[[#This Row],[تم بيعه]]","v":0}]
[null,null,null,null,null,null,null,{"$f":"الجدول1[[#This Row],[الموجود بالمخزن]]-الجدول1[[#This Row],[تم بيعه]]","v":0}]
[null,null,null,null,null,null,null,{"$f":"الجدول1[[#This Row],[الموجود بالمخزن]]-الجدول1[[#This Row],[تم بيعه]]","v":0}]
[null,null,null,null,null,null,null,{"$f":"الجدول1[[#This Row],[الموجود بالمخزن]]-الجدول1[[#This Row],[تم بيعه]]","v":0}]
[null,null,null,null,null,null,null,{"$f":"الجدول1[[#This Row],[الموجود بالمخزن]]-الجدول1[[#This Row],[تم بيعه]]","v":0}]
[null,null,null,null,null,null,null,{"$f":"الجدول1[[#This Row],[الموجود بالمخزن]]-الجدول1[[#This Row],[تم بيعه]]","v":0}]
[null,null,null,null,null,null,null,{"$f":"الجدول1[[#This Row],[الموجود بالمخزن]]-الجدول1[[#This Row],[تم بيعه]]","v":0}]
[null,null,null,null,null,null,null,{"$f":"الجدول1[[#This Row],[الموجود بالمخزن]]-الجدول1[[#This Row],[تم بيعه]]","v":0}]
[null,null,null,null,null,null,null,{"$f":"الجدول1[[#This Row],[الموجود بالمخزن]]-الجدول1[[#This Row],[تم بيعه]]","v":0}]
[null,null,null,null,null,null,null,{"$f":"الجدول1[[#This Row],[الموجود بالمخزن]]-الجدول1[[#This Row],[تم بيعه]]","v":0}]
[null,null,null,null,null,null,null,{"$f":"الجدول1[[#This Row],[الموجود بالمخزن]]-الجدول1[[#This Row],[تم بيعه]]","v":0}]
[null,null,null,null,null,null,null,{"$f":"الجدول1[[#This Row],[الموجود بالمخزن]]-الجدول1[[#This Row],[تم بيعه]]","v":0}]
[null,null,null,null,null,null,null,{"$f":"الجدول1[[#This Row],[الموجود بالمخزن]]-الجدول1[[#This Row],[تم بيعه]]","v":0}]
[null,null,null,null,null,null,null,{"$f":"الجدول1[[#This Row],[الموجود بالمخزن]]-الجدول1[[#This Row],[تم بيعه]]","v":0}]
[null,null,null,null,null,null,null,{"$f":"الجدول1[[#This Row],[الموجود بالمخزن]]-الجدول1[[#This Row],[تم بيعه]]","v":0}]
[null,null,null,null,null,null,null,{"$f":"الجدول1[[#This Row],[الموجود بالمخزن]]-الجدول1[[#This Row],[تم بيعه]]","v":0}]
[null,null,null,null,null,null,null,{"$f":"الجدول1[[#This Row],[الموجود بالمخزن]]-الجدول1[[#This Row],[تم بيعه]]","v":0}]
[null,null,null,null,null,null,null,{"$f":"الجدول1[[#This Row],[الموجود بالمخزن]]-الجدول1[[#This Row],[تم بيعه]]","v":0}]
[null,null,null,null,null,null,null,{"$f":"الجدول1[[#This Row],[الموجود بالمخزن]]-الجدول1[[#This Row],[تم بيعه]]","v":0}]
[null,null,null,null,null,null,null,{"$f":"الجدول1[[#This Row],[الموجود بالمخزن]]-الجدول1[[#This Row],[تم بيعه]]","v":0}]
[null,null,null,null,null,null,null,{"$f":"الجدول1[[#This Row],[الموجود بالمخزن]]-الجدول1[[#This Row],[تم بيعه]]","v":0}]
[null,null,null,null,null,null,null,{"$f":"الجدول1[[#This Row],[الموجود بالمخزن]]-الجدول1[[#This Row],[تم بيعه]]","v":0}]
[null,null,null,null,null,null,null,{"$f":"الجدول1[[#This Row],[الموجود بالمخزن]]-الجدول1[[#This Row],[تم بيعه]]","v":0}]
[null,null,null,null,null,null,null,{"$f":"الجدول1[[#This Row],[الموجود بالمخزن]]-الجدول1[[#This Row],[تم بيعه]]","v":0}]
[null,null,null,null,null,null,null,{"$f":"الجدول1[[#This Row],[الموجود بالمخزن]]-الجدول1[[#This Row],[تم بيعه]]","v":0}]
[null,null,null,null,null,null,null,{"$f":"الجدول1[[#This Row],[الموجود بالمخزن]]-الجدول1[[#This Row],[تم بيعه]]","v":0}]
[null,null,null,null,null,null,null,{"$f":"الجدول1[[#This Row],[الموجود بالمخزن]]-الجدول1[[#This Row],[تم بيعه]]","v":0}]
[null,null,null,null,null,null,null,{"$f":"الجدول1[[#This Row],[الموجود بالمخزن]]-الجدول1[[#This Row],[تم بيعه]]","v":0}]
[null,null,null,null,null,null,null,{"$f":"الجدول1[[#This Row],[الموجود بالمخزن]]-الجدول1[[#This Row],[تم بيعه]]","v":0}]
[null,null,null,null,null,null,null,{"$f":"الجدول1[[#This Row],[الموجود بالمخزن]]-الجدول1[[#This Row],[تم بيعه]]","v":0}]
[null,null,null,null,null,null,null,{"$f":"الجدول1[[#This Row],[الموجود بالمخزن]]-الجدول1[[#This Row],[تم بيعه]]","v":0}]
[null,null,null,null,null,null,null,{"$f":"الجدول1[[#This Row],[الموجود بالمخزن]]-الجدول1[[#This Row],[تم بيعه]]","v":0}]
[null,null,null,null,null,null,null,{"$f":"الجدول1[[#This Row],[الموجود بالمخزن]]-الجدول1[[#This Row],[تم بيعه]]","v":0}]
[null,null,null,null,null,null,null,{"$f":"الجدول1[[#This Row],[الموجود بالمخزن]]-الجدول1[[#This Row],[تم بيعه]]","v":0}]
[null,null,null,null,null,null,null,{"$f":"الجدول1[[#This Row],[الموجود بالمخزن]]-الجدول1[[#This Row],[تم بيعه]]","v":0}]
[null,null,null,null,null,null,null,{"$f":"الجدول1[[#This Row],[الموجود بالمخزن]]-الجدول1[[#This Row],[تم بيعه]]","v":0}]
[null,null,null,null,null,null,null,{"$f":"الجدول1[[#This Row],[الموجود بالمخزن]]-الجدول1[[#This Row],[تم بيعه]]","v":0}]
[null,null,null,null,null,null,null,{"$f":"الجدول1[[#This Row],[الموجود بالمخزن]]-الجدول1[[#This Row],[تم بيعه]]","v":0}]
[null,null,null,null,null,null,null,{"$f":"الجدول1[[#This Row],[الموجود بالمخزن]]-الجدول1[[#This Row],[تم بيعه]]","v":0}]
[null,null,null,null,null,null,null,{"$f":"الجدول1[[#This Row],[الموجود بالمخزن]]-الجدول1[[#This Row],[تم بيعه]]","v":0}]
[null,null,null,null,null,null,null,{"$f":"الجدول1[[#This Row],[الموجود بالمخزن]]-الجدول1[[#This Row],[تم بيعه]]","v":0}]
[null,null,null,null,null,null,null,{"$f":"الجدول1[[#This Row],[الموجود بالمخزن]]-الجدول1[[#This Row],[تم بيعه]]","v":0}]
[null,null,null,null,null,null,null,{"$f":"الجدول1[[#This Row],[الموجود بالمخزن]]-الجدول1[[#This Row],[تم بيعه]]","v":0}]
[null,null,null,null,null,null,null,{"$f":"الجدول1[[#This Row],[الموجود بالمخزن]]-الجدول1[[#This Row],[تم بيعه]]","v":0}]
[null,null,null,null,null,null,null,{"$f":"الجدول1[[#This Row],[الموجود بالمخزن]]-الجدول1[[#This Row],[تم بيعه]]","v":0}]
[null,null,null,null,null,null,null,{"$f":"الجدول1[[#This Row],[الموجود بالمخزن]]-الجدول1[[#This Row],[تم بيعه]]","v":0}]
[null,null,null,null,null,null,null,{"$f":"الجدول1[[#This Row],[الموجود بالمخزن]]-الجدول1[[#This Row],[تم بيعه]]","v":0}]
[null,null,null,null,null,null,null,{"$f":"الجدول1[[#This Row],[الموجود بالمخزن]]-الجدول1[[#This Row],[تم بيعه]]","v":0}]
[null,null,null,null,null,null,null,{"$f":"الجدول1[[#This Row],[الموجود بالمخزن]]-الجدول1[[#This Row],[تم بيعه]]","v":0}]
[null,null,null,null,null,null,null,{"$f":"الجدول1[[#This Row],[الموجود بالمخزن]]-الجدول1[[#This Row],[تم بيعه]]","v":0}]
[null,null,null,null,null,null,null,{"$f":"الجدول1[[#This Row],[الموجود بالمخزن]]-الجدول1[[#This Row],[تم بيعه]]","v":0}]
[null,null,null,null,null,null,null,{"$f":"الجدول1[[#This Row],[الموجود بالمخزن]]-الجدول1[[#This Row],[تم بيعه]]","v":0}]
[null,null,null,null,null,null,null,{"$f":"الجدول1[[#This Row],[الموجود بالمخزن]]-الجدول1[[#This Row],[تم بيعه]]","v":0}]
[null,null,null,null,null,null,null,{"$f":"الجدول1[[#This Row],[الموجود بالمخزن]]-الجدول1[[#This Row],[تم بيعه]]","v":0}]
[null,null,null,null,null,null,null,{"$f":"الجدول1[[#This Row],[الموجود بالمخزن]]-الجدول1[[#This Row],[تم بيعه]]","v":0}]
[null,null,null,null,null,null,null,{"$f":"الجدول1[[#This Row],[الموجود بالمخزن]]-الجدول1[[#This Row],[تم بيعه]]","v":0}]
[null,null,null,null,null,null,null,{"$f":"الجدول1[[#This Row],[الموجود بالمخزن]]-الجدول1[[#This Row],[تم بيعه]]","v":0}]
[null,null,null,null,null,null,null,{"$f":"الجدول1[[#This Row],[الموجود بالمخزن]]-الجدول1[[#This Row],[تم بيعه]]","v":0}]
[null,null,null,null,null,null,null,{"$f":"الجدول1[[#This Row],[الموجود بالمخزن]]-الجدول1[[#This Row],[تم بيعه]]","v":0}]
[null,null,null,null,null,null,null,{"$f":"الجدول1[[#This Row],[الموجود بالمخزن]]-الجدول1[[#This Row],[تم بيعه]]","v":0}]
[null,null,null,null,null,null,null,{"$f":"الجدول1[[#This Row],[الموجود بالمخزن]]-الجدول1[[#This Row],[تم بيعه]]","v":0}]
[null,null,null,null,null,null,null,{"$f":"الجدول1[[#This Row],[الموجود بالمخزن]]-الجدول1[[#This Row],[تم بيعه]]","v":0}]
[null,null,null,null,null,null,null,{"$f":"الجدول1[[#This Row],[الموجود بالمخزن]]-الجدول1[[#This Row],[تم بيعه]]","v":0}]
[null,null,null,null,null,null,null,{"$f":"الجدول1[[#This Row],[الموجود بالمخزن]]-الجدول1[[#This Row],[تم بيعه]]","v":0}]
[null,null,null,null,null,null,null,{"$f":"الجدول1[[#This Row],[الموجود بالمخزن]]-الجدول1[[#This Row],[تم بيعه]]","v":0}]
[null,null,null,null,null,null,null,{"$f":"الجدول1[[#This Row],[الموجود بالمخزن]]-الجدول1[[#This Row],[تم بيعه]]","v":0}]
[null,null,null,null,null,null,null,{"$f":"الجدول1[[#This Row],[الموجود بالمخزن]]-الجدول1[[#This Row],[تم بيعه]]","v":0}]
[null,null,null,null,null,null,null,{"$f":"الجدول1[[#This Row],[الموجود بالمخزن]]-الجدول1[[#This Row],[تم بيعه]]","v":0}]
[null,null,null,null,null,null,null,{"$f":"الجدول1[[#This Row],[الموجود بالمخزن]]-الجدول1[[#This Row],[تم بيعه]]","v":0}]
[null,null,null,null,null,null,null,{"$f":"الجدول1[[#This Row],[الموجود بالمخزن]]-الجدول1[[#This Row],[تم بيعه]]","v":0}]
[null,null,null,null,null,null,null,{"$f":"الجدول1[[#This Row],[الموجود بالمخزن]]-الجدول1[[#This Row],[تم بيعه]]","v":0}]
[null,null,null,null,null,null,null,{"$f":"الجدول1[[#This Row],[الموجود بالمخزن]]-الجدول1[[#This Row],[تم بيعه]]","v":0}]
[null,null,null,null,null,null,null,{"$f":"الجدول1[[#This Row],[الموجود بالمخزن]]-الجدول1[[#This Row],[تم بيعه]]","v":0}]
[null,null,null,null,null,null,null,{"$f":"الجدول1[[#This Row],[الموجود بالمخزن]]-الجدول1[[#This Row],[تم بيعه]]","v":0}]
[null,null,null,null,null,null,null,{"$f":"الجدول1[[#This Row],[الموجود بالمخزن]]-الجدول1[[#This Row],[تم بيعه]]","v":0}]
[null,null,null,null,null,null,null,{"$f":"الجدول1[[#This Row],[الموجود بالمخزن]]-الجدول1[[#This Row],[تم بيعه]]","v":0}]
[null,null,null,null,null,null,null,{"$f":"الجدول1[[#This Row],[الموجود بالمخزن]]-الجدول1[[#This Row],[تم بيعه]]","v":0}]
[null,null,null,null,null,null,null,{"$f":"الجدول1[[#This Row],[الموجود بالمخزن]]-الجدول1[[#This Row],[تم بيعه]]","v":0}]
[null,null,null,null,null,null,null,{"$f":"الجدول1[[#This Row],[الموجود بالمخزن]]-الجدول1[[#This Row],[تم بيعه]]","v":0}]
[null,null,null,null,null,null,null,{"$f":"الجدول1[[#This Row],[الموجود بالمخزن]]-الجدول1[[#This Row],[تم بيعه]]","v":0}]
[null,null,null,null,null,null,null,{"$f":"الجدول1[[#This Row],[الموجود بالمخزن]]-الجدول1[[#This Row],[تم بيعه]]","v":0}]
[null,null,null,null,null,null,null,{"$f":"الجدول1[[#This Row],[الموجود بالمخزن]]-الجدول1[[#This Row],[تم بيعه]]","v":0}]
[null,null,null,null,null,null,null,{"$f":"الجدول1[[#This Row],[الموجود بالمخزن]]-الجدول1[[#This Row],[تم بيعه]]","v":0}]
[null,null,null,null,null,null,null,{"$f":"الجدول1[[#This Row],[الموجود بالمخزن]]-الجدول1[[#This Row],[تم بيعه]]","v":0}]
[null,null,null,null,null,null,null,{"$f":"الجدول1[[#This Row],[الموجود بالمخزن]]-الجدول1[[#This Row],[تم بيعه]]","v":0}]
[null,null,null,null,null,null,null,{"$f":"الجدول1[[#This Row],[الموجود بالمخزن]]-الجدول1[[#This Row],[تم بيعه]]","v":0}]
[null,null,null,null,null,null,null,{"$f":"الجدول1[[#This Row],[الموجود بالمخزن]]-الجدول1[[#This Row],[تم بيعه]]","v":0}]
[null,null,null,null,null,null,null,{"$f":"الجدول1[[#This Row],[الموجود بالمخزن]]-الجدول1[[#This Row],[تم بيعه]]","v":0}]
[null,null,null,null,null,null,null,{"$f":"الجدول1[[#This Row],[الموجود بالمخزن]]-الجدول1[[#This Row],[تم بيعه]]","v":0}]
[null,null,null,null,null,null,null,{"$f":"الجدول1[[#This Row],[الموجود بالمخزن]]-الجدول1[[#This Row],[تم بيعه]]","v":0}]
[null,null,null,null,null,null,null,{"$f":"الجدول1[[#This Row],[الموجود بالمخزن]]-الجدول1[[#This Row],[تم بيعه]]","v":0}]
[null,null,null,null,null,null,null,{"$f":"الجدول1[[#This Row],[الموجود بالمخزن]]-الجدول1[[#This Row],[تم بيعه]]","v":0}]
[null,null,null,null,null,null,null,{"$f":"الجدول1[[#This Row],[الموجود بالمخزن]]-الجدول1[[#This Row],[تم بيعه]]","v":0}]
[null,null,null,null,null,null,null,{"$f":"الجدول1[[#This Row],[الموجود بالمخزن]]-الجدول1[[#This Row],[تم بيعه]]","v":0}]
[null,null,null,null,null,null,null,{"$f":"الجدول1[[#This Row],[الموجود بالمخزن]]-الجدول1[[#This Row],[تم بيعه]]","v":0}]
[null,null,null,null,null,null,null,{"$f":"الجدول1[[#This Row],[الموجود بالمخزن]]-الجدول1[[#This Row],[تم بيعه]]","v":0}]
[null,null,null,null,null,null,null,{"$f":"الجدول1[[#This Row],[الموجود بالمخزن]]-الجدول1[[#This Row],[تم بيعه]]","v":0}]
[null,null,null,null,null,null,null,{"$f":"الجدول1[[#This Row],[الموجود بالمخزن]]-الجدول1[[#This Row],[تم بيعه]]","v":0}]
[null,null,null,null,null,null,null,{"$f":"الجدول1[[#This Row],[الموجود بالمخزن]]-الجدول1[[#This Row],[تم بيعه]]","v":0}]
[null,null,null,null,null,null,null,{"$f":"الجدول1[[#This Row],[الموجود بالمخزن]]-الجدول1[[#This Row],[تم بيعه]]","v":0}]
[null,null,null,null,null,null,null,{"$f":"الجدول1[[#This Row],[الموجود بالمخزن]]-الجدول1[[#This Row],[تم بيعه]]","v":0}]
[null,null,null,null,null,null,null,{"$f":"الجدول1[[#This Row],[الموجود بالمخزن]]-الجدول1[[#This Row],[تم بيعه]]","v":0}]
[null,null,null,null,null,null,null,{"$f":"الجدول1[[#This Row],[الموجود بالمخزن]]-الجدول1[[#This Row],[تم بيعه]]","v":0}]
[null,null,null,null,null,null,null,{"$f":"الجدول1[[#This Row],[الموجود بالمخزن]]-الجدول1[[#This Row],[تم بيعه]]","v":0}]
[null,null,null,null,null,null,null,{"$f":"الجدول1[[#This Row],[الموجود بالمخزن]]-الجدول1[[#This Row],[تم بيعه]]","v":0}]
[null,null,null,null,null,null,null,{"$f":"الجدول1[[#This Row],[الموجود بالمخزن]]-الجدول1[[#This Row],[تم بيعه]]","v":0}]
[null,null,null,null,null,null,null,{"$f":"الجدول1[[#This Row],[الموجود بالمخزن]]-الجدول1[[#This Row],[تم بيعه]]","v":0}]
[null,null,null,null,null,null,null,{"$f":"الجدول1[[#This Row],[الموجود بالمخزن]]-الجدول1[[#This Row],[تم بيعه]]","v":0}]
[null,null,null,null,null,null,null,{"$f":"الجدول1[[#This Row],[الموجود بالمخزن]]-الجدول1[[#This Row],[تم بيعه]]","v":0}]
[null,null,null,null,null,null,null,{"$f":"الجدول1[[#This Row],[الموجود بالمخزن]]-الجدول1[[#This Row],[تم بيعه]]","v":0}]
[null,null,null,null,null,null,null,{"$f":"الجدول1[[#This Row],[الموجود بالمخزن]]-الجدول1[[#This Row],[تم بيعه]]","v":0}]
[null,null,null,null,null,null,null,{"$f":"الجدول1[[#This Row],[الموجود بالمخزن]]-الجدول1[[#This Row],[تم بيعه]]","v":0}]
[null,null,null,null,null,null,null,{"$f":"الجدول1[[#This Row],[الموجود بالمخزن]]-الجدول1[[#This Row],[تم بيعه]]","v":0}]
[null,null,null,null,null,null,null,{"$f":"الجدول1[[#This Row],[الموجود بالمخزن]]-الجدول1[[#This Row],[تم بيعه]]","v":0}]
[null,null,null,null,null,null,null,{"$f":"الجدول1[[#This Row],[الموجود بالمخزن]]-الجدول1[[#This Row],[تم بيعه]]","v":0}]
[null,null,null,null,null,null,null,{"$f":"الجدول1[[#This Row],[الموجود بالمخزن]]-الجدول1[[#This Row],[تم بيعه]]","v":0}]
[null,null,null,null,null,null,null,{"$f":"الجدول1[[#This Row],[الموجود بالمخزن]]-الجدول1[[#This Row],[تم بيعه]]","v":0}]
[null,null,null,null,null,null,null,{"$f":"الجدول1[[#This Row],[الموجود بالمخزن]]-الجدول1[[#This Row],[تم بيعه]]","v":0}]
[null,null,null,null,null,null,null,{"$f":"الجدول1[[#This Row],[الموجود بالمخزن]]-الجدول1[[#This Row],[تم بيعه]]","v":0}]
[null,null,null,null,null,null,null,{"$f":"الجدول1[[#This Row],[الموجود بالمخزن]]-الجدول1[[#This Row],[تم بيعه]]","v":0}]
[null,null,null,null,null,null,null,{"$f":"الجدول1[[#This Row],[الموجود بالمخزن]]-الجدول1[[#This Row],[تم بيعه]]","v":0}]
[null,null,null,null,null,null,null,{"$f":"الجدول1[[#This Row],[الموجود بالمخزن]]-الجدول1[[#This Row],[تم بيعه]]","v":0}]
[null,null,null,null,null,null,null,{"$f":"الجدول1[[#This Row],[الموجود بالمخزن]]-الجدول1[[#This Row],[تم بيعه]]","v":0}]
[null,null,null,null,null,null,null,{"$f":"الجدول1[[#This Row],[الموجود بالمخزن]]-الجدول1[[#This Row],[تم بيعه]]","v":0}]
[null,null,null,null,null,null,null,{"$f":"الجدول1[[#This Row],[الموجود بالمخزن]]-الجدول1[[#This Row],[تم بيعه]]","v":0}]
[null,null,null,null,null,null,null,{"$f":"الجدول1[[#This Row],[الموجود بالمخزن]]-الجدول1[[#This Row],[تم بيعه]]","v":0}]
[null,null,null,null,null,null,null,{"$f":"الجدول1[[#This Row],[الموجود بالمخزن]]-الجدول1[[#This Row],[تم بيعه]]","v":0}]
[null,null,null,null,null,null,null,{"$f":"الجدول1[[#This Row],[الموجود بالمخزن]]-الجدول1[[#This Row],[تم بيعه]]","v":0}]
[null,null,null,null,null,null,null,{"$f":"الجدول1[[#This Row],[الموجود بالمخزن]]-الجدول1[[#This Row],[تم بيعه]]","v":0}]
[null,null,null,null,null,null,null,{"$f":"الجدول1[[#This Row],[الموجود بالمخزن]]-الجدول1[[#This Row],[تم بيعه]]","v":0}]
[null,null,null,null,null,null,null,{"$f":"الجدول1[[#This Row],[الموجود بالمخزن]]-الجدول1[[#This Row],[تم بيعه]]","v":0}]
[null,null,null,null,null,null,null,{"$f":"الجدول1[[#This Row],[الموجود بالمخزن]]-الجدول1[[#This Row],[تم بيعه]]","v":0}]
[null,null,null,null,null,null,null,{"$f":"الجدول1[[#This Row],[الموجود بالمخزن]]-الجدول1[[#This Row],[تم بيعه]]","v":0}]
[null,null,null,null,null,null,null,{"$f":"الجدول1[[#This Row],[الموجود بالمخزن]]-الجدول1[[#This Row],[تم بيعه]]","v":0}]
[null,null,null,null,null,null,null,{"$f":"الجدول1[[#This Row],[الموجود بالمخزن]]-الجدول1[[#This Row],[تم بيعه]]","v":0}]
[null,null,null,null,null,null,null,{"$f":"الجدول1[[#This Row],[الموجود بالمخزن]]-الجدول1[[#This Row],[تم بيعه]]","v":0}]
[null,null,null,null,null,null,null,{"$f":"الجدول1[[#This Row],[الموجود بالمخزن]]-الجدول1[[#This Row],[تم بيعه]]","v":0}]
[null,null,null,null,null,null,null,{"$f":"الجدول1[[#This Row],[الموجود بالمخزن]]-الجدول1[[#This Row],[تم بيعه]]","v":0}]
[null,null,null,null,null,null,null,{"$f":"الجدول1[[#This Row],[الموجود بالمخزن]]-الجدول1[[#This Row],[تم بيعه]]","v":0}]
[null,null,null,null,null,null,null,{"$f":"الجدول1[[#This Row],[الموجود بالمخزن]]-الجدول1[[#This Row],[تم بيعه]]","v":0}]
[null,null,null,null,null,null,null,{"$f":"الجدول1[[#This Row],[الموجود بالمخزن]]-الجدول1[[#This Row],[تم بيعه]]","v":0}]
[null,null,null,null,null,null,null,{"$f":"الجدول1[[#This Row],[الموجود بالمخزن]]-الجدول1[[#This Row],[تم بيعه]]","v":0}]
[null,null,null,null,null,null,null,{"$f":"الجدول1[[#This Row],[الموجود بالمخزن]]-الجدول1[[#This Row],[تم بيعه]]","v":0}]
[null,null,null,null,null,null,null,{"$f":"الجدول1[[#This Row],[الموجود بالمخزن]]-الجدول1[[#This Row],[تم بيعه]]","v":0}]
[null,null,null,null,null,null,null,{"$f":"الجدول1[[#This Row],[الموجود بالمخزن]]-الجدول1[[#This Row],[تم بيعه]]","v":0}]
[null,null,null,null,null,null,null,{"$f":"الجدول1[[#This Row],[الموجود بالمخزن]]-الجدول1[[#This Row],[تم بيعه]]","v":0}]
[null,null,null,null,null,null,null,{"$f":"الجدول1[[#This Row],[الموجود بالمخزن]]-الجدول1[[#This Row],[تم بيعه]]","v":0}]
[null,null,null,null,null,null,null,{"$f":"الجدول1[[#This Row],[الموجود بالمخزن]]-الجدول1[[#This Row],[تم بيعه]]","v":0}]
[null,null,null,null,null,null,null,{"$f":"الجدول1[[#This Row],[الموجود بالمخزن]]-الجدول1[[#This Row],[تم بيعه]]","v":0}]
[null,null,null,null,null,null,null,{"$f":"الجدول1[[#This Row],[الموجود بالمخزن]]-الجدول1[[#This Row],[تم بيعه]]","v":0}]
[null,null,null,null,null,null,null,{"$f":"الجدول1[[#This Row],[الموجود بالمخزن]]-الجدول1[[#This Row],[تم بيعه]]","v":0}]
[null,null,null,null,null,null,null,{"$f":"الجدول1[[#This Row],[الموجود بالمخزن]]-الجدول1[[#This Row],[تم بيعه]]","v":0}]
[null,null,null,null,null,null,null,{"$f":"الجدول1[[#This Row],[الموجود بالمخزن]]-الجدول1[[#This Row],[تم بيعه]]","v":0}]
[null,null,null,null,null,null,null,{"$f":"الجدول1[[#This Row],[الموجود بالمخزن]]-الجدول1[[#This Row],[تم بيعه]]","v":0}]
[null,null,null,null,null,null,null,{"$f":"الجدول1[[#This Row],[الموجود بالمخزن]]-الجدول1[[#This Row],[تم بيعه]]","v":0}]
[null,null,null,null,null,null,null,{"$f":"الجدول1[[#This Row],[الموجود بالمخزن]]-الجدول1[[#This Row],[تم بيعه]]","v":0}]
[null,null,null,null,null,null,null,{"$f":"الجدول1[[#This Row],[الموجود بالمخزن]]-الجدول1[[#This Row],[تم بيعه]]","v":0}]
[null,null,null,null,null,null,null,{"$f":"الجدول1[[#This Row],[الموجود بالمخزن]]-الجدول1[[#This Row],[تم بيعه]]","v":0}]
[null,null,null,null,null,null,null,{"$f":"الجدول1[[#This Row],[الموجود بالمخزن]]-الجدول1[[#This Row],[تم بيعه]]","v":0}]
[null,null,null,null,null,null,null,{"$f":"الجدول1[[#This Row],[الموجود بالمخزن]]-الجدول1[[#This Row],[تم بيعه]]","v":0}]
[null,null,null,null,null,null,null,{"$f":"الجدول1[[#This Row],[الموجود بالمخزن]]-الجدول1[[#This Row],[تم بيعه]]","v":0}]
[null,null,null,null,null,null,null,{"$f":"الجدول1[[#This Row],[الموجود بالمخزن]]-الجدول1[[#This Row],[تم بيعه]]","v":0}]
[null,null,null,null,null,null,null,{"$f":"الجدول1[[#This Row],[الموجود بالمخزن]]-الجدول1[[#This Row],[تم بيعه]]","v":0}]
[null,null,null,null,null,null,null,{"$f":"الجدول1[[#This Row],[الموجود بالمخزن]]-الجدول1[[#This Row],[تم بيعه]]","v":0}]
[null,null,null,null,null,null,null,{"$f":"الجدول1[[#This Row],[الموجود بالمخزن]]-الجدول1[[#This Row],[تم بيعه]]","v":0}]
[null,null,null,null,null,null,null,{"$f":"الجدول1[[#This Row],[الموجود بالمخزن]]-الجدول1[[#This Row],[تم بيعه]]","v":0}]
[null,null,null,null,null,null,null,{"$f":"الجدول1[[#This Row],[الموجود بالمخزن]]-الجدول1[[#This Row],[تم بيعه]]","v":0}]
[null,null,null,null,null,null,null,{"$f":"الجدول1[[#This Row],[الموجود بالمخزن]]-الجدول1[[#This Row],[تم بيعه]]","v":0}]
[null,null,null,null,null,null,null,{"$f":"الجدول1[[#This Row],[الموجود بالمخزن]]-الجدول1[[#This Row],[تم بيعه]]","v":0}]
[null,null,null,null,null,null,null,{"$f":"الجدول1[[#This Row],[الموجود بالمخزن]]-الجدول1[[#This Row],[تم بيعه]]","v":0}]
[null,null,null,null,null,null,null,{"$f":"الجدول1[[#This Row],[الموجود بالمخزن]]-الجدول1[[#This Row],[تم بيعه]]","v":0}]
[null,null,null,null,null,null,null,{"$f":"الجدول1[[#This Row],[الموجود بالمخزن]]-الجدول1[[#This Row],[تم بيعه]]","v":0}]
[null,null,null,null,null,null,null,{"$f":"الجدول1[[#This Row],[الموجود بالمخزن]]-الجدول1[[#This Row],[تم بيعه]]","v":0}]
[null,null,null,null,null,null,null,{"$f":"الجدول1[[#This Row],[الموجود بالمخزن]]-الجدول1[[#This Row],[تم بيعه]]","v":0}]
[null,null,null,null,null,null,null,{"$f":"الجدول1[[#This Row],[الموجود بالمخزن]]-الجدول1[[#This Row],[تم بيعه]]","v":0}]
[null,null,null,null,null,null,null,{"$f":"الجدول1[[#This Row],[الموجود بالمخزن]]-الجدول1[[#This Row],[تم بيعه]]","v":0}]
[null,null,null,null,null,null,null,{"$f":"الجدول1[[#This Row],[الموجود بالمخزن]]-الجدول1[[#This Row],[تم بيعه]]","v":0}]
[null,null,null,null,null,null,null,{"$f":"الجدول1[[#This Row],[الموجود بالمخزن]]-الجدول1[[#This Row],[تم بيعه]]","v":0}]
[null,null,null,null,null,null,null,{"$f":"الجدول1[[#This Row],[الموجود بالمخزن]]-الجدول1[[#This Row],[تم بيعه]]","v":0}]
[null,null,null,null,null,null,null,{"$f":"الجدول1[[#This Row],[الموجود بالمخزن]]-الجدول1[[#This Row],[تم بيعه]]","v":0}]
[null,null,null,null,null,null,null,{"$f":"الجدول1[[#This Row],[الموجود بالمخزن]]-الجدول1[[#This Row],[تم بيعه]]","v":0}]
[null,null,null,null,null,null,null,{"$f":"الجدول1[[#This Row],[الموجود بالمخزن]]-الجدول1[[#This Row],[تم بيعه]]","v":0}]
[null,null,null,null,null,null,null,{"$f":"الجدول1[[#This Row],[الموجود بالمخزن]]-الجدول1[[#This Row],[تم بيعه]]","v":0}]
[null,null,null,null,null,null,null,{"$f":"الجدول1[[#This Row],[الموجود بالمخزن]]-الجدول1[[#This Row],[تم بيعه]]","v":0}]
[null,null,null,null,null,null,null,{"$f":"الجدول1[[#This Row],[الموجود بالمخزن]]-الجدول1[[#This Row],[تم بيعه]]","v":0}]
[null,null,null,null,null,null,null,{"$f":"الجدول1[[#This Row],[الموجود بالمخزن]]-الجدول1[[#This Row],[تم بيعه]]","v":0}]
[null,null,null,null,null,null,null,{"$f":"الجدول1[[#This Row],[الموجود بالمخزن]]-الجدول1[[#This Row],[تم بيعه]]","v":0}]
[null,null,null,null,null,null,null,{"$f":"الجدول1[[#This Row],[الموجود بالمخزن]]-الجدول1[[#This Row],[تم بيعه]]","v":0}]
[null,null,null,null,null,null,null,{"$f":"الجدول1[[#This Row],[الموجود بالمخزن]]-الجدول1[[#This Row],[تم بيعه]]","v":0}]
[null,null,null,null,null,null,null,{"$f":"الجدول1[[#This Row],[الموجود بالمخزن]]-الجدول1[[#This Row],[تم بيعه]]","v":0}]
[null,null,null,null,null,null,null,{"$f":"الجدول1[[#This Row],[الموجود بالمخزن]]-الجدول1[[#This Row],[تم بيعه]]","v":0}]
[null,null,null,null,null,null,null,{"$f":"الجدول1[[#This Row],[الموجود بالمخزن]]-الجدول1[[#This Row],[تم بيعه]]","v":0}]
[null,null,null,null,null,null,null,{"$f":"الجدول1[[#This Row],[الموجود بالمخزن]]-الجدول1[[#This Row],[تم بيعه]]","v":0}]
[null,null,null,null,null,null,null,{"$f":"الجدول1[[#This Row],[الموجود بالمخزن]]-الجدول1[[#This Row],[تم بيعه]]","v":0}]
[null,null,null,null,null,null,null,{"$f":"الجدول1[[#This Row],[الموجود بالمخزن]]-الجدول1[[#This Row],[تم بيعه]]","v":0}]
[null,null,null,null,null,null,null,{"$f":"الجدول1[[#This Row],[الموجود بالمخزن]]-الجدول1[[#This Row],[تم بيعه]]","v":0}]
[null,null,null,null,null,null,null,{"$f":"الجدول1[[#This Row],[الموجود بالمخزن]]-الجدول1[[#This Row],[تم بيعه]]","v":0}]
[null,null,null,null,null,null,null,{"$f":"الجدول1[[#This Row],[الموجود بالمخزن]]-الجدول1[[#This Row],[تم بيعه]]","v":0}]
[null,null,null,null,null,null,null,{"$f":"الجدول1[[#This Row],[الموجود بالمخزن]]-الجدول1[[#This Row],[تم بيعه]]","v":0}]
[null,null,null,null,null,null,null,{"$f":"الجدول1[[#This Row],[الموجود بالمخزن]]-الجدول1[[#This Row],[تم بيعه]]","v":0}]
[null,null,null,null,null,null,null,{"$f":"الجدول1[[#This Row],[الموجود بالمخزن]]-الجدول1[[#This Row],[تم بيعه]]","v":0}]
[null,null,null,null,null,null,null,{"$f":"الجدول1[[#This Row],[الموجود بالمخزن]]-الجدول1[[#This Row],[تم بيعه]]","v":0}]
[null,null,null,null,null,null,null,{"$f":"الجدول1[[#This Row],[الموجود بالمخزن]]-الجدول1[[#This Row],[تم بيعه]]","v":0}]
[null,null,null,null,null,null,null,{"$f":"الجدول1[[#This Row],[الموجود بالمخزن]]-الجدول1[[#This Row],[تم بيعه]]","v":0}]
[null,null,null,null,null,null,null,{"$f":"الجدول1[[#This Row],[الموجود بالمخزن]]-الجدول1[[#This Row],[تم بيعه]]","v":0}]
[null,null,null,null,null,null,null,{"$f":"الجدول1[[#This Row],[الموجود بالمخزن]]-الجدول1[[#This Row],[تم بيعه]]","v":0}]
[null,null,null,null,null,null,null,{"$f":"الجدول1[[#This Row],[الموجود بالمخزن]]-الجدول1[[#This Row],[تم بيعه]]","v":0}]
[null,null,null,null,null,null,null,{"$f":"الجدول1[[#This Row],[الموجود بالمخزن]]-الجدول1[[#This Row],[تم بيعه]]","v":0}]
[null,null,null,null,null,null,null,{"$f":"الجدول1[[#This Row],[الموجود بالمخزن]]-الجدول1[[#This Row],[تم بيعه]]","v":0}]
[null,null,null,null,null,null,null,{"$f":"الجدول1[[#This Row],[الموجود بالمخزن]]-الجدول1[[#This Row],[تم بيعه]]","v":0}]
[null,null,null,null,null,null,null,{"$f":"الجدول1[[#This Row],[الموجود بالمخزن]]-الجدول1[[#This Row],[تم بيعه]]","v":0}]
[null,null,null,null,null,null,null,{"$f":"الجدول1[[#This Row],[الموجود بالمخزن]]-الجدول1[[#This Row],[تم بيعه]]","v":0}]
[null,null,null,null,null,null,null,{"$f":"الجدول1[[#This Row],[الموجود بالمخزن]]-الجدول1[[#This Row],[تم بيعه]]","v":0}]
[null,null,null,null,null,null,null,{"$f":"الجدول1[[#This Row],[الموجود بالمخزن]]-الجدول1[[#This Row],[تم بيعه]]","v":0}]
[null,null,null,null,null,null,null,{"$f":"الجدول1[[#This Row],[الموجود بالمخزن]]-الجدول1[[#This Row],[تم بيعه]]","v":0}]
[null,null,null,null,null,null,null,{"$f":"الجدول1[[#This Row],[الموجود بالمخزن]]-الجدول1[[#This Row],[تم بيعه]]","v":0}]
[null,null,null,null,null,null,null,{"$f":"الجدول1[[#This Row],[الموجود بالمخزن]]-الجدول1[[#This Row],[تم بيعه]]","v":0}]
[null,null,null,null,null,null,null,{"$f":"الجدول1[[#This Row],[الموجود بالمخزن]]-الجدول1[[#This Row],[تم بيعه]]","v":0}]
[null,null,null,null,null,null,null,{"$f":"الجدول1[[#This Row],[الموجود بالمخزن]]-الجدول1[[#This Row],[تم بيعه]]","v":0}]
[null,null,null,null,null,null,null,{"$f":"الجدول1[[#This Row],[الموجود بالمخزن]]-الجدول1[[#This Row],[تم بيعه]]","v":0}]
[null,null,null,null,null,null,null,{"$f":"الجدول1[[#This Row],[الموجود بالمخزن]]-الجدول1[[#This Row],[تم بيعه]]","v":0}]
[null,null,null,null,null,null,null,{"$f":"الجدول1[[#This Row],[الموجود بالمخزن]]-الجدول1[[#This Row],[تم بيعه]]","v":0}]
[null,null,null,null,null,null,null,{"$f":"الجدول1[[#This Row],[الموجود بالمخزن]]-الجدول1[[#This Row],[تم بيعه]]","v":0}]
[null,null,null,null,null,null,null,{"$f":"الجدول1[[#This Row],[الموجود بالمخزن]]-الجدول1[[#This Row],[تم بيعه]]","v":0}]
[null,null,null,null,null,null,null,{"$f":"الجدول1[[#This Row],[الموجود بالمخزن]]-الجدول1[[#This Row],[تم بيعه]]","v":0}]
[null,null,null,null,null,null,null,{"$f":"الجدول1[[#This Row],[الموجود بالمخزن]]-الجدول1[[#This Row],[تم بيعه]]","v":0}]
[null,null,null,null,null,null,null,{"$f":"الجدول1[[#This Row],[الموجود بالمخزن]]-الجدول1[[#This Row],[تم بيعه]]","v":0}]
[null,null,null,null,null,null,null,{"$f":"الجدول1[[#This Row],[الموجود بالمخزن]]-الجدول1[[#This Row],[تم بيعه]]","v":0}]
[null,null,null,null,null,null,null,{"$f":"الجدول1[[#This Row],[الموجود بالمخزن]]-الجدول1[[#This Row],[تم بيعه]]","v":0}]
[null,null,null,null,null,null,null,{"$f":"الجدول1[[#This Row],[الموجود بالمخزن]]-الجدول1[[#This Row],[تم بيعه]]","v":0}]
[null,null,null,null,null,null,null,{"$f":"الجدول1[[#This Row],[الموجود بالمخزن]]-الجدول1[[#This Row],[تم بيعه]]","v":0}]
[null,null,null,null,null,null,null,{"$f":"الجدول1[[#This Row],[الموجود بالمخزن]]-الجدول1[[#This Row],[تم بيعه]]","v":0}]
[null,null,null,null,null,null,null,{"$f":"الجدول1[[#This Row],[الموجود بالمخزن]]-الجدول1[[#This Row],[تم بيعه]]","v":0}]
[null,null,null,null,null,null,null,{"$f":"الجدول1[[#This Row],[الموجود بالمخزن]]-الجدول1[[#This Row],[تم بيعه]]","v":0}]
[null,null,null,null,null,null,null,{"$f":"الجدول1[[#This Row],[الموجود بالمخزن]]-الجدول1[[#This Row],[تم بيعه]]","v":0}]
[null,null,null,null,null,null,null,{"$f":"الجدول1[[#This Row],[الموجود بالمخزن]]-الجدول1[[#This Row],[تم بيعه]]","v":0}]
[null,null,null,null,null,null,null,{"$f":"الجدول1[[#This Row],[الموجود بالمخزن]]-الجدول1[[#This Row],[تم بيعه]]","v":0}]
[null,null,null,null,null,null,null,{"$f":"الجدول1[[#This Row],[الموجود بالمخزن]]-الجدول1[[#This Row],[تم بيعه]]","v":0}]
[null,null,null,null,null,null,null,{"$f":"الجدول1[[#This Row],[الموجود بالمخزن]]-الجدول1[[#This Row],[تم بيعه]]","v":0}]
[null,null,null,null,null,null,null,{"$f":"الجدول1[[#This Row],[الموجود بالمخزن]]-الجدول1[[#This Row],[تم بيعه]]","v":0}]
[null,null,null,null,null,null,null,{"$f":"الجدول1[[#This Row],[الموجود بالمخزن]]-الجدول1[[#This Row],[تم بيعه]]","v":0}]
[null,null,null,null,null,null,null,{"$f":"الجدول1[[#This Row],[الموجود بالمخزن]]-الجدول1[[#This Row],[تم بيعه]]","v":0}]
[null,null,null,null,null,null,null,{"$f":"الجدول1[[#This Row],[الموجود بالمخزن]]-الجدول1[[#This Row],[تم بيعه]]","v":0}]
[null,null,null,null,null,null,null,{"$f":"الجدول1[[#This Row],[الموجود بالمخزن]]-الجدول1[[#This Row],[تم بيعه]]","v":0}]
[null,null,null,null,null,null,null,{"$f":"الجدول1[[#This Row],[الموجود بالمخزن]]-الجدول1[[#This Row],[تم بيعه]]","v":0}]
[null,null,null,null,null,null,null,{"$f":"الجدول1[[#This Row],[الموجود بالمخزن]]-الجدول1[[#This Row],[تم بيعه]]","v":0}]
[null,null,null,null,null,null,null,{"$f":"الجدول1[[#This Row],[الموجود بالمخزن]]-الجدول1[[#This Row],[تم بيعه]]","v":0}]
[null,null,null,null,null,null,null,{"$f":"الجدول1[[#This Row],[الموجود بالمخزن]]-الجدول1[[#This Row],[تم بيعه]]","v":0}]
[null,null,null,null,null,null,null,{"$f":"الجدول1[[#This Row],[الموجود بالمخزن]]-الجدول1[[#This Row],[تم بيعه]]","v":0}]
[null,null,null,null,null,null,null,{"$f":"الجدول1[[#This Row],[الموجود بالمخزن]]-الجدول1[[#This Row],[تم بيعه]]","v":0}]
[null,null,null,null,null,null,null,{"$f":"الجدول1[[#This Row],[الموجود بالمخزن]]-الجدول1[[#This Row],[تم بيعه]]","v":0}]
[null,null,null,null,null,null,null,{"$f":"الجدول1[[#This Row],[الموجود بالمخزن]]-الجدول1[[#This Row],[تم بيعه]]","v":0}]
[null,null,null,null,null,null,null,{"$f":"الجدول1[[#This Row],[الموجود بالمخزن]]-الجدول1[[#This Row],[تم بيعه]]","v":0}]
[null,null,null,null,null,null,null,{"$f":"الجدول1[[#This Row],[الموجود بالمخزن]]-الجدول1[[#This Row],[تم بيعه]]","v":0}]
[null,null,null,null,null,null,null,{"$f":"الجدول1[[#This Row],[الموجود بالمخزن]]-الجدول1[[#This Row],[تم بيعه]]","v":0}]
[null,null,null,null,null,null,null,{"$f":"الجدول1[[#This Row],[الموجود بالمخزن]]-الجدول1[[#This Row],[تم بيعه]]","v":0}]
[null,null,null,null,null,null,null,{"$f":"الجدول1[[#This Row],[الموجود بالمخزن]]-الجدول1[[#This Row],[تم بيعه]]","v":0}]
[null,null,null,null,null,null,null,{"$f":"الجدول1[[#This Row],[الموجود بالمخزن]]-الجدول1[[#This Row],[تم بيعه]]","v":0}]
[null,null,null,null,null,null,null,{"$f":"الجدول1[[#This Row],[الموجود بالمخزن]]-الجدول1[[#This Row],[تم بيعه]]","v":0}]
[null,null,null,null,null,null,null,{"$f":"الجدول1[[#This Row],[الموجود بالمخزن]]-الجدول1[[#This Row],[تم بيعه]]","v":0}]
[null,null,null,null,null,null,null,{"$f":"الجدول1[[#This Row],[الموجود بالمخزن]]-الجدول1[[#This Row],[تم بيعه]]","v":0}]
[null,null,null,null,null,null,null,{"$f":"الجدول1[[#This Row],[الموجود بالمخزن]]-الجدول1[[#This Row],[تم بيعه]]","v":0}]
[null,null,null,null,null,null,null,{"$f":"الجدول1[[#This Row],[الموجود بالمخزن]]-الجدول1[[#This Row],[تم بيعه]]","v":0}]
[null,null,null,null,null,null,null,{"$f":"الجدول1[[#This Row],[الموجود بالمخزن]]-الجدول1[[#This Row],[تم بيعه]]","v":0}]
[null,null,null,null,null,null,null,{"$f":"الجدول1[[#This Row],[الموجود بالمخزن]]-الجدول1[[#This Row],[تم بيعه]]","v":0}]
[null,null,null,null,null,null,null,{"$f":"الجدول1[[#This Row],[الموجود بالمخزن]]-الجدول1[[#This Row],[تم بيعه]]","v":0}]
[null,null,null,null,null,null,null,{"$f":"الجدول1[[#This Row],[الموجود بالمخزن]]-الجدول1[[#This Row],[تم بيعه]]","v":0}]
[null,null,null,null,null,null,null,{"$f":"الجدول1[[#This Row],[الموجود بالمخزن]]-الجدول1[[#This Row],[تم بيعه]]","v":0}]
[null,null,null,null,null,null,null,{"$f":"الجدول1[[#This Row],[الموجود بالمخزن]]-الجدول1[[#This Row],[تم بيعه]]","v":0}]
[null,null,null,null,null,null,null,{"$f":"الجدول1[[#This Row],[الموجود بالمخزن]]-الجدول1[[#This Row],[تم بيعه]]","v":0}]
[null,null,null,null,null,null,null,{"$f":"الجدول1[[#This Row],[الموجود بالمخزن]]-الجدول1[[#This Row],[تم بيعه]]","v":0}]
[null,null,null,null,null,null,null,{"$f":"الجدول1[[#This Row],[الموجود بالمخزن]]-الجدول1[[#This Row],[تم بيعه]]","v":0}]
[null,null,null,null,null,null,null,{"$f":"الجدول1[[#This Row],[الموجود بالمخزن]]-الجدول1[[#This Row],[تم بيعه]]","v":0}]
[null,null,null,null,null,null,null,{"$f":"الجدول1[[#This Row],[الموجود بالمخزن]]-الجدول1[[#This Row],[تم بيعه]]","v":0}]
[null,null,null,null,null,null,null,{"$f":"الجدول1[[#This Row],[الموجود بالمخزن]]-الجدول1[[#This Row],[تم بيعه]]","v":0}]
[null,null,null,null,null,null,null,{"$f":"الجدول1[[#This Row],[الموجود بالمخزن]]-الجدول1[[#This Row],[تم بيعه]]","v":0}]
[null,null,null,null,null,null,null,{"$f":"الجدول1[[#This Row],[الموجود بالمخزن]]-الجدول1[[#This Row],[تم بيعه]]","v":0}]
[null,null,null,null,null,null,null,{"$f":"الجدول1[[#This Row],[الموجود بالمخزن]]-الجدول1[[#This Row],[تم بيعه]]","v":0}]
[null,null,null,null,null,null,null,{"$f":"الجدول1[[#This Row],[الموجود بالمخزن]]-الجدول1[[#This Row],[تم بيعه]]","v":0}]
[null,null,null,null,null,null,null,{"$f":"الجدول1[[#This Row],[الموجود بالمخزن]]-الجدول1[[#This Row],[تم بيعه]]","v":0}]
[null,null,null,null,null,null,null,{"$f":"الجدول1[[#This Row],[الموجود بالمخزن]]-الجدول1[[#This Row],[تم بيعه]]","v":0}]
[null,null,null,null,null,null,null,{"$f":"الجدول1[[#This Row],[الموجود بالمخزن]]-الجدول1[[#This Row],[تم بيعه]]","v":0}]
[null,null,null,null,null,null,null,{"$f":"الجدول1[[#This Row],[الموجود بالمخزن]]-الجدول1[[#This Row],[تم بيعه]]","v":0}]
[null,null,null,null,null,null,null,{"$f":"الجدول1[[#This Row],[الموجود بالمخزن]]-الجدول1[[#This Row],[تم بيعه]]","v":0}]
[null,null,null,null,null,null,null,{"$f":"الجدول1[[#This Row],[الموجود بالمخزن]]-الجدول1[[#This Row],[تم بيعه]]","v":0}]
[null,null,null,null,null,null,null,{"$f":"الجدول1[[#This Row],[الموجود بالمخزن]]-الجدول1[[#This Row],[تم بيعه]]","v":0}]
[null,null,null,null,null,null,null,{"$f":"الجدول1[[#This Row],[الموجود بالمخزن]]-الجدول1[[#This Row],[تم بيعه]]","v":0}]
[null,null,null,null,null,null,null,{"$f":"الجدول1[[#This Row],[الموجود بالمخزن]]-الجدول1[[#This Row],[تم بيعه]]","v":0}]
[null,null,null,null,null,null,null,{"$f":"الجدول1[[#This Row],[الموجود بالمخزن]]-الجدول1[[#This Row],[تم بيعه]]","v":0}]
[null,null,null,null,null,null,null,{"$f":"الجدول1[[#This Row],[الموجود بالمخزن]]-الجدول1[[#This Row],[تم بيعه]]","v":0}]
[null,null,null,null,null,null,null,{"$f":"الجدول1[[#This Row],[الموجود بالمخزن]]-الجدول1[[#This Row],[تم بيعه]]","v":0}]
[null,null,null,null,null,null,null,{"$f":"الجدول1[[#This Row],[الموجود بالمخزن]]-الجدول1[[#This Row],[تم بيعه]]","v":0}]
[null,null,null,null,null,null,null,{"$f":"الجدول1[[#This Row],[الموجود بالمخزن]]-الجدول1[[#This Row],[تم بيعه]]","v":0}]
[null,null,null,null,null,null,null,{"$f":"الجدول1[[#This Row],[الموجود بالمخزن]]-الجدول1[[#This Row],[تم بيعه]]","v":0}]
[null,null,null,null,null,null,null,{"$f":"الجدول1[[#This Row],[الموجود بالمخزن]]-الجدول1[[#This Row],[تم بيعه]]","v":0}]
[null,null,null,null,null,null,null,{"$f":"الجدول1[[#This Row],[الموجود بالمخزن]]-الجدول1[[#This Row],[تم بيعه]]","v":0}]
[null,null,null,null,null,null,null,{"$f":"الجدول1[[#This Row],[الموجود بالمخزن]]-الجدول1[[#This Row],[تم بيعه]]","v":0}]
[null,null,null,null,null,null,null,{"$f":"الجدول1[[#This Row],[الموجود بالمخزن]]-الجدول1[[#This Row],[تم بيعه]]","v":0}]
[null,null,null,null,null,null,null,{"$f":"الجدول1[[#This Row],[الموجود بالمخزن]]-الجدول1[[#This Row],[تم بيعه]]","v":0}]
[null,null,null,null,null,null,null,{"$f":"الجدول1[[#This Row],[الموجود بالمخزن]]-الجدول1[[#This Row],[تم بيعه]]","v":0}]
[null,null,null,null,null,null,null,{"$f":"الجدول1[[#This Row],[الموجود بالمخزن]]-الجدول1[[#This Row],[تم بيعه]]","v":0}]
[null,null,null,null,null,null,null,{"$f":"الجدول1[[#This Row],[الموجود بالمخزن]]-الجدول1[[#This Row],[تم بيعه]]","v":0}]
[null,null,null,null,null,null,null,{"$f":"الجدول1[[#This Row],[الموجود بالمخزن]]-الجدول1[[#This Row],[تم بيعه]]","v":0}]
[null,null,null,null,null,null,null,{"$f":"الجدول1[[#This Row],[الموجود بالمخزن]]-الجدول1[[#This Row],[تم بيعه]]","v":0}]
[null,null,null,null,null,null,null,{"$f":"الجدول1[[#This Row],[الموجود بالمخزن]]-الجدول1[[#This Row],[تم بيعه]]","v":0}]
[null,null,null,null,null,null,null,{"$f":"الجدول1[[#This Row],[الموجود بالمخزن]]-الجدول1[[#This Row],[تم بيعه]]","v":0}]
[null,null,null,null,null,null,null,{"$f":"الجدول1[[#This Row],[الموجود بالمخزن]]-الجدول1[[#This Row],[تم بيعه]]","v":0}]
[null,null,null,null,null,null,null,{"$f":"الجدول1[[#This Row],[الموجود بالمخزن]]-الجدول1[[#This Row],[تم بيعه]]","v":0}]
[null,null,null,null,null,null,null,{"$f":"الجدول1[[#This Row],[الموجود بالمخزن]]-الجدول1[[#This Row],[تم بيعه]]","v":0}]
[null,null,null,null,null,null,null,{"$f":"الجدول1[[#This Row],[الموجود بالمخزن]]-الجدول1[[#This Row],[تم بيعه]]","v":0}]
[null,null,null,null,null,null,null,{"$f":"الجدول1[[#This Row],[الموجود بالمخزن]]-الجدول1[[#This Row],[تم بيعه]]","v":0}]
[null,null,null,null,null,null,null,{"$f":"الجدول1[[#This Row],[الموجود بالمخزن]]-الجدول1[[#This Row],[تم بيعه]]","v":0}]
[null,null,null,null,null,null,null,{"$f":"الجدول1[[#This Row],[الموجود بالمخزن]]-الجدول1[[#This Row],[تم بيعه]]","v":0}]
[null,null,null,null,null,null,null,{"$f":"الجدول1[[#This Row],[الموجود بالمخزن]]-الجدول1[[#This Row],[تم بيعه]]","v":0}]
[null,null,null,null,null,null,null,{"$f":"الجدول1[[#This Row],[الموجود بالمخزن]]-الجدول1[[#This Row],[تم بيعه]]","v":0}]
[null,null,null,null,null,null,null,{"$f":"الجدول1[[#This Row],[الموجود بالمخزن]]-الجدول1[[#This Row],[تم بيعه]]","v":0}]
[null,null,null,null,null,null,null,{"$f":"الجدول1[[#This Row],[الموجود بالمخزن]]-الجدول1[[#This Row],[تم بيعه]]","v":0}]
[null,null,null,null,null,null,null,{"$f":"الجدول1[[#This Row],[الموجود بالمخزن]]-الجدول1[[#This Row],[تم بيعه]]","v":0}]
[null,null,null,null,null,null,null,{"$f":"الجدول1[[#This Row],[الموجود بالمخزن]]-الجدول1[[#This Row],[تم بيعه]]","v":0}]
[null,null,null,null,null,null,null,{"$f":"الجدول1[[#This Row],[الموجود بالمخزن]]-الجدول1[[#This Row],[تم بيعه]]","v":0}]
[null,null,null,null,null,null,null,{"$f":"الجدول1[[#This Row],[الموجود بالمخزن]]-الجدول1[[#This Row],[تم بيعه]]","v":0}]
[null,null,null,null,null,null,null,{"$f":"الجدول1[[#This Row],[الموجود بالمخزن]]-الجدول1[[#This Row],[تم بيعه]]","v":0}]
[null,null,null,null,null,null,null,{"$f":"الجدول1[[#This Row],[الموجود بالمخزن]]-الجدول1[[#This Row],[تم بيعه]]","v":0}]
[null,null,null,null,null,null,null,{"$f":"الجدول1[[#This Row],[الموجود بالمخزن]]-الجدول1[[#This Row],[تم بيعه]]","v":0}]
[null,null,null,null,null,null,null,{"$f":"الجدول1[[#This Row],[الموجود بالمخزن]]-الجدول1[[#This Row],[تم بيعه]]","v":0}]
[null,null,null,null,null,null,null,{"$f":"الجدول1[[#This Row],[الموجود بالمخزن]]-الجدول1[[#This Row],[تم بيعه]]","v":0}]
[null,null,null,null,null,null,null,{"$f":"الجدول1[[#This Row],[الموجود بالمخزن]]-الجدول1[[#This Row],[تم بيعه]]","v":0}]
[null,null,null,null,null,null,null,{"$f":"الجدول1[[#This Row],[الموجود بالمخزن]]-الجدول1[[#This Row],[تم بيعه]]","v":0}]
[null,null,null,null,null,null,null,{"$f":"الجدول1[[#This Row],[الموجود بالمخزن]]-الجدول1[[#This Row],[تم بيعه]]","v":0}]
[null,null,null,null,null,null,null,{"$f":"الجدول1[[#This Row],[الموجود بالمخزن]]-الجدول1[[#This Row],[تم بيعه]]","v":0}]
[null,null,null,null,null,null,null,{"$f":"الجدول1[[#This Row],[الموجود بالمخزن]]-الجدول1[[#This Row],[تم بيعه]]","v":0}]
[null,null,null,null,null,null,null,{"$f":"الجدول1[[#This Row],[الموجود بالمخزن]]-الجدول1[[#This Row],[تم بيعه]]","v":0}]
[null,null,null,null,null,null,null,{"$f":"الجدول1[[#This Row],[الموجود بالمخزن]]-الجدول1[[#This Row],[تم بيعه]]","v":0}]
[null,null,null,null,null,null,null,{"$f":"الجدول1[[#This Row],[الموجود بالمخزن]]-الجدول1[[#This Row],[تم بيعه]]","v":0}]
[null,null,null,null,null,null,null,{"$f":"الجدول1[[#This Row],[الموجود بالمخزن]]-الجدول1[[#This Row],[تم بيعه]]","v":0}]
[null,null,null,null,null,null,null,{"$f":"الجدول1[[#This Row],[الموجود بالمخزن]]-الجدول1[[#This Row],[تم بيعه]]","v":0}]
[null,null,null,null,null,null,null,{"$f":"الجدول1[[#This Row],[الموجود بالمخزن]]-الجدول1[[#This Row],[تم بيعه]]","v":0}]
[null,null,null,null,null,null,null,{"$f":"الجدول1[[#This Row],[الموجود بالمخزن]]-الجدول1[[#This Row],[تم بيعه]]","v":0}]
[null,null,null,null,null,null,null,{"$f":"الجدول1[[#This Row],[الموجود بالمخزن]]-الجدول1[[#This Row],[تم بيعه]]","v":0}]
[null,null,null,null,null,null,null,{"$f":"الجدول1[[#This Row],[الموجود بالمخزن]]-الجدول1[[#This Row],[تم بيعه]]","v":0}]
[null,null,null,null,null,null,null,{"$f":"الجدول1[[#This Row],[الموجود بالمخزن]]-الجدول1[[#This Row],[تم بيعه]]","v":0}]
[null,null,null,null,null,null,null,{"$f":"الجدول1[[#This Row],[الموجود بالمخزن]]-الجدول1[[#This Row],[تم بيعه]]","v":0}]
[null,null,null,null,null,null,null,{"$f":"الجدول1[[#This Row],[الموجود بالمخزن]]-الجدول1[[#This Row],[تم بيعه]]","v":0}]
[null,null,null,null,null,null,null,{"$f":"الجدول1[[#This Row],[الموجود بالمخزن]]-الجدول1[[#This Row],[تم بيعه]]","v":0}]
[null,null,null,null,null,null,null,{"$f":"الجدول1[[#This Row],[الموجود بالمخزن]]-الجدول1[[#This Row],[تم بيعه]]","v":0}]
[null,null,null,null,null,null,null,{"$f":"الجدول1[[#This Row],[الموجود بالمخزن]]-الجدول1[[#This Row],[تم بيعه]]","v":0}]
[null,null,null,null,null,null,null,{"$f":"الجدول1[[#This Row],[الموجود بالمخزن]]-الجدول1[[#This Row],[تم بيعه]]","v":0}]
[null,null,null,null,null,null,null,{"$f":"الجدول1[[#This Row],[الموجود بالمخزن]]-الجدول1[[#This Row],[تم بيعه]]","v":0}]
[null,null,null,null,null,null,null,{"$f":"الجدول1[[#This Row],[الموجود بالمخزن]]-الجدول1[[#This Row],[تم بيعه]]","v":0}]
[null,null,null,null,null,null,null,{"$f":"الجدول1[[#This Row],[الموجود بالمخزن]]-الجدول1[[#This Row],[تم بيعه]]","v":0}]
[null,null,null,null,null,null,null,{"$f":"الجدول1[[#This Row],[الموجود بالمخزن]]-الجدول1[[#This Row],[تم بيعه]]","v":0}]
[null,null,null,null,null,null,null,{"$f":"الجدول1[[#This Row],[الموجود بالمخزن]]-الجدول1[[#This Row],[تم بيعه]]","v":0}]
[null,null,null,null,null,null,null,{"$f":"الجدول1[[#This Row],[الموجود بالمخزن]]-الجدول1[[#This Row],[تم بيعه]]","v":0}]
[null,null,null,null,null,null,null,{"$f":"الجدول1[[#This Row],[الموجود بالمخزن]]-الجدول1[[#This Row],[تم بيعه]]","v":0}]
[null,null,null,null,null,null,null,{"$f":"الجدول1[[#This Row],[الموجود بالمخزن]]-الجدول1[[#This Row],[تم بيعه]]","v":0}]
[null,null,null,null,null,null,null,{"$f":"الجدول1[[#This Row],[الموجود بالمخزن]]-الجدول1[[#This Row],[تم بيعه]]","v":0}]
[null,null,null,null,null,null,null,{"$f":"الجدول1[[#This Row],[الموجود بالمخزن]]-الجدول1[[#This Row],[تم بيعه]]","v":0}]
[null,null,null,null,null,null,null,{"$f":"الجدول1[[#This Row],[الموجود بالمخزن]]-الجدول1[[#This Row],[تم بيعه]]","v":0}]
[null,null,null,null,null,null,null,{"$f":"الجدول1[[#This Row],[الموجود بالمخزن]]-الجدول1[[#This Row],[تم بيعه]]","v":0}]
[null,null,null,null,null,null,null,{"$f":"الجدول1[[#This Row],[الموجود بالمخزن]]-الجدول1[[#This Row],[تم بيعه]]","v":0}]
[null,null,null,null,null,null,null,{"$f":"الجدول1[[#This Row],[الموجود بالمخزن]]-الجدول1[[#This Row],[تم بيعه]]","v":0}]
[null,null,null,null,null,null,null,{"$f":"الجدول1[[#This Row],[الموجود بالمخزن]]-الجدول1[[#This Row],[تم بيعه]]","v":0}]
[null,null,null,null,null,null,null,{"$f":"الجدول1[[#This Row],[الموجود بالمخزن]]-الجدول1[[#This Row],[تم بيعه]]","v":0}]
[null,null,null,null,null,null,null,{"$f":"الجدول1[[#This Row],[الموجود بالمخزن]]-الجدول1[[#This Row],[تم بيعه]]","v":0}]
[null,null,null,null,null,null,null,{"$f":"الجدول1[[#This Row],[الموجود بالمخزن]]-الجدول1[[#This Row],[تم بيعه]]","v":0}]
[null,null,null,null,null,null,null,{"$f":"الجدول1[[#This Row],[الموجود بالمخزن]]-الجدول1[[#This Row],[تم بيعه]]","v":0}]
[null,null,null,null,null,null,null,{"$f":"الجدول1[[#This Row],[الموجود بالمخزن]]-الجدول1[[#This Row],[تم بيعه]]","v":0}]
[null,null,null,null,null,null,null,{"$f":"الجدول1[[#This Row],[الموجود بالمخزن]]-الجدول1[[#This Row],[تم بيعه]]","v":0}]
[null,null,null,null,null,null,null,{"$f":"الجدول1[[#This Row],[الموجود بالمخزن]]-الجدول1[[#This Row],[تم بيعه]]","v":0}]
[null,null,null,null,null,null,null,{"$f":"الجدول1[[#This Row],[الموجود بالمخزن]]-الجدول1[[#This Row],[تم بيعه]]","v":0}]
[null,null,null,null,null,null,null,{"$f":"الجدول1[[#This Row],[الموجود بالمخزن]]-الجدول1[[#This Row],[تم بيعه]]","v":0}]
[null,null,null,null,null,null,null,{"$f":"الجدول1[[#This Row],[الموجود بالمخزن]]-الجدول1[[#This Row],[تم بيعه]]","v":0}]
[null,null,null,null,null,null,null,{"$f":"الجدول1[[#This Row],[الموجود بالمخزن]]-الجدول1[[#This Row],[تم بيعه]]","v":0}]
[null,null,null,null,null,null,null,{"$f":"الجدول1[[#This Row],[الموجود بالمخزن]]-الجدول1[[#This Row],[تم بيعه]]","v":0}]
[null,null,null,null,null,null,null,{"$f":"الجدول1[[#This Row],[الموجود بالمخزن]]-الجدول1[[#This Row],[تم بيعه]]","v":0}]
[null,null,null,null,null,null,null,{"$f":"الجدول1[[#This Row],[الموجود بالمخزن]]-الجدول1[[#This Row],[تم بيعه]]","v":0}]
[null,null,null,null,null,null,null,{"$f":"الجدول1[[#This Row],[الموجود بالمخزن]]-الجدول1[[#This Row],[تم بيعه]]","v":0}]
[null,null,null,null,null,null,null,{"$f":"الجدول1[[#This Row],[الموجود بالمخزن]]-الجدول1[[#This Row],[تم بيعه]]","v":0}]
[null,null,null,null,null,null,null,{"$f":"الجدول1[[#This Row],[الموجود بالمخزن]]-الجدول1[[#This Row],[تم بيعه]]","v":0}]
[null,null,null,null,null,null,null,{"$f":"الجدول1[[#This Row],[الموجود بالمخزن]]-الجدول1[[#This Row],[تم بيعه]]","v":0}]
[null,null,null,null,null,null,null,{"$f":"الجدول1[[#This Row],[الموجود بالمخزن]]-الجدول1[[#This Row],[تم بيعه]]","v":0}]
[null,null,null,null,null,null,null,{"$f":"الجدول1[[#This Row],[الموجود بالمخزن]]-الجدول1[[#This Row],[تم بيعه]]","v":0}]
[null,null,null,null,null,null,null,{"$f":"الجدول1[[#This Row],[الموجود بالمخزن]]-الجدول1[[#This Row],[تم بيعه]]","v":0}]
[null,null,null,null,null,null,null,{"$f":"الجدول1[[#This Row],[الموجود بالمخزن]]-الجدول1[[#This Row],[تم بيعه]]","v":0}]
[null,null,null,null,null,null,null,{"$f":"الجدول1[[#This Row],[الموجود بالمخزن]]-الجدول1[[#This Row],[تم بيعه]]","v":0}]
[null,null,null,null,null,null,null,{"$f":"الجدول1[[#This Row],[الموجود بالمخزن]]-الجدول1[[#This Row],[تم بيعه]]","v":0}]
[null,null,null,null,null,null,null,{"$f":"الجدول1[[#This Row],[الموجود بالمخزن]]-الجدول1[[#This Row],[تم بيعه]]","v":0}]
[null,null,null,null,null,null,null,{"$f":"الجدول1[[#This Row],[الموجود بالمخزن]]-الجدول1[[#This Row],[تم بيعه]]","v":0}]
[null,null,null,null,null,null,null,{"$f":"الجدول1[[#This Row],[الموجود بالمخزن]]-الجدول1[[#This Row],[تم بيعه]]","v":0}]
[null,null,null,null,null,null,null,{"$f":"الجدول1[[#This Row],[الموجود بالمخزن]]-الجدول1[[#This Row],[تم بيعه]]","v":0}]
[null,null,null,null,null,null,null,{"$f":"الجدول1[[#This Row],[الموجود بالمخزن]]-الجدول1[[#This Row],[تم بيعه]]","v":0}]
[null,null,null,null,null,null,null,{"$f":"الجدول1[[#This Row],[الموجود بالمخزن]]-الجدول1[[#This Row],[تم بيعه]]","v":0}]
[null,null,null,null,null,null,null,{"$f":"الجدول1[[#This Row],[الموجود بالمخزن]]-الجدول1[[#This Row],[تم بيعه]]","v":0}]
[null,null,null,null,null,null,null,{"$f":"الجدول1[[#This Row],[الموجود بالمخزن]]-الجدول1[[#This Row],[تم بيعه]]","v":0}]
[null,null,null,null,null,null,null,{"$f":"الجدول1[[#This Row],[الموجود بالمخزن]]-الجدول1[[#This Row],[تم بيعه]]","v":0}]
[null,null,null,null,null,null,null,{"$f":"الجدول1[[#This Row],[الموجود بالمخزن]]-الجدول1[[#This Row],[تم بيعه]]","v":0}]
[null,null,null,null,null,null,null,{"$f":"الجدول1[[#This Row],[الموجود بالمخزن]]-الجدول1[[#This Row],[تم بيعه]]","v":0}]
[null,null,null,null,null,null,null,{"$f":"الجدول1[[#This Row],[الموجود بالمخزن]]-الجدول1[[#This Row],[تم بيعه]]","v":0}]
[null,null,null,null,null,null,null,{"$f":"الجدول1[[#This Row],[الموجود بالمخزن]]-الجدول1[[#This Row],[تم بيعه]]","v":0}]
[null,null,null,null,null,null,null,{"$f":"الجدول1[[#This Row],[الموجود بالمخزن]]-الجدول1[[#This Row],[تم بيعه]]","v":0}]
[null,null,null,null,null,null,null,{"$f":"الجدول1[[#This Row],[الموجود بالمخزن]]-الجدول1[[#This Row],[تم بيعه]]","v":0}]
[null,null,null,null,null,null,null,{"$f":"الجدول1[[#This Row],[الموجود بالمخزن]]-الجدول1[[#This Row],[تم بيعه]]","v":0}]
[null,null,null,null,null,null,null,{"$f":"الجدول1[[#This Row],[الموجود بالمخزن]]-الجدول1[[#This Row],[تم بيعه]]","v":0}]
[null,null,null,null,null,null,null,{"$f":"الجدول1[[#This Row],[الموجود بالمخزن]]-الجدول1[[#This Row],[تم بيعه]]","v":0}]
[null,null,null,null,null,null,null,{"$f":"الجدول1[[#This Row],[الموجود بالمخزن]]-الجدول1[[#This Row],[تم بيعه]]","v":0}]
[null,null,null,null,null,null,null,{"$f":"الجدول1[[#This Row],[الموجود بالمخزن]]-الجدول1[[#This Row],[تم بيعه]]","v":0}]
[null,null,null,null,null,null,null,{"$f":"الجدول1[[#This Row],[الموجود بالمخزن]]-الجدول1[[#This Row],[تم بيعه]]","v":0}]
[null,null,null,null,null,null,null,{"$f":"الجدول1[[#This Row],[الموجود بالمخزن]]-الجدول1[[#This Row],[تم بيعه]]","v":0}]
[null,null,null,null,null,null,null,{"$f":"الجدول1[[#This Row],[الموجود بالمخزن]]-الجدول1[[#This Row],[تم بيعه]]","v":0}]
[null,null,null,null,null,null,null,{"$f":"الجدول1[[#This Row],[الموجود بالمخزن]]-الجدول1[[#This Row],[تم بيعه]]","v":0}]
[null,null,null,null,null,null,null,{"$f":"الجدول1[[#This Row],[الموجود بالمخزن]]-الجدول1[[#This Row],[تم بيعه]]","v":0}]
[null,null,null,null,null,null,null,{"$f":"الجدول1[[#This Row],[الموجود بالمخزن]]-الجدول1[[#This Row],[تم بيعه]]","v":0}]
[null,null,null,null,null,null,null,{"$f":"الجدول1[[#This Row],[الموجود بالمخزن]]-الجدول1[[#This Row],[تم بيعه]]","v":0}]
[null,null,null,null,null,null,null,{"$f":"الجدول1[[#This Row],[الموجود بالمخزن]]-الجدول1[[#This Row],[تم بيعه]]","v":0}]
[null,null,null,null,null,null,null,{"$f":"الجدول1[[#This Row],[الموجود بالمخزن]]-الجدول1[[#This Row],[تم بيعه]]","v":0}]
[null,null,null,null,null,null,null,{"$f":"الجدول1[[#This Row],[الموجود بالمخزن]]-الجدول1[[#This Row],[تم بيعه]]","v":0}]
[null,null,null,null,null,null,null,{"$f":"الجدول1[[#This Row],[الموجود بالمخزن]]-الجدول1[[#This Row],[تم بيعه]]","v":0}]
[null,null,null,null,null,null,null,{"$f":"الجدول1[[#This Row],[الموجود بالمخزن]]-الجدول1[[#This Row],[تم بيعه]]","v":0}]
[null,null,null,null,null,null,null,{"$f":"الجدول1[[#This Row],[الموجود بالمخزن]]-الجدول1[[#This Row],[تم بيعه]]","v":0}]
[null,null,null,null,null,null,null,{"$f":"الجدول1[[#This Row],[الموجود بالمخزن]]-الجدول1[[#This Row],[تم بيعه]]","v":0}]
[null,null,null,null,null,null,null,{"$f":"الجدول1[[#This Row],[الموجود بالمخزن]]-الجدول1[[#This Row],[تم بيعه]]","v":0}]
[null,null,null,null,null,null,null,{"$f":"الجدول1[[#This Row],[الموجود بالمخزن]]-الجدول1[[#This Row],[تم بيعه]]","v":0}]
[null,null,null,null,null,null,null,{"$f":"الجدول1[[#This Row],[الموجود بالمخزن]]-الجدول1[[#This Row],[تم بيعه]]","v":0}]
[null,null,null,null,null,null,null,{"$f":"الجدول1[[#This Row],[الموجود بالمخزن]]-الجدول1[[#This Row],[تم بيعه]]","v":0}]
[null,null,null,null,null,null,null,{"$f":"الجدول1[[#This Row],[الموجود بالمخزن]]-الجدول1[[#This Row],[تم بيعه]]","v":0}]
[null,null,null,null,null,null,null,{"$f":"الجدول1[[#This Row],[الموجود بالمخزن]]-الجدول1[[#This Row],[تم بيعه]]","v":0}]
[null,null,null,null,null,null,null,{"$f":"الجدول1[[#This Row],[الموجود بالمخزن]]-الجدول1[[#This Row],[تم بيعه]]","v":0}]
[null,null,null,null,null,null,null,{"$f":"الجدول1[[#This Row],[الموجود بالمخزن]]-الجدول1[[#This Row],[تم بيعه]]","v":0}]
[null,null,null,null,null,null,null,{"$f":"الجدول1[[#This Row],[الموجود بالمخزن]]-الجدول1[[#This Row],[تم بيعه]]","v":0}]
[null,null,null,null,null,null,null,{"$f":"الجدول1[[#This Row],[الموجود بالمخزن]]-الجدول1[[#This Row],[تم بيعه]]","v":0}]
[null,null,null,null,null,null,null,{"$f":"الجدول1[[#This Row],[الموجود بالمخزن]]-الجدول1[[#This Row],[تم بيعه]]","v":0}]
[null,null,null,null,null,null,null,{"$f":"الجدول1[[#This Row],[الموجود بالمخزن]]-الجدول1[[#This Row],[تم بيعه]]","v":0}]
[null,null,null,null,null,null,null,{"$f":"الجدول1[[#This Row],[الموجود بالمخزن]]-الجدول1[[#This Row],[تم بيعه]]","v":0}]
[null,null,null,null,null,null,null,{"$f":"الجدول1[[#This Row],[الموجود بالمخزن]]-الجدول1[[#This Row],[تم بيعه]]","v":0}]
[null,null,null,null,null,null,null,{"$f":"الجدول1[[#This Row],[الموجود بالمخزن]]-الجدول1[[#This Row],[تم بيعه]]","v":0}]
[null,null,null,null,null,null,null,{"$f":"الجدول1[[#This Row],[الموجود بالمخزن]]-الجدول1[[#This Row],[تم بيعه]]","v":0}]

{"sheet":"ورقة1","index":1,"n_rows":6,"n_cols":2,"rows_kept":6,"cut":false,"hidden":false,"merged":[]}
["الصنف","السعر"]
["شاشة",100000]
["كمبيوتر",50000]
["لابتوب",5000]
["سرير",6]
["دولاب",5]